{"text_format":"1","workbook":"xlsx","n_sheets":5,"sheets":["BASE ALUMNOS","FLOTA","Hoja1","Hoja3","Hoja2"],"not_rendered":{"charts":0,"images":0,"macros":1,"external_links":0,"defined_names":7,"comments":0,"pivot_tables":0},"unopened":[],"bounds":{"document_bytes":16777216,"sheet_cells":100000,"rows_first":2000,"rows_last":500,"rows_between":2000,"halvings":0,"cell_chars":16384,"cell_head_chars":4096},"cells_cut":0,"cells_raw":0,"read":"whole","date_system":"1900"}

{"sheet":"BASE ALUMNOS","index":0,"n_rows":1003,"n_cols":23,"rows_kept":1003,"cut":false,"hidden":false,"merged":[]}
["registro","fecha","nombre","Telefono","dni","fecnac","curso","licposee","licasp","FEC INI-CURSO","entrega certif","COD INST","instructor","vehiculo","vehiculo","horario de clase",null,null,null,"resultado","fechacert","nota","INSTRUCTOR"]
[1,"2014-12-02","QUISPE AÑAMURO, VIDAL",null,29602036,null,"Profesionalización","-","AIII-c","2014-12-02",{"$f":"+J2+59","v":"2015-01-30"},16,{"$f":"IF(L2=\"\",\" \",LOOKUP(L2,FLOTA!A:A,FLOTA!B:B))","v":"CARLOS JAVIER RODOLFO MORRIBERON ROSAS"},{"$f":"IF(L2=\"\",\"\",L2)","v":16},{"$f":"IF(N2=\"\",\" \",LOOKUP(N2,FLOTA!A:A,FLOTA!H:H))","v":"B8V-870"},0,null,null,null,"ARCHIVADO","2015-04-17",17]
[2,"2014-12-02","ODAR GUTIERREZ, RUDY VICTOR",null,44018440,null,"Profesionalización","-","AIII-c","2014-12-02",{"$f":"+J3+59","v":"2015-01-30"},16,{"$f":"IF(L3=\"\",\" \",LOOKUP(L3,FLOTA!A:A,FLOTA!B:B))","v":"CARLOS JAVIER RODOLFO MORRIBERON ROSAS"},16,{"$f":"IF(N3=\"\",\" \",LOOKUP(N3,FLOTA!A:A,FLOTA!H:H))","v":"B8V-870"},0,null,null,null,"ARCHIVADO","2015-02-06",17]
[3,"2014-12-04","MAMANI PINTO, ALAN GIMMY",null,43518580,null,"Profesionalización","-","AII-b","2014-12-04","2015-01-01",8,{"$f":"IF(L4=\"\",\" \",LOOKUP(L4,FLOTA!A:A,FLOTA!B:B))","v":"EZEQUIEL HERMILIO AVALOS BRAVO"},8,{"$f":"IF(N4=\"\",\" \",LOOKUP(N4,FLOTA!A:A,FLOTA!H:H))","v":"X1A-960"},null,null,null,null,"ARCHIVADO","2014-12-03"]
[4,"2014-12-04","PUMA VELASQUEZ, ROCIO PILAR",null,43861345,null,"Profesionalización","-","AIII-c","2014-12-04",{"$f":"+J5+59","v":"2015-02-01"},17,{"$f":"IF(L5=\"\",\" \",LOOKUP(L5,FLOTA!A:A,FLOTA!B:B))","v":"JOAQUIN TICONA "},17,{"$f":"IF(N5=\"\",\" \",LOOKUP(N5,FLOTA!A:A,FLOTA!H:H))","v":"V4C-942"},0,null,null,null,"."]
[5,"2014-12-06","AYLLON CHARCA, WILLY GERMAN",null,46472299,null,"Profesionalización","-","AII-b","2014-12-06","2015-01-03",8,{"$f":"IF(L6=\"\",\" \",LOOKUP(L6,FLOTA!A:A,FLOTA!B:B))","v":"EZEQUIEL HERMILIO AVALOS BRAVO"},8,{"$f":"IF(N6=\"\",\" \",LOOKUP(N6,FLOTA!A:A,FLOTA!H:H))","v":"X1A-960"},null,null,null,null,"ARCHIVADO","2015-01-06"]
[6,"2014-12-10","APAZA QUISPE, GRIMALDO HOLGER",null,47588638,null,"Profesionalización","-","AIII-c","2014-12-10",{"$f":"+J7+59","v":"2015-02-07"},17,{"$f":"IF(L7=\"\",\" \",LOOKUP(L7,FLOTA!A:A,FLOTA!B:B))","v":"JOAQUIN TICONA "},17,{"$f":"IF(N7=\"\",\" \",LOOKUP(N7,FLOTA!A:A,FLOTA!H:H))","v":"V4C-942"},0,null,null,null,"."]
[7,"2014-12-11","MAMANI GARCIA, JESUS ANGEL",null,47538656,null,"Profesionalización","-","AII-b","2014-12-11","2015-01-08",8,{"$f":"IF(L8=\"\",\" \",LOOKUP(L8,FLOTA!A:A,FLOTA!B:B))","v":"EZEQUIEL HERMILIO AVALOS BRAVO"},8,{"$f":"IF(N8=\"\",\" \",LOOKUP(N8,FLOTA!A:A,FLOTA!H:H))","v":"X1A-960"},null,null,null,null,"ARCHIVADO","2015-01-08"]
[8,"2014-12-12","SANCA ZELA, VICTOR CAYETANO",null,47811619,null,"Profesionalización","-","AII-b","2014-12-12","2015-01-09",8,{"$f":"IF(L9=\"\",\" \",LOOKUP(L9,FLOTA!A:A,FLOTA!B:B))","v":"EZEQUIEL HERMILIO AVALOS BRAVO"},8,{"$f":"IF(N9=\"\",\" \",LOOKUP(N9,FLOTA!A:A,FLOTA!H:H))","v":"X1A-960"},null,null,null,null,"ARCHIVADO","2015-01-13"]
[9,"2014-12-13","GUERREROS QUISPE, CARLOS EDWIN",null,46082488,null,"Profesionalización","-","AII-b","2014-12-13","2015-01-10",8,{"$f":"IF(L10=\"\",\" \",LOOKUP(L10,FLOTA!A:A,FLOTA!B:B))","v":"EZEQUIEL HERMILIO AVALOS BRAVO"},8,{"$f":"IF(N10=\"\",\" \",LOOKUP(N10,FLOTA!A:A,FLOTA!H:H))","v":"X1A-960"},null,null,null,null,"."]
[10,"2014-12-15","QUISPE VALENZUELA, CARLOS JONATHAN",null,48043909,null,"Profesionalización","-","AII-b","2014-12-15","2015-01-12",8,{"$f":"IF(L11=\"\",\" \",LOOKUP(L11,FLOTA!A:A,FLOTA!B:B))","v":"EZEQUIEL HERMILIO AVALOS BRAVO"},8,{"$f":"IF(N11=\"\",\" \",LOOKUP(N11,FLOTA!A:A,FLOTA!H:H))","v":"X1A-960"},null,null,null,null,"ARCHIVADO","2015-01-15"]
[null,null,null,null,null,null,null,null,null,null,null,null,{"$f":"IF(L12=\"\",\" \",LOOKUP(L12,FLOTA!A:A,FLOTA!B:B))","v":" "},{"$f":"IF(L12=\"\",\"\",L12)","v":""},{"$f":"IF(N12=\"\",\" \",LOOKUP(N12,FLOTA!A:A,FLOTA!H:H))","v":" "},null,null,null,null,"."]
[null,null,null,null,null,null,null,null,null,null,null,null,{"$f":"IF(L13=\"\",\" \",LOOKUP(L13,FLOTA!A:A,FLOTA!B:B))","v":" "},"",{"$f":"IF(N13=\"\",\" \",LOOKUP(N13,FLOTA!A:A,FLOTA!H:H))","v":" "},null,null,null,null,"."]
[null,null,null,null,null,null,null,null,null,null,null,null,{"$f":"IF(L14=\"\",\" \",LOOKUP(L14,FLOTA!A:A,FLOTA!B:B))","v":" "},"",{"$f":"IF(N14=\"\",\" \",LOOKUP(N14,FLOTA!A:A,FLOTA!H:H))","v":" "},null,null,null,null,"."]
[null,null,null,null,null,null,null,null,null,null,null,null,{"$f":"IF(L15=\"\",\" \",LOOKUP(L15,FLOTA!A:A,FLOTA!B:B))","v":" "},"",{"$f":"IF(N15=\"\",\" \",LOOKUP(N15,FLOTA!A:A,FLOTA!H:H))","v":" "},null,null,null,null,"."]
[null,null,null,null,null,null,null,null,null,null,null,null,{"$f":"IF(L16=\"\",\" \",LOOKUP(L16,FLOTA!A:A,FLOTA!B:B))","v":" "},"",{"$f":"IF(N16=\"\",\" \",LOOKUP(N16,FLOTA!A:A,FLOTA!H:H))","v":" "},null,null,null,null,"."]
[null,null,null,null,null,null,null,null,null,null,null,null,{"$f":"IF(L17=\"\",\" \",LOOKUP(L17,FLOTA!A:A,FLOTA!B:B))","v":" "},"",{"$f":"IF(N17=\"\",\" \",LOOKUP(N17,FLOTA!A:A,FLOTA!H:H))","v":" "},null,null,null,null,"."]
[null,null,null,null,null,null,null,null,null,null,null,null,{"$f":"IF(L18=\"\",\" \",LOOKUP(L18,FLOTA!A:A,FLOTA!B:B))","v":" "},"",{"$f":"IF(N18=\"\",\" \",LOOKUP(N18,FLOTA!A:A,FLOTA!H:H))","v":" "},null,null,null,null,"."]
[null,null,null,null,null,null,null,null,null,null,null,null,{"$f":"IF(L19=\"\",\" \",LOOKUP(L19,FLOTA!A:A,FLOTA!B:B))","v":" "},"",{"$f":"IF(N19=\"\",\" \",LOOKUP(N19,FLOTA!A:A,FLOTA!H:H))","v":" "},null,null,null,null,"."]
[null,null,null,null,null,null,null,null,null,null,null,null,{"$f":"IF(L20=\"\",\" \",LOOKUP(L20,FLOTA!A:A,FLOTA!B:B))","v":" "},"",{"$f":"IF(N20=\"\",\" \",LOOKUP(N20,FLOTA!A:A,FLOTA!H:H))","v":" "},null,null,null,null,"."]
[null,null,null,null,null,null,null,null,null,null,null,null,{"$f":"IF(L21=\"\",\" \",LOOKUP(L21,FLOTA!A:A,FLOTA!B:B))","v":" "},"",{"$f":"IF(N21=\"\",\" \",LOOKUP(N21,FLOTA!A:A,FLOTA!H:H))","v":" "},null,null,null,null,"."]
[null,null,null,null,null,null,null,null,null,null,null,null,{"$f":"IF(L22=\"\",\" \",LOOKUP(L22,FLOTA!A:A,FLOTA!B:B))","v":" "},"",{"$f":"IF(N22=\"\",\" \",LOOKUP(N22,FLOTA!A:A,FLOTA!H:H))","v":" "},null,null,null,null,"."]
[null,null,null,null,null,null,null,null,null,null,null,null,{"$f":"IF(L23=\"\",\" \",LOOKUP(L23,FLOTA!A:A,FLOTA!B:B))","v":" "},"",{"$f":"IF(N23=\"\",\" \",LOOKUP(N23,FLOTA!A:A,FLOTA!H:H))","v":" "},null,null,null,null,"."]
[null,null,null,null,null,null,null,null,null,null,null,null,{"$f":"IF(L24=\"\",\" \",LOOKUP(L24,FLOTA!A:A,FLOTA!B:B))","v":" "},"",{"$f":"IF(N24=\"\",\" \",LOOKUP(N24,FLOTA!A:A,FLOTA!H:H))","v":" "},null,null,null,null,"."]
[null,null,null,null,null,null,null,null,null,null,null,null,{"$f":"IF(L25=\"\",\" \",LOOKUP(L25,FLOTA!A:A,FLOTA!B:B))","v":" "},"",{"$f":"IF(N25=\"\",\" \",LOOKUP(N25,FLOTA!A:A,FLOTA!H:H))","v":" "},null,null,null,null,"."]
[null,null,null,null,null,null,null,null,null,null,null,null,{"$f":"IF(L26=\"\",\" \",LOOKUP(L26,FLOTA!A:A,FLOTA!B:B))","v":" "},"",{"$f":"IF(N26=\"\",\" \",LOOKUP(N26,FLOTA!A:A,FLOTA!H:H))","v":" "},null,null,null,null,"."]
[null,null,null,null,null,null,null,null,null,null,null,null,{"$f":"IF(L27=\"\",\" \",LOOKUP(L27,FLOTA!A:A,FLOTA!B:B))","v":" "},"",{"$f":"IF(N27=\"\",\" \",LOOKUP(N27,FLOTA!A:A,FLOTA!H:H))","v":" "},null,null,null,null,"."]
[null,null,null,null,null,null,null,null,null,null,null,null,{"$f":"IF(L28=\"\",\" \",LOOKUP(L28,FLOTA!A:A,FLOTA!B:B))","v":" "},"",{"$f":"IF(N28=\"\",\" \",LOOKUP(N28,FLOTA!A:A,FLOTA!H:H))","v":" "},null,null,null,null,"."]
[null,null,null,null,null,null,null,null,null,null,null,null,{"$f":"IF(L29=\"\",\" \",LOOKUP(L29,FLOTA!A:A,FLOTA!B:B))","v":" "},"",{"$f":"IF(N29=\"\",\" \",LOOKUP(N29,FLOTA!A:A,FLOTA!H:H))","v":" "},null,null,null,null,"."]
[null,null,null,null,null,null,null,null,null,null,null,null,{"$f":"IF(L30=\"\",\" \",LOOKUP(L30,FLOTA!A:A,FLOTA!B:B))","v":" "},"",{"$f":"IF(N30=\"\",\" \",LOOKUP(N30,FLOTA!A:A,FLOTA!H:H))","v":" "},null,null,null,null,"."]
[null,null,null,null,null,null,null,null,null,null,null,null,{"$f":"IF(L31=\"\",\" \",LOOKUP(L31,FLOTA!A:A,FLOTA!B:B))","v":" "},"",{"$f":"IF(N31=\"\",\" \",LOOKUP(N31,FLOTA!A:A,FLOTA!H:H))","v":" "},null,null,null,null,"."]
[null,null,null,null,null,null,null,null,null,null,null,null,{"$f":"IF(L32=\"\",\" \",LOOKUP(L32,FLOTA!A:A,FLOTA!B:B))","v":" "},"",{"$f":"IF(N32=\"\",\" \",LOOKUP(N32,FLOTA!A:A,FLOTA!H:H))","v":" "},null,null,null,null,"."]
[null,null,null,null,null,null,null,null,null,null,null,null,{"$f":"IF(L33=\"\",\" \",LOOKUP(L33,FLOTA!A:A,FLOTA!B:B))","v":" "},"",{"$f":"IF(N33=\"\",\" \",LOOKUP(N33,FLOTA!A:A,FLOTA!H:H))","v":" "},null,null,null,null,"."]
[null,null,null,null,null,null,null,null,null,null,null,null,{"$f":"IF(L34=\"\",\" \",LOOKUP(L34,FLOTA!A:A,FLOTA!B:B))","v":" "},"",{"$f":"IF(N34=\"\",\" \",LOOKUP(N34,FLOTA!A:A,FLOTA!H:H))","v":" "},null,null,null,null,"."]
[null,null,null,null,null,null,null,null,null,null,null,null,{"$f":"IF(L35=\"\",\" \",LOOKUP(L35,FLOTA!A:A,FLOTA!B:B))","v":" "},"",{"$f":"IF(N35=\"\",\" \",LOOKUP(N35,FLOTA!A:A,FLOTA!H:H))","v":" "},null,null,null,null,"."]
[null,null,null,null,null,null,null,null,null,null,null,null,{"$f":"IF(L36=\"\",\" \",LOOKUP(L36,FLOTA!A:A,FLOTA!B:B))","v":" "},"",{"$f":"IF(N36=\"\",\" \",LOOKUP(N36,FLOTA!A:A,FLOTA!H:H))","v":" "},null,null,null,null,"."]
[null,null,null,null,null,null,null,null,null,null,null,null,{"$f":"IF(L37=\"\",\" \",LOOKUP(L37,FLOTA!A:A,FLOTA!B:B))","v":" "},"",{"$f":"IF(N37=\"\",\" \",LOOKUP(N37,FLOTA!A:A,FLOTA!H:H))","v":" "},null,null,null,null,"."]
[null,null,null,null,null,null,null,null,null,null,null,null,{"$f":"IF(L38=\"\",\" \",LOOKUP(L38,FLOTA!A:A,FLOTA!B:B))","v":" "},"",{"$f":"IF(N38=\"\",\" \",LOOKUP(N38,FLOTA!A:A,FLOTA!H:H))","v":" "},null,null,null,null,"."]
[null,null,null,null,null,null,null,null,null,null,null,null,{"$f":"IF(L39=\"\",\" \",LOOKUP(L39,FLOTA!A:A,FLOTA!B:B))","v":" "},"",{"$f":"IF(N39=\"\",\" \",LOOKUP(N39,FLOTA!A:A,FLOTA!H:H))","v":" "},null,null,null,null,"."]
[null,null,null,null,null,null,null,null,null,null,null,null,{"$f":"IF(L40=\"\",\" \",LOOKUP(L40,FLOTA!A:A,FLOTA!B:B))","v":" "},"",{"$f":"IF(N40=\"\",\" \",LOOKUP(N40,FLOTA!A:A,FLOTA!H:H))","v":" "},null,null,null,null,"."]
[null,null,null,null,null,null,null,null,null,null,null,null,{"$f":"IF(L41=\"\",\" \",LOOKUP(L41,FLOTA!A:A,FLOTA!B:B))","v":" "},"",{"$f":"IF(N41=\"\",\" \",LOOKUP(N41,FLOTA!A:A,FLOTA!H:H))","v":" "},null,null,null,null,"."]
[null,null,null,null,null,null,null,null,null,null,null,null,{"$f":"IF(L42=\"\",\" \",LOOKUP(L42,FLOTA!A:A,FLOTA!B:B))","v":" "},"",{"$f":"IF(N42=\"\",\" \",LOOKUP(N42,FLOTA!A:A,FLOTA!H:H))","v":" "},null,null,null,null,"."]
[null,null,null,null,null,null,null,null,null,null,null,null,{"$f":"IF(L43=\"\",\" \",LOOKUP(L43,FLOTA!A:A,FLOTA!B:B))","v":" "},"",{"$f":"IF(N43=\"\",\" \",LOOKUP(N43,FLOTA!A:A,FLOTA!H:H))","v":" "},null,null,null,null,"."]
[null,null,null,null,null,null,null,null,null,null,null,null,{"$f":"IF(L44=\"\",\" \",LOOKUP(L44,FLOTA!A:A,FLOTA!B:B))","v":" "},"",{"$f":"IF(N44=\"\",\" \",LOOKUP(N44,FLOTA!A:A,FLOTA!H:H))","v":" "},null,null,null,null,"."]
[null,null,null,null,null,null,null,null,null,null,null,null,{"$f":"IF(L45=\"\",\" \",LOOKUP(L45,FLOTA!A:A,FLOTA!B:B))","v":" "},"",{"$f":"IF(N45=\"\",\" \",LOOKUP(N45,FLOTA!A:A,FLOTA!H:H))","v":" "},null,null,null,null,"."]
[null,null,null,null,null,null,null,null,null,null,null,null,{"$f":"IF(L46=\"\",\" \",LOOKUP(L46,FLOTA!A:A,FLOTA!B:B))","v":" "},"",{"$f":"IF(N46=\"\",\" \",LOOKUP(N46,FLOTA!A:A,FLOTA!H:H))","v":" "},null,null,null,null,"."]
[null,null,null,null,null,null,null,null,null,null,null,null,{"$f":"IF(L47=\"\",\" \",LOOKUP(L47,FLOTA!A:A,FLOTA!B:B))","v":" "},"",{"$f":"IF(N47=\"\",\" \",LOOKUP(N47,FLOTA!A:A,FLOTA!H:H))","v":" "},null,null,null,null,"."]
[null,null,null,null,null,null,null,null,null,null,null,null,{"$f":"IF(L48=\"\",\" \",LOOKUP(L48,FLOTA!A:A,FLOTA!B:B))","v":" "},"",{"$f":"IF(N48=\"\",\" \",LOOKUP(N48,FLOTA!A:A,FLOTA!H:H))","v":" "},null,null,null,null,"."]
[null,null,null,null,null,null,null,null,null,null,null,null,{"$f":"IF(L49=\"\",\" \",LOOKUP(L49,FLOTA!A:A,FLOTA!B:B))","v":" "},"",{"$f":"IF(N49=\"\",\" \",LOOKUP(N49,FLOTA!A:A,FLOTA!H:H))","v":" "},null,null,null,null,"."]
[null,null,null,null,null,null,null,null,null,null,null,null,{"$f":"IF(L50=\"\",\" \",LOOKUP(L50,FLOTA!A:A,FLOTA!B:B))","v":" "},"",{"$f":"IF(N50=\"\",\" \",LOOKUP(N50,FLOTA!A:A,FLOTA!H:H))","v":" "},null,null,null,null,"."]
[null,null,null,null,null,null,null,null,null,null,null,null,{"$f":"IF(L51=\"\",\" \",LOOKUP(L51,FLOTA!A:A,FLOTA!B:B))","v":" "},"",{"$f":"IF(N51=\"\",\" \",LOOKUP(N51,FLOTA!A:A,FLOTA!H:H))","v":" "},null,null,null,null,"."]
[null,null,null,null,null,null,null,null,null,null,null,null,{"$f":"IF(L52=\"\",\" \",LOOKUP(L52,FLOTA!A:A,FLOTA!B:B))","v":" "},"",{"$f":"IF(N52=\"\",\" \",LOOKUP(N52,FLOTA!A:A,FLOTA!H:H))","v":" "},null,null,null,null,"."]
[null,null,null,null,null,null,null,null,null,null,null,null,{"$f":"IF(L53=\"\",\" \",LOOKUP(L53,FLOTA!A:A,FLOTA!B:B))","v":" "},"",{"$f":"IF(N53=\"\",\" \",LOOKUP(N53,FLOTA!A:A,FLOTA!H:H))","v":" "},null,null,null,null,"."]
[null,null,null,null,null,null,null,null,null,null,null,null,{"$f":"IF(L54=\"\",\" \",LOOKUP(L54,FLOTA!A:A,FLOTA!B:B))","v":" "},"",{"$f":"IF(N54=\"\",\" \",LOOKUP(N54,FLOTA!A:A,FLOTA!H:H))","v":" "},null,null,null,null,"."]
[null,null,null,null,null,null,null,null,null,null,null,null,{"$f":"IF(L55=\"\",\" \",LOOKUP(L55,FLOTA!A:A,FLOTA!B:B))","v":" "},"",{"$f":"IF(N55=\"\",\" \",LOOKUP(N55,FLOTA!A:A,FLOTA!H:H))","v":" "},null,null,null,null,"."]
[null,null,null,null,null,null,null,null,null,null,null,null,{"$f":"IF(L56=\"\",\" \",LOOKUP(L56,FLOTA!A:A,FLOTA!B:B))","v":" "},"",{"$f":"IF(N56=\"\",\" \",LOOKUP(N56,FLOTA!A:A,FLOTA!H:H))","v":" "},null,null,null,null,"."]
[null,null,null,null,null,null,null,null,null,null,null,null,{"$f":"IF(L57=\"\",\" \",LOOKUP(L57,FLOTA!A:A,FLOTA!B:B))","v":" "},"",{"$f":"IF(N57=\"\",\" \",LOOKUP(N57,FLOTA!A:A,FLOTA!H:H))","v":" "},null,null,null,null,"."]
[null,null,null,null,null,null,null,null,null,null,null,null,{"$f":"IF(L58=\"\",\" \",LOOKUP(L58,FLOTA!A:A,FLOTA!B:B))","v":" "},"",{"$f":"IF(N58=\"\",\" \",LOOKUP(N58,FLOTA!A:A,FLOTA!H:H))","v":" "},null,null,null,null,"."]
[null,null,null,null,null,null,null,null,null,null,null,null,{"$f":"IF(L59=\"\",\" \",LOOKUP(L59,FLOTA!A:A,FLOTA!B:B))","v":" "},"",{"$f":"IF(N59=\"\",\" \",LOOKUP(N59,FLOTA!A:A,FLOTA!H:H))","v":" "},null,null,null,null,"."]
[null,null,null,null,null,null,null,null,null,null,null,null,{"$f":"IF(L60=\"\",\" \",LOOKUP(L60,FLOTA!A:A,FLOTA!B:B))","v":" "},"",{"$f":"IF(N60=\"\",\" \",LOOKUP(N60,FLOTA!A:A,FLOTA!H:H))","v":" "},null,null,null,null,"."]
[null,null,null,null,null,null,null,null,null,null,null,null,{"$f":"IF(L61=\"\",\" \",LOOKUP(L61,FLOTA!A:A,FLOTA!B:B))","v":" "},"",{"$f":"IF(N61=\"\",\" \",LOOKUP(N61,FLOTA!A:A,FLOTA!H:H))","v":" "},null,null,null,null,"."]
[null,null,null,null,null,null,null,null,null,null,null,null,{"$f":"IF(L62=\"\",\" \",LOOKUP(L62,FLOTA!A:A,FLOTA!B:B))","v":" "},"",{"$f":"IF(N62=\"\",\" \",LOOKUP(N62,FLOTA!A:A,FLOTA!H:H))","v":" "},null,null,null,null,"."]
[null,null,null,null,null,null,null,null,null,null,null,null,{"$f":"IF(L63=\"\",\" \",LOOKUP(L63,FLOTA!A:A,FLOTA!B:B))","v":" "},"",{"$f":"IF(N63=\"\",\" \",LOOKUP(N63,FLOTA!A:A,FLOTA!H:H))","v":" "},null,null,null,null,"."]
[null,null,null,null,null,null,null,null,null,null,null,null,{"$f":"IF(L64=\"\",\" \",LOOKUP(L64,FLOTA!A:A,FLOTA!B:B))","v":" "},"",{"$f":"IF(N64=\"\",\" \",LOOKUP(N64,FLOTA!A:A,FLOTA!H:H))","v":" "},null,null,null,null,"."]
[null,null,null,null,null,null,null,null,null,null,null,null,{"$f":"IF(L65=\"\",\" \",LOOKUP(L65,FLOTA!A:A,FLOTA!B:B))","v":" "},{"$f":"IF(L65=\"\",\"\",L65)","v":""},{"$f":"IF(N65=\"\",\" \",LOOKUP(N65,FLOTA!A:A,FLOTA!H:H))","v":" "},null,null,null,null,"."]
[null,null,null,null,null,null,null,null,null,null,null,null,{"$f":"IF(L66=\"\",\" \",LOOKUP(L66,FLOTA!A:A,FLOTA!B:B))","v":" "},"",{"$f":"IF(N66=\"\",\" \",LOOKUP(N66,FLOTA!A:A,FLOTA!H:H))","v":" "},null,null,null,null,"."]
[null,null,null,null,null,null,null,null,null,null,null,null,{"$f":"IF(L67=\"\",\" \",LOOKUP(L67,FLOTA!A:A,FLOTA!B:B))","v":" "},"",{"$f":"IF(N67=\"\",\" \",LOOKUP(N67,FLOTA!A:A,FLOTA!H:H))","v":" "},null,null,null,null,"."]
[null,null,null,null,null,null,null,null,null,null,null,null,{"$f":"IF(L68=\"\",\" \",LOOKUP(L68,FLOTA!A:A,FLOTA!B:B))","v":" "},"",{"$f":"IF(N68=\"\",\" \",LOOKUP(N68,FLOTA!A:A,FLOTA!H:H))","v":" "},null,null,null,null,"."]
[null,null,null,null,null,null,null,null,null,null,null,null,{"$f":"IF(L69=\"\",\" \",LOOKUP(L69,FLOTA!A:A,FLOTA!B:B))","v":" "},"",{"$f":"IF(N69=\"\",\" \",LOOKUP(N69,FLOTA!A:A,FLOTA!H:H))","v":" "},null,null,null,null,"."]
[null,null,null,null,null,null,null,null,null,null,null,null,{"$f":"IF(L70=\"\",\" \",LOOKUP(L70,FLOTA!A:A,FLOTA!B:B))","v":" "},"",{"$f":"IF(N70=\"\",\" \",LOOKUP(N70,FLOTA!A:A,FLOTA!H:H))","v":" "},null,null,null,null,"."]
[null,null,null,null,null,null,null,null,null,null,null,null,{"$f":"IF(L71=\"\",\" \",LOOKUP(L71,FLOTA!A:A,FLOTA!B:B))","v":" "},"",{"$f":"IF(N71=\"\",\" \",LOOKUP(N71,FLOTA!A:A,FLOTA!H:H))","v":" "},null,null,null,null,"."]
[null,null,null,null,null,null,null,null,null,null,null,null,{"$f":"IF(L72=\"\",\" \",LOOKUP(L72,FLOTA!A:A,FLOTA!B:B))","v":" "},"",{"$f":"IF(N72=\"\",\" \",LOOKUP(N72,FLOTA!A:A,FLOTA!H:H))","v":" "},null,null,null,null,"."]
[null,null,null,null,null,null,null,null,null,null,null,null,{"$f":"IF(L73=\"\",\" \",LOOKUP(L73,FLOTA!A:A,FLOTA!B:B))","v":" "},"",{"$f":"IF(N73=\"\",\" \",LOOKUP(N73,FLOTA!A:A,FLOTA!H:H))","v":" "},null,null,null,null,"."]
[null,null,null,null,null,null,null,null,null,null,null,null,{"$f":"IF(L74=\"\",\" \",LOOKUP(L74,FLOTA!A:A,FLOTA!B:B))","v":" "},"",{"$f":"IF(N74=\"\",\" \",LOOKUP(N74,FLOTA!A:A,FLOTA!H:H))","v":" "},null,null,null,null,"."]
[null,null,null,null,null,null,null,null,null,null,null,null,{"$f":"IF(L75=\"\",\" \",LOOKUP(L75,FLOTA!A:A,FLOTA!B:B))","v":" "},"",{"$f":"IF(N75=\"\",\" \",LOOKUP(N75,FLOTA!A:A,FLOTA!H:H))","v":" "},null,null,null,null,"."]
[null,null,null,null,null,null,null,null,null,null,null,null,{"$f":"IF(L76=\"\",\" \",LOOKUP(L76,FLOTA!A:A,FLOTA!B:B))","v":" "},"",{"$f":"IF(N76=\"\",\" \",LOOKUP(N76,FLOTA!A:A,FLOTA!H:H))","v":" "},null,null,null,null,"."]
[null,null,null,null,null,null,null,null,null,null,null,null,{"$f":"IF(L77=\"\",\" \",LOOKUP(L77,FLOTA!A:A,FLOTA!B:B))","v":" "},"",{"$f":"IF(N77=\"\",\" \",LOOKUP(N77,FLOTA!A:A,FLOTA!H:H))","v":" "},null,null,null,null,"."]
[null,null,null,null,null,null,null,null,null,null,null,null,{"$f":"IF(L78=\"\",\" \",LOOKUP(L78,FLOTA!A:A,FLOTA!B:B))","v":" "},"",{"$f":"IF(N78=\"\",\" \",LOOKUP(N78,FLOTA!A:A,FLOTA!H:H))","v":" "},null,null,null,null,"."]
[null,null,null,null,null,null,null,null,null,null,null,null,{"$f":"IF(L79=\"\",\" \",LOOKUP(L79,FLOTA!A:A,FLOTA!B:B))","v":" "},"",{"$f":"IF(N79=\"\",\" \",LOOKUP(N79,FLOTA!A:A,FLOTA!H:H))","v":" "},null,null,null,null,"."]
[null,null,null,null,null,null,null,null,null,null,null,null,{"$f":"IF(L80=\"\",\" \",LOOKUP(L80,FLOTA!A:A,FLOTA!B:B))","v":" "},"",{"$f":"IF(N80=\"\",\" \",LOOKUP(N80,FLOTA!A:A,FLOTA!H:H))","v":" "},null,null,null,null,"."]
[null,null,null,null,null,null,null,null,null,null,null,null,{"$f":"IF(L81=\"\",\" \",LOOKUP(L81,FLOTA!A:A,FLOTA!B:B))","v":" "},"",{"$f":"IF(N81=\"\",\" \",LOOKUP(N81,FLOTA!A:A,FLOTA!H:H))","v":" "},null,null,null,null,"."]
[null,null,null,null,null,null,null,null,null,null,null,null,{"$f":"IF(L82=\"\",\" \",LOOKUP(L82,FLOTA!A:A,FLOTA!B:B))","v":" "},"",{"$f":"IF(N82=\"\",\" \",LOOKUP(N82,FLOTA!A:A,FLOTA!H:H))","v":" "},null,null,null,null,"."]
[null,null,null,null,null,null,null,null,null,null,null,null,{"$f":"IF(L83=\"\",\" \",LOOKUP(L83,FLOTA!A:A,FLOTA!B:B))","v":" "},"",{"$f":"IF(N83=\"\",\" \",LOOKUP(N83,FLOTA!A:A,FLOTA!H:H))","v":" "},null,null,null,null,"."]
[null,null,null,null,null,null,null,null,null,null,null,null,{"$f":"IF(L84=\"\",\" \",LOOKUP(L84,FLOTA!A:A,FLOTA!B:B))","v":" "},"",{"$f":"IF(N84=\"\",\" \",LOOKUP(N84,FLOTA!A:A,FLOTA!H:H))","v":" "},null,null,null,null,"."]
[null,null,null,null,null,null,null,null,null,null,null,null,{"$f":"IF(L85=\"\",\" \",LOOKUP(L85,FLOTA!A:A,FLOTA!B:B))","v":" "},"",{"$f":"IF(N85=\"\",\" \",LOOKUP(N85,FLOTA!A:A,FLOTA!H:H))","v":" "},null,null,null,null,"."]
[null,null,null,null,null,null,null,null,null,null,null,null,{"$f":"IF(L86=\"\",\" \",LOOKUP(L86,FLOTA!A:A,FLOTA!B:B))","v":" "},"",{"$f":"IF(N86=\"\",\" \",LOOKUP(N86,FLOTA!A:A,FLOTA!H:H))","v":" "},null,null,null,null,"."]
[null,null,null,null,null,null,null,null,null,null,null,null,{"$f":"IF(L87=\"\",\" \",LOOKUP(L87,FLOTA!A:A,FLOTA!B:B))","v":" "},"",{"$f":"IF(N87=\"\",\" \",LOOKUP(N87,FLOTA!A:A,FLOTA!H:H))","v":" "},null,null,null,null,"."]
[null,null,null,null,null,null,null,null,null,null,null,null,{"$f":"IF(L88=\"\",\" \",LOOKUP(L88,FLOTA!A:A,FLOTA!B:B))","v":" "},"",{"$f":"IF(N88=\"\",\" \",LOOKUP(N88,FLOTA!A:A,FLOTA!H:H))","v":" "},null,null,null,null,"."]
[null,null,null,null,null,null,null,null,null,null,null,null,{"$f":"IF(L89=\"\",\" \",LOOKUP(L89,FLOTA!A:A,FLOTA!B:B))","v":" "},"",{"$f":"IF(N89=\"\",\" \",LOOKUP(N89,FLOTA!A:A,FLOTA!H:H))","v":" "},null,null,null,null,"."]
[null,null,null,null,null,null,null,null,null,null,null,null,{"$f":"IF(L90=\"\",\" \",LOOKUP(L90,FLOTA!A:A,FLOTA!B:B))","v":" "},"",{"$f":"IF(N90=\"\",\" \",LOOKUP(N90,FLOTA!A:A,FLOTA!H:H))","v":" "},null,null,null,null,"."]
[null,null,null,null,null,null,null,null,null,null,null,null,{"$f":"IF(L91=\"\",\" \",LOOKUP(L91,FLOTA!A:A,FLOTA!B:B))","v":" "},"",{"$f":"IF(N91=\"\",\" \",LOOKUP(N91,FLOTA!A:A,FLOTA!H:H))","v":" "},null,null,null,null,"."]
[null,null,null,null,null,null,null,null,null,null,null,null,{"$f":"IF(L92=\"\",\" \",LOOKUP(L92,FLOTA!A:A,FLOTA!B:B))","v":" "},"",{"$f":"IF(N92=\"\",\" \",LOOKUP(N92,FLOTA!A:A,FLOTA!H:H))","v":" "},null,null,null,null,"."]
[null,null,null,null,null,null,null,null,null,null,null,null,{"$f":"IF(L93=\"\",\" \",LOOKUP(L93,FLOTA!A:A,FLOTA!B:B))","v":" "},"",{"$f":"IF(N93=\"\",\" \",LOOKUP(N93,FLOTA!A:A,FLOTA!H:H))","v":" "},null,null,null,null,"."]
[null,null,null,null,null,null,null,null,null,null,null,null,{"$f":"IF(L94=\"\",\" \",LOOKUP(L94,FLOTA!A:A,FLOTA!B:B))","v":" "},"",{"$f":"IF(N94=\"\",\" \",LOOKUP(N94,FLOTA!A:A,FLOTA!H:H))","v":" "},null,null,null,null,"."]
[null,null,null,null,null,null,null,null,null,null,null,null,{"$f":"IF(L95=\"\",\" \",LOOKUP(L95,FLOTA!A:A,FLOTA!B:B))","v":" "},"",{"$f":"IF(N95=\"\",\" \",LOOKUP(N95,FLOTA!A:A,FLOTA!H:H))","v":" "},null,null,null,null,"."]
[null,null,null,null,null,null,null,null,null,null,null,null,{"$f":"IF(L96=\"\",\" \",LOOKUP(L96,FLOTA!A:A,FLOTA!B:B))","v":" "},"",{"$f":"IF(N96=\"\",\" \",LOOKUP(N96,FLOTA!A:A,FLOTA!H:H))","v":" "},null,null,null,null,"."]
[null,null,null,null,null,null,null,null,null,null,null,null,{"$f":"IF(L97=\"\",\" \",LOOKUP(L97,FLOTA!A:A,FLOTA!B:B))","v":" "},"",{"$f":"IF(N97=\"\",\" \",LOOKUP(N97,FLOTA!A:A,FLOTA!H:H))","v":" "},null,null,null,null,"."]
[null,null,null,null,null,null,null,null,null,null,null,null,{"$f":"IF(L98=\"\",\" \",LOOKUP(L98,FLOTA!A:A,FLOTA!B:B))","v":" "},"",{"$f":"IF(N98=\"\",\" \",LOOKUP(N98,FLOTA!A:A,FLOTA!H:H))","v":" "},null,null,null,null,"."]
[null,null,null,null,null,null,null,null,null,null,null,null,{"$f":"IF(L99=\"\",\" \",LOOKUP(L99,FLOTA!A:A,FLOTA!B:B))","v":" "},"",{"$f":"IF(N99=\"\",\" \",LOOKUP(N99,FLOTA!A:A,FLOTA!H:H))","v":" "},null,null,null,null,"."]
[null,null,null,null,null,null,null,null,null,null,null,null,{"$f":"IF(L100=\"\",\" \",LOOKUP(L100,FLOTA!A:A,FLOTA!B:B))","v":" "},"",{"$f":"IF(N100=\"\",\" \",LOOKUP(N100,FLOTA!A:A,FLOTA!H:H))","v":" "},null,null,null,null,"."]
[null,null,null,null,null,null,null,null,null,null,null,null,{"$f":"IF(L101=\"\",\" \",LOOKUP(L101,FLOTA!A:A,FLOTA!B:B))","v":" "},"",{"$f":"IF(N101=\"\",\" \",LOOKUP(N101,FLOTA!A:A,FLOTA!H:H))","v":" "},null,null,null,null,"."]
[null,null,null,null,null,null,null,null,null,null,null,null,{"$f":"IF(L102=\"\",\" \",LOOKUP(L102,FLOTA!A:A,FLOTA!B:B))","v":" "},"",{"$f":"IF(N102=\"\",\" \",LOOKUP(N102,FLOTA!A:A,FLOTA!H:H))","v":" "},null,null,null,null,"."]
[null,null,null,null,null,null,null,null,null,null,null,null,{"$f":"IF(L103=\"\",\" \",LOOKUP(L103,FLOTA!A:A,FLOTA!B:B))","v":" "},"",{"$f":"IF(N103=\"\",\" \",LOOKUP(N103,FLOTA!A:A,FLOTA!H:H))","v":" "},null,null,null,null,"."]
[null,null,null,null,null,null,null,null,null,null,null,null,{"$f":"IF(L104=\"\",\" \",LOOKUP(L104,FLOTA!A:A,FLOTA!B:B))","v":" "},"",{"$f":"IF(N104=\"\",\" \",LOOKUP(N104,FLOTA!A:A,FLOTA!H:H))","v":" "},null,null,null,null,"."]
[null,null,null,null,null,null,null,null,null,null,null,null,{"$f":"IF(L105=\"\",\" \",LOOKUP(L105,FLOTA!A:A,FLOTA!B:B))","v":" "},"",{"$f":"IF(N105=\"\",\" \",LOOKUP(N105,FLOTA!A:A,FLOTA!H:H))","v":" "},null,null,null,null,"."]
[null,null,null,null,null,null,null,null,null,null,null,null,{"$f":"IF(L106=\"\",\" \",LOOKUP(L106,FLOTA!A:A,FLOTA!B:B))","v":" "},"",{"$f":"IF(N106=\"\",\" \",LOOKUP(N106,FLOTA!A:A,FLOTA!H:H))","v":" "},null,null,null,null,"."]
[null,null,null,null,null,null,null,null,null,null,null,null,{"$f":"IF(L107=\"\",\" \",LOOKUP(L107,FLOTA!A:A,FLOTA!B:B))","v":" "},"",{"$f":"IF(N107=\"\",\" \",LOOKUP(N107,FLOTA!A:A,FLOTA!H:H))","v":" "},null,null,null,null,"."]
[null,null,null,null,null,null,null,null,null,null,null,null,{"$f":"IF(L108=\"\",\" \",LOOKUP(L108,FLOTA!A:A,FLOTA!B:B))","v":" "},"",{"$f":"IF(N108=\"\",\" \",LOOKUP(N108,FLOTA!A:A,FLOTA!H:H))","v":" "},null,null,null,null,"."]
[null,null,null,null,null,null,null,null,null,null,null,null,{"$f":"IF(L109=\"\",\" \",LOOKUP(L109,FLOTA!A:A,FLOTA!B:B))","v":" "},"",{"$f":"IF(N109=\"\",\" \",LOOKUP(N109,FLOTA!A:A,FLOTA!H:H))","v":" "},null,null,null,null,"."]
[null,null,null,null,null,null,null,null,null,null,null,null,{"$f":"IF(L110=\"\",\" \",LOOKUP(L110,FLOTA!A:A,FLOTA!B:B))","v":" "},"",{"$f":"IF(N110=\"\",\" \",LOOKUP(N110,FLOTA!A:A,FLOTA!H:H))","v":" "},null,null,null,null,"."]
[null,null,null,null,null,null,null,null,null,null,null,null,{"$f":"IF(L111=\"\",\" \",LOOKUP(L111,FLOTA!A:A,FLOTA!B:B))","v":" "},"",{"$f":"IF(N111=\"\",\" \",LOOKUP(N111,FLOTA!A:A,FLOTA!H:H))","v":" "},null,null,null,null,"."]
[null,null,null,null,null,null,null,null,null,null,null,null,{"$f":"IF(L112=\"\",\" \",LOOKUP(L112,FLOTA!A:A,FLOTA!B:B))","v":" "},"",{"$f":"IF(N112=\"\",\" \",LOOKUP(N112,FLOTA!A:A,FLOTA!H:H))","v":" "},null,null,null,null,"."]
[null,null,null,null,null,null,null,null,null,null,null,null,{"$f":"IF(L113=\"\",\" \",LOOKUP(L113,FLOTA!A:A,FLOTA!B:B))","v":" "},"",{"$f":"IF(N113=\"\",\" \",LOOKUP(N113,FLOTA!A:A,FLOTA!H:H))","v":" "},null,null,null,null,"."]
[null,null,null,null,null,null,null,null,null,null,null,null,{"$f":"IF(L114=\"\",\" \",LOOKUP(L114,FLOTA!A:A,FLOTA!B:B))","v":" "},"",{"$f":"IF(N114=\"\",\" \",LOOKUP(N114,FLOTA!A:A,FLOTA!H:H))","v":" "},null,null,null,null,"."]
[null,null,null,null,null,null,null,null,null,null,null,null,{"$f":"IF(L115=\"\",\" \",LOOKUP(L115,FLOTA!A:A,FLOTA!B:B))","v":" "},"",{"$f":"IF(N115=\"\",\" \",LOOKUP(N115,FLOTA!A:A,FLOTA!H:H))","v":" "},null,null,null,null,"."]
[null,null,null,null,null,null,null,null,null,null,null,null,{"$f":"IF(L116=\"\",\" \",LOOKUP(L116,FLOTA!A:A,FLOTA!B:B))","v":" "},"",{"$f":"IF(N116=\"\",\" \",LOOKUP(N116,FLOTA!A:A,FLOTA!H:H))","v":" "},null,null,null,null,"."]
[null,null,null,null,null,null,null,null,null,null,null,null,{"$f":"IF(L117=\"\",\" \",LOOKUP(L117,FLOTA!A:A,FLOTA!B:B))","v":" "},"",{"$f":"IF(N117=\"\",\" \",LOOKUP(N117,FLOTA!A:A,FLOTA!H:H))","v":" "},null,null,null,null,"."]
[null,null,null,null,null,null,null,null,null,null,null,null,{"$f":"IF(L118=\"\",\" \",LOOKUP(L118,FLOTA!A:A,FLOTA!B:B))","v":" "},"",{"$f":"IF(N118=\"\",\" \",LOOKUP(N118,FLOTA!A:A,FLOTA!H:H))","v":" "},null,null,null,null,"."]
[null,null,null,null,null,null,null,null,null,null,null,null,{"$f":"IF(L119=\"\",\" \",LOOKUP(L119,FLOTA!A:A,FLOTA!B:B))","v":" "},"",{"$f":"IF(N119=\"\",\" \",LOOKUP(N119,FLOTA!A:A,FLOTA!H:H))","v":" "},null,null,null,null,"."]
[null,null,null,null,null,null,null,null,null,null,null,null,{"$f":"IF(L120=\"\",\" \",LOOKUP(L120,FLOTA!A:A,FLOTA!B:B))","v":" "},"",{"$f":"IF(N120=\"\",\" \",LOOKUP(N120,FLOTA!A:A,FLOTA!H:H))","v":" "},null,null,null,null,"."]
[null,null,null,null,null,null,null,null,null,null,null,null,{"$f":"IF(L121=\"\",\" \",LOOKUP(L121,FLOTA!A:A,FLOTA!B:B))","v":" "},"",{"$f":"IF(N121=\"\",\" \",LOOKUP(N121,FLOTA!A:A,FLOTA!H:H))","v":" "},null,null,null,null,"."]
[null,null,null,null,null,null,null,null,null,null,null,null,{"$f":"IF(L122=\"\",\" \",LOOKUP(L122,FLOTA!A:A,FLOTA!B:B))","v":" "},"",{"$f":"IF(N122=\"\",\" \",LOOKUP(N122,FLOTA!A:A,FLOTA!H:H))","v":" "},null,null,null,null,"."]
[null,null,null,null,null,null,null,null,null,null,null,null,{"$f":"IF(L123=\"\",\" \",LOOKUP(L123,FLOTA!A:A,FLOTA!B:B))","v":" "},"",{"$f":"IF(N123=\"\",\" \",LOOKUP(N123,FLOTA!A:A,FLOTA!H:H))","v":" "},null,null,null,null,"."]
[null,null,null,null,null,null,null,null,null,null,null,null,{"$f":"IF(L124=\"\",\" \",LOOKUP(L124,FLOTA!A:A,FLOTA!B:B))","v":" "},"",{"$f":"IF(N124=\"\",\" \",LOOKUP(N124,FLOTA!A:A,FLOTA!H:H))","v":" "},null,null,null,null,"."]
[null,null,null,null,null,null,null,null,null,null,null,null,{"$f":"IF(L125=\"\",\" \",LOOKUP(L125,FLOTA!A:A,FLOTA!B:B))","v":" "},"",{"$f":"IF(N125=\"\",\" \",LOOKUP(N125,FLOTA!A:A,FLOTA!H:H))","v":" "},null,null,null,null,"."]
[null,null,null,null,null,null,null,null,null,null,null,null,{"$f":"IF(L126=\"\",\" \",LOOKUP(L126,FLOTA!A:A,FLOTA!B:B))","v":" "},"",{"$f":"IF(N126=\"\",\" \",LOOKUP(N126,FLOTA!A:A,FLOTA!H:H))","v":" "},null,null,null,null,"."]
[null,null,null,null,null,null,null,null,null,null,null,null,{"$f":"IF(L127=\"\",\" \",LOOKUP(L127,FLOTA!A:A,FLOTA!B:B))","v":" "},"",{"$f":"IF(N127=\"\",\" \",LOOKUP(N127,FLOTA!A:A,FLOTA!H:H))","v":" "},null,null,null,null,"."]
[null,null,null,null,null,null,null,null,null,null,null,null,{"$f":"IF(L128=\"\",\" \",LOOKUP(L128,FLOTA!A:A,FLOTA!B:B))","v":" "},"",{"$f":"IF(N128=\"\",\" \",LOOKUP(N128,FLOTA!A:A,FLOTA!H:H))","v":" "},null,null,null,null,"."]
[null,null,null,null,null,null,null,null,null,null,null,null,{"$f":"IF(L129=\"\",\" \",LOOKUP(L129,FLOTA!A:A,FLOTA!B:B))","v":" "},{"$f":"IF(L129=\"\",\"\",L129)","v":""},{"$f":"IF(N129=\"\",\" \",LOOKUP(N129,FLOTA!A:A,FLOTA!H:H))","v":" "},null,null,null,null,"."]
[null,null,null,null,null,null,null,null,null,null,null,null,{"$f":"IF(L130=\"\",\" \",LOOKUP(L130,FLOTA!A:A,FLOTA!B:B))","v":" "},"",{"$f":"IF(N130=\"\",\" \",LOOKUP(N130,FLOTA!A:A,FLOTA!H:H))","v":" "},null,null,null,null,"."]
[null,null,null,null,null,null,null,null,null,null,null,null,{"$f":"IF(L131=\"\",\" \",LOOKUP(L131,FLOTA!A:A,FLOTA!B:B))","v":" "},"",{"$f":"IF(N131=\"\",\" \",LOOKUP(N131,FLOTA!A:A,FLOTA!H:H))","v":" "},null,null,null,null,"."]
[null,null,null,null,null,null,null,null,null,null,null,null,{"$f":"IF(L132=\"\",\" \",LOOKUP(L132,FLOTA!A:A,FLOTA!B:B))","v":" "},"",{"$f":"IF(N132=\"\",\" \",LOOKUP(N132,FLOTA!A:A,FLOTA!H:H))","v":" "},null,null,null,null,"."]
[null,null,null,null,null,null,null,null,null,null,null,null,{"$f":"IF(L133=\"\",\" \",LOOKUP(L133,FLOTA!A:A,FLOTA!B:B))","v":" "},"",{"$f":"IF(N133=\"\",\" \",LOOKUP(N133,FLOTA!A:A,FLOTA!H:H))","v":" "},null,null,null,null,"."]
[null,null,null,null,null,null,null,null,null,null,null,null,{"$f":"IF(L134=\"\",\" \",LOOKUP(L134,FLOTA!A:A,FLOTA!B:B))","v":" "},"",{"$f":"IF(N134=\"\",\" \",LOOKUP(N134,FLOTA!A:A,FLOTA!H:H))","v":" "},null,null,null,null,"."]
[null,null,null,null,null,null,null,null,null,null,null,null,{"$f":"IF(L135=\"\",\" \",LOOKUP(L135,FLOTA!A:A,FLOTA!B:B))","v":" "},"",{"$f":"IF(N135=\"\",\" \",LOOKUP(N135,FLOTA!A:A,FLOTA!H:H))","v":" "},null,null,null,null,"."]
[null,null,null,null,null,null,null,null,null,null,null,null,{"$f":"IF(L136=\"\",\" \",LOOKUP(L136,FLOTA!A:A,FLOTA!B:B))","v":" "},"",{"$f":"IF(N136=\"\",\" \",LOOKUP(N136,FLOTA!A:A,FLOTA!H:H))","v":" "},null,null,null,null,"."]
[null,null,null,null,null,null,null,null,null,null,null,null,{"$f":"IF(L137=\"\",\" \",LOOKUP(L137,FLOTA!A:A,FLOTA!B:B))","v":" "},"",{"$f":"IF(N137=\"\",\" \",LOOKUP(N137,FLOTA!A:A,FLOTA!H:H))","v":" "},null,null,null,null,"."]
[null,null,null,null,null,null,null,null,null,null,null,null,{"$f":"IF(L138=\"\",\" \",LOOKUP(L138,FLOTA!A:A,FLOTA!B:B))","v":" "},"",{"$f":"IF(N138=\"\",\" \",LOOKUP(N138,FLOTA!A:A,FLOTA!H:H))","v":" "},null,null,null,null,"."]
[null,null,null,null,null,null,null,null,null,null,null,null,{"$f":"IF(L139=\"\",\" \",LOOKUP(L139,FLOTA!A:A,FLOTA!B:B))","v":" "},"",{"$f":"IF(N139=\"\",\" \",LOOKUP(N139,FLOTA!A:A,FLOTA!H:H))","v":" "},null,null,null,null,"."]
[null,null,null,null,null,null,null,null,null,null,null,null,{"$f":"IF(L140=\"\",\" \",LOOKUP(L140,FLOTA!A:A,FLOTA!B:B))","v":" "},"",{"$f":"IF(N140=\"\",\" \",LOOKUP(N140,FLOTA!A:A,FLOTA!H:H))","v":" "},null,null,null,null,"."]
[null,null,null,null,null,null,null,null,null,null,null,null,{"$f":"IF(L141=\"\",\" \",LOOKUP(L141,FLOTA!A:A,FLOTA!B:B))","v":" "},"",{"$f":"IF(N141=\"\",\" \",LOOKUP(N141,FLOTA!A:A,FLOTA!H:H))","v":" "},null,null,null,null,"."]
[null,null,null,null,null,null,null,null,null,null,null,null,{"$f":"IF(L142=\"\",\" \",LOOKUP(L142,FLOTA!A:A,FLOTA!B:B))","v":" "},"",{"$f":"IF(N142=\"\",\" \",LOOKUP(N142,FLOTA!A:A,FLOTA!H:H))","v":" "},null,null,null,null,"."]
[null,null,null,null,null,null,null,null,null,null,null,null,{"$f":"IF(L143=\"\",\" \",LOOKUP(L143,FLOTA!A:A,FLOTA!B:B))","v":" "},"",{"$f":"IF(N143=\"\",\" \",LOOKUP(N143,FLOTA!A:A,FLOTA!H:H))","v":" "},null,null,null,null,"."]
[null,null,null,null,null,null,null,null,null,null,null,null,{"$f":"IF(L144=\"\",\" \",LOOKUP(L144,FLOTA!A:A,FLOTA!B:B))","v":" "},"",{"$f":"IF(N144=\"\",\" \",LOOKUP(N144,FLOTA!A:A,FLOTA!H:H))","v":" "},null,null,null,null,"."]
[null,null,null,null,null,null,null,null,null,null,null,null,{"$f":"IF(L145=\"\",\" \",LOOKUP(L145,FLOTA!A:A,FLOTA!B:B))","v":" "},"",{"$f":"IF(N145=\"\",\" \",LOOKUP(N145,FLOTA!A:A,FLOTA!H:H))","v":" "},null,null,null,null,"."]
[null,null,null,null,null,null,null,null,null,null,null,null,{"$f":"IF(L146=\"\",\" \",LOOKUP(L146,FLOTA!A:A,FLOTA!B:B))","v":" "},"",{"$f":"IF(N146=\"\",\" \",LOOKUP(N146,FLOTA!A:A,FLOTA!H:H))","v":" "},null,null,null,null,"."]
[null,null,null,null,null,null,null,null,null,null,null,null,{"$f":"IF(L147=\"\",\" \",LOOKUP(L147,FLOTA!A:A,FLOTA!B:B))","v":" "},"",{"$f":"IF(N147=\"\",\" \",LOOKUP(N147,FLOTA!A:A,FLOTA!H:H))","v":" "},null,null,null,null,"."]
[null,null,null,null,null,null,null,null,null,null,null,null,{"$f":"IF(L148=\"\",\" \",LOOKUP(L148,FLOTA!A:A,FLOTA!B:B))","v":" "},"",{"$f":"IF(N148=\"\",\" \",LOOKUP(N148,FLOTA!A:A,FLOTA!H:H))","v":" "},null,null,null,null,"."]
[null,null,null,null,null,null,null,null,null,null,null,null,{"$f":"IF(L149=\"\",\" \",LOOKUP(L149,FLOTA!A:A,FLOTA!B:B))","v":" "},"",{"$f":"IF(N149=\"\",\" \",LOOKUP(N149,FLOTA!A:A,FLOTA!H:H))","v":" "},null,null,null,null,"."]
[null,null,null,null,null,null,null,null,null,null,null,null,{"$f":"IF(L150=\"\",\" \",LOOKUP(L150,FLOTA!A:A,FLOTA!B:B))","v":" "},"",{"$f":"IF(N150=\"\",\" \",LOOKUP(N150,FLOTA!A:A,FLOTA!H:H))","v":" "},null,null,null,null,"."]
[null,null,null,null,null,null,null,null,null,null,null,null,{"$f":"IF(L151=\"\",\" \",LOOKUP(L151,FLOTA!A:A,FLOTA!B:B))","v":" "},"",{"$f":"IF(N151=\"\",\" \",LOOKUP(N151,FLOTA!A:A,FLOTA!H:H))","v":" "},null,null,null,null,"."]
[null,null,null,null,null,null,null,null,null,null,null,null,{"$f":"IF(L152=\"\",\" \",LOOKUP(L152,FLOTA!A:A,FLOTA!B:B))","v":" "},"",{"$f":"IF(N152=\"\",\" \",LOOKUP(N152,FLOTA!A:A,FLOTA!H:H))","v":" "},null,null,null,null,"."]
[null,null,null,null,null,null,null,null,null,null,null,null,{"$f":"IF(L153=\"\",\" \",LOOKUP(L153,FLOTA!A:A,FLOTA!B:B))","v":" "},"",{"$f":"IF(N153=\"\",\" \",LOOKUP(N153,FLOTA!A:A,FLOTA!H:H))","v":" "},null,null,null,null,"."]
[null,null,null,null,null,null,null,null,null,null,null,null,{"$f":"IF(L154=\"\",\" \",LOOKUP(L154,FLOTA!A:A,FLOTA!B:B))","v":" "},"",{"$f":"IF(N154=\"\",\" \",LOOKUP(N154,FLOTA!A:A,FLOTA!H:H))","v":" "},null,null,null,null,"."]
[null,null,null,null,null,null,null,null,null,null,null,null,{"$f":"IF(L155=\"\",\" \",LOOKUP(L155,FLOTA!A:A,FLOTA!B:B))","v":" "},"",{"$f":"IF(N155=\"\",\" \",LOOKUP(N155,FLOTA!A:A,FLOTA!H:H))","v":" "},null,null,null,null,"."]
[null,null,null,null,null,null,null,null,null,null,null,null,{"$f":"IF(L156=\"\",\" \",LOOKUP(L156,FLOTA!A:A,FLOTA!B:B))","v":" "},"",{"$f":"IF(N156=\"\",\" \",LOOKUP(N156,FLOTA!A:A,FLOTA!H:H))","v":" "},null,null,null,null,"."]
[null,null,null,null,null,null,null,null,null,null,null,null,{"$f":"IF(L157=\"\",\" \",LOOKUP(L157,FLOTA!A:A,FLOTA!B:B))","v":" "},"",{"$f":"IF(N157=\"\",\" \",LOOKUP(N157,FLOTA!A:A,FLOTA!H:H))","v":" "},null,null,null,null,"."]
[null,null,null,null,null,null,null,null,null,null,null,null,{"$f":"IF(L158=\"\",\" \",LOOKUP(L158,FLOTA!A:A,FLOTA!B:B))","v":" "},"",{"$f":"IF(N158=\"\",\" \",LOOKUP(N158,FLOTA!A:A,FLOTA!H:H))","v":" "},null,null,null,null,"."]
[null,null,null,null,null,null,null,null,null,null,null,null,{"$f":"IF(L159=\"\",\" \",LOOKUP(L159,FLOTA!A:A,FLOTA!B:B))","v":" "},"",{"$f":"IF(N159=\"\",\" \",LOOKUP(N159,FLOTA!A:A,FLOTA!H:H))","v":" "},null,null,null,null,"."]
[null,null,null,null,null,null,null,null,null,null,null,null,{"$f":"IF(L160=\"\",\" \",LOOKUP(L160,FLOTA!A:A,FLOTA!B:B))","v":" "},"",{"$f":"IF(N160=\"\",\" \",LOOKUP(N160,FLOTA!A:A,FLOTA!H:H))","v":" "},null,null,null,null,"."]
[null,null,null,null,null,null,null,null,null,null,null,null,{"$f":"IF(L161=\"\",\" \",LOOKUP(L161,FLOTA!A:A,FLOTA!B:B))","v":" "},"",{"$f":"IF(N161=\"\",\" \",LOOKUP(N161,FLOTA!A:A,FLOTA!H:H))","v":" "},null,null,null,null,"."]
[null,null,null,null,null,null,null,null,null,null,null,null,{"$f":"IF(L162=\"\",\" \",LOOKUP(L162,FLOTA!A:A,FLOTA!B:B))","v":" "},"",{"$f":"IF(N162=\"\",\" \",LOOKUP(N162,FLOTA!A:A,FLOTA!H:H))","v":" "},null,null,null,null,"."]
[null,null,null,null,null,null,null,null,null,null,null,null,{"$f":"IF(L163=\"\",\" \",LOOKUP(L163,FLOTA!A:A,FLOTA!B:B))","v":" "},"",{"$f":"IF(N163=\"\",\" \",LOOKUP(N163,FLOTA!A:A,FLOTA!H:H))","v":" "},null,null,null,null,"."]
[null,null,null,null,null,null,null,null,null,null,null,null,{"$f":"IF(L164=\"\",\" \",LOOKUP(L164,FLOTA!A:A,FLOTA!B:B))","v":" "},"",{"$f":"IF(N164=\"\",\" \",LOOKUP(N164,FLOTA!A:A,FLOTA!H:H))","v":" "},null,null,null,null,"."]
[null,null,null,null,null,null,null,null,null,null,null,null,{"$f":"IF(L165=\"\",\" \",LOOKUP(L165,FLOTA!A:A,FLOTA!B:B))","v":" "},"",{"$f":"IF(N165=\"\",\" \",LOOKUP(N165,FLOTA!A:A,FLOTA!H:H))","v":" "},null,null,null,null,"."]
[null,null,null,null,null,null,null,null,null,null,null,null,{"$f":"IF(L166=\"\",\" \",LOOKUP(L166,FLOTA!A:A,FLOTA!B:B))","v":" "},"",{"$f":"IF(N166=\"\",\" \",LOOKUP(N166,FLOTA!A:A,FLOTA!H:H))","v":" "},null,null,null,null,"."]
[null,null,null,null,null,null,null,null,null,null,null,null,{"$f":"IF(L167=\"\",\" \",LOOKUP(L167,FLOTA!A:A,FLOTA!B:B))","v":" "},"",{"$f":"IF(N167=\"\",\" \",LOOKUP(N167,FLOTA!A:A,FLOTA!H:H))","v":" "},null,null,null,null,"."]
[null,null,null,null,null,null,null,null,null,null,null,null,{"$f":"IF(L168=\"\",\" \",LOOKUP(L168,FLOTA!A:A,FLOTA!B:B))","v":" "},"",{"$f":"IF(N168=\"\",\" \",LOOKUP(N168,FLOTA!A:A,FLOTA!H:H))","v":" "},null,null,null,null,"."]
[null,null,null,null,null,null,null,null,null,null,null,null,{"$f":"IF(L169=\"\",\" \",LOOKUP(L169,FLOTA!A:A,FLOTA!B:B))","v":" "},"",{"$f":"IF(N169=\"\",\" \",LOOKUP(N169,FLOTA!A:A,FLOTA!H:H))","v":" "},null,null,null,null,"."]
[null,null,null,null,null,null,null,null,null,null,null,null,{"$f":"IF(L170=\"\",\" \",LOOKUP(L170,FLOTA!A:A,FLOTA!B:B))","v":" "},"",{"$f":"IF(N170=\"\",\" \",LOOKUP(N170,FLOTA!A:A,FLOTA!H:H))","v":" "},null,null,null,null,"."]
[null,null,null,null,null,null,null,null,null,null,null,null,{"$f":"IF(L171=\"\",\" \",LOOKUP(L171,FLOTA!A:A,FLOTA!B:B))","v":" "},"",{"$f":"IF(N171=\"\",\" \",LOOKUP(N171,FLOTA!A:A,FLOTA!H:H))","v":" "},null,null,null,null,"."]
[null,null,null,null,null,null,null,null,null,null,null,null,{"$f":"IF(L172=\"\",\" \",LOOKUP(L172,FLOTA!A:A,FLOTA!B:B))","v":" "},"",{"$f":"IF(N172=\"\",\" \",LOOKUP(N172,FLOTA!A:A,FLOTA!H:H))","v":" "},null,null,null,null,"."]
[null,null,null,null,null,null,null,null,null,null,null,null,{"$f":"IF(L173=\"\",\" \",LOOKUP(L173,FLOTA!A:A,FLOTA!B:B))","v":" "},"",{"$f":"IF(N173=\"\",\" \",LOOKUP(N173,FLOTA!A:A,FLOTA!H:H))","v":" "},null,null,null,null,"."]
[null,null,null,null,null,null,null,null,null,null,null,null,{"$f":"IF(L174=\"\",\" \",LOOKUP(L174,FLOTA!A:A,FLOTA!B:B))","v":" "},"",{"$f":"IF(N174=\"\",\" \",LOOKUP(N174,FLOTA!A:A,FLOTA!H:H))","v":" "},null,null,null,null,"."]
[null,null,null,null,null,null,null,null,null,null,null,null,{"$f":"IF(L175=\"\",\" \",LOOKUP(L175,FLOTA!A:A,FLOTA!B:B))","v":" "},"",{"$f":"IF(N175=\"\",\" \",LOOKUP(N175,FLOTA!A:A,FLOTA!H:H))","v":" "},null,null,null,null,"."]
[null,null,null,null,null,null,null,null,null,null,null,null,{"$f":"IF(L176=\"\",\" \",LOOKUP(L176,FLOTA!A:A,FLOTA!B:B))","v":" "},"",{"$f":"IF(N176=\"\",\" \",LOOKUP(N176,FLOTA!A:A,FLOTA!H:H))","v":" "},null,null,null,null,"."]
[null,null,null,null,null,null,null,null,null,null,null,null,{"$f":"IF(L177=\"\",\" \",LOOKUP(L177,FLOTA!A:A,FLOTA!B:B))","v":" "},"",{"$f":"IF(N177=\"\",\" \",LOOKUP(N177,FLOTA!A:A,FLOTA!H:H))","v":" "},null,null,null,null,"."]
[null,null,null,null,null,null,null,null,null,null,null,null,{"$f":"IF(L178=\"\",\" \",LOOKUP(L178,FLOTA!A:A,FLOTA!B:B))","v":" "},"",{"$f":"IF(N178=\"\",\" \",LOOKUP(N178,FLOTA!A:A,FLOTA!H:H))","v":" "},null,null,null,null,"."]
[null,null,null,null,null,null,null,null,null,null,null,null,{"$f":"IF(L179=\"\",\" \",LOOKUP(L179,FLOTA!A:A,FLOTA!B:B))","v":" "},"",{"$f":"IF(N179=\"\",\" \",LOOKUP(N179,FLOTA!A:A,FLOTA!H:H))","v":" "},null,null,null,null,"."]
[null,null,null,null,null,null,null,null,null,null,null,null,{"$f":"IF(L180=\"\",\" \",LOOKUP(L180,FLOTA!A:A,FLOTA!B:B))","v":" "},"",{"$f":"IF(N180=\"\",\" \",LOOKUP(N180,FLOTA!A:A,FLOTA!H:H))","v":" "},null,null,null,null,"."]
[null,null,null,null,null,null,null,null,null,null,null,null,{"$f":"IF(L181=\"\",\" \",LOOKUP(L181,FLOTA!A:A,FLOTA!B:B))","v":" "},"",{"$f":"IF(N181=\"\",\" \",LOOKUP(N181,FLOTA!A:A,FLOTA!H:H))","v":" "},null,null,null,null,"."]
[null,null,null,null,null,null,null,null,null,null,null,null,{"$f":"IF(L182=\"\",\" \",LOOKUP(L182,FLOTA!A:A,FLOTA!B:B))","v":" "},"",{"$f":"IF(N182=\"\",\" \",LOOKUP(N182,FLOTA!A:A,FLOTA!H:H))","v":" "},null,null,null,null,"."]
[null,null,null,null,null,null,null,null,null,null,null,null,{"$f":"IF(L183=\"\",\" \",LOOKUP(L183,FLOTA!A:A,FLOTA!B:B))","v":" "},"",{"$f":"IF(N183=\"\",\" \",LOOKUP(N183,FLOTA!A:A,FLOTA!H:H))","v":" "},null,null,null,null,"."]
[null,null,null,null,null,null,null,null,null,null,null,null,{"$f":"IF(L184=\"\",\" \",LOOKUP(L184,FLOTA!A:A,FLOTA!B:B))","v":" "},"",{"$f":"IF(N184=\"\",\" \",LOOKUP(N184,FLOTA!A:A,FLOTA!H:H))","v":" "},null,null,null,null,"."]
[null,null,null,null,null,null,null,null,null,null,null,null,{"$f":"IF(L185=\"\",\" \",LOOKUP(L185,FLOTA!A:A,FLOTA!B:B))","v":" "},"",{"$f":"IF(N185=\"\",\" \",LOOKUP(N185,FLOTA!A:A,FLOTA!H:H))","v":" "},null,null,null,null,"."]
[null,null,null,null,null,null,null,null,null,null,null,null,{"$f":"IF(L186=\"\",\" \",LOOKUP(L186,FLOTA!A:A,FLOTA!B:B))","v":" "},"",{"$f":"IF(N186=\"\",\" \",LOOKUP(N186,FLOTA!A:A,FLOTA!H:H))","v":" "},null,null,null,null,"."]
[null,null,null,null,null,null,null,null,null,null,null,null,{"$f":"IF(L187=\"\",\" \",LOOKUP(L187,FLOTA!A:A,FLOTA!B:B))","v":" "},"",{"$f":"IF(N187=\"\",\" \",LOOKUP(N187,FLOTA!A:A,FLOTA!H:H))","v":" "},null,null,null,null,"."]
[null,null,null,null,null,null,null,null,null,null,null,null,{"$f":"IF(L188=\"\",\" \",LOOKUP(L188,FLOTA!A:A,FLOTA!B:B))","v":" "},"",{"$f":"IF(N188=\"\",\" \",LOOKUP(N188,FLOTA!A:A,FLOTA!H:H))","v":" "},null,null,null,null,"."]
[null,null,null,null,null,null,null,null,null,null,null,null,{"$f":"IF(L189=\"\",\" \",LOOKUP(L189,FLOTA!A:A,FLOTA!B:B))","v":" "},"",{"$f":"IF(N189=\"\",\" \",LOOKUP(N189,FLOTA!A:A,FLOTA!H:H))","v":" "},null,null,null,null,"."]
[null,null,null,null,null,null,null,null,null,null,null,null,{"$f":"IF(L190=\"\",\" \",LOOKUP(L190,FLOTA!A:A,FLOTA!B:B))","v":" "},"",{"$f":"IF(N190=\"\",\" \",LOOKUP(N190,FLOTA!A:A,FLOTA!H:H))","v":" "},null,null,null,null,"."]
[null,null,null,null,null,null,null,null,null,null,null,null,{"$f":"IF(L191=\"\",\" \",LOOKUP(L191,FLOTA!A:A,FLOTA!B:B))","v":" "},"",{"$f":"IF(N191=\"\",\" \",LOOKUP(N191,FLOTA!A:A,FLOTA!H:H))","v":" "},null,null,null,null,"."]
[null,null,null,null,null,null,null,null,null,null,null,null,{"$f":"IF(L192=\"\",\" \",LOOKUP(L192,FLOTA!A:A,FLOTA!B:B))","v":" "},"",{"$f":"IF(N192=\"\",\" \",LOOKUP(N192,FLOTA!A:A,FLOTA!H:H))","v":" "},null,null,null,null,"."]
[null,null,null,null,null,null,null,null,null,null,null,null,{"$f":"IF(L193=\"\",\" \",LOOKUP(L193,FLOTA!A:A,FLOTA!B:B))","v":" "},{"$f":"IF(L193=\"\",\"\",L193)","v":""},{"$f":"IF(N193=\"\",\" \",LOOKUP(N193,FLOTA!A:A,FLOTA!H:H))","v":" "},null,null,null,null,"."]
[null,null,null,null,null,null,null,null,null,null,null,null,{"$f":"IF(L194=\"\",\" \",LOOKUP(L194,FLOTA!A:A,FLOTA!B:B))","v":" "},"",{"$f":"IF(N194=\"\",\" \",LOOKUP(N194,FLOTA!A:A,FLOTA!H:H))","v":" "},null,null,null,null,"."]
[null,null,null,null,null,null,null,null,null,null,null,null,{"$f":"IF(L195=\"\",\" \",LOOKUP(L195,FLOTA!A:A,FLOTA!B:B))","v":" "},"",{"$f":"IF(N195=\"\",\" \",LOOKUP(N195,FLOTA!A:A,FLOTA!H:H))","v":" "},null,null,null,null,"."]
[null,null,null,null,null,null,null,null,null,null,null,null,{"$f":"IF(L196=\"\",\" \",LOOKUP(L196,FLOTA!A:A,FLOTA!B:B))","v":" "},"",{"$f":"IF(N196=\"\",\" \",LOOKUP(N196,FLOTA!A:A,FLOTA!H:H))","v":" "},null,null,null,null,"."]
[null,null,null,null,null,null,null,null,null,null,null,null,{"$f":"IF(L197=\"\",\" \",LOOKUP(L197,FLOTA!A:A,FLOTA!B:B))","v":" "},"",{"$f":"IF(N197=\"\",\" \",LOOKUP(N197,FLOTA!A:A,FLOTA!H:H))","v":" "},null,null,null,null,"."]
[null,null,null,null,null,null,null,null,null,null,null,null,{"$f":"IF(L198=\"\",\" \",LOOKUP(L198,FLOTA!A:A,FLOTA!B:B))","v":" "},"",{"$f":"IF(N198=\"\",\" \",LOOKUP(N198,FLOTA!A:A,FLOTA!H:H))","v":" "},null,null,null,null,"."]
[null,null,null,null,null,null,null,null,null,null,null,null,{"$f":"IF(L199=\"\",\" \",LOOKUP(L199,FLOTA!A:A,FLOTA!B:B))","v":" "},"",{"$f":"IF(N199=\"\",\" \",LOOKUP(N199,FLOTA!A:A,FLOTA!H:H))","v":" "},null,null,null,null,"."]
[null,null,null,null,null,null,null,null,null,null,null,null,{"$f":"IF(L200=\"\",\" \",LOOKUP(L200,FLOTA!A:A,FLOTA!B:B))","v":" "},"",{"$f":"IF(N200=\"\",\" \",LOOKUP(N200,FLOTA!A:A,FLOTA!H:H))","v":" "},null,null,null,null,"."]
[null,null,null,null,null,null,null,null,null,null,null,null,{"$f":"IF(L201=\"\",\" \",LOOKUP(L201,FLOTA!A:A,FLOTA!B:B))","v":" "},"",{"$f":"IF(N201=\"\",\" \",LOOKUP(N201,FLOTA!A:A,FLOTA!H:H))","v":" "},null,null,null,null,"."]
[null,null,null,null,null,null,null,null,null,null,null,null,{"$f":"IF(L202=\"\",\" \",LOOKUP(L202,FLOTA!A:A,FLOTA!B:B))","v":" "},"",{"$f":"IF(N202=\"\",\" \",LOOKUP(N202,FLOTA!A:A,FLOTA!H:H))","v":" "},null,null,null,null,"."]
[null,null,null,null,null,null,null,null,null,null,null,null,{"$f":"IF(L203=\"\",\" \",LOOKUP(L203,FLOTA!A:A,FLOTA!B:B))","v":" "},"",{"$f":"IF(N203=\"\",\" \",LOOKUP(N203,FLOTA!A:A,FLOTA!H:H))","v":" "},null,null,null,null,"."]
[null,null,null,null,null,null,null,null,null,null,null,null,{"$f":"IF(L204=\"\",\" \",LOOKUP(L204,FLOTA!A:A,FLOTA!B:B))","v":" "},"",{"$f":"IF(N204=\"\",\" \",LOOKUP(N204,FLOTA!A:A,FLOTA!H:H))","v":" "},null,null,null,null,"."]
[null,null,null,null,null,null,null,null,null,null,null,null,{"$f":"IF(L205=\"\",\" \",LOOKUP(L205,FLOTA!A:A,FLOTA!B:B))","v":" "},"",{"$f":"IF(N205=\"\",\" \",LOOKUP(N205,FLOTA!A:A,FLOTA!H:H))","v":" "},null,null,null,null,"."]
[null,null,null,null,null,null,null,null,null,null,null,null,{"$f":"IF(L206=\"\",\" \",LOOKUP(L206,FLOTA!A:A,FLOTA!B:B))","v":" "},"",{"$f":"IF(N206=\"\",\" \",LOOKUP(N206,FLOTA!A:A,FLOTA!H:H))","v":" "},null,null,null,null,"."]
[null,null,null,null,null,null,null,null,null,null,null,null,{"$f":"IF(L207=\"\",\" \",LOOKUP(L207,FLOTA!A:A,FLOTA!B:B))","v":" "},"",{"$f":"IF(N207=\"\",\" \",LOOKUP(N207,FLOTA!A:A,FLOTA!H:H))","v":" "},null,null,null,null,"."]
[null,null,null,null,null,null,null,null,null,null,null,null,{"$f":"IF(L208=\"\",\" \",LOOKUP(L208,FLOTA!A:A,FLOTA!B:B))","v":" "},"",{"$f":"IF(N208=\"\",\" \",LOOKUP(N208,FLOTA!A:A,FLOTA!H:H))","v":" "},null,null,null,null,"."]
[null,null,null,null,null,null,null,null,null,null,null,null,{"$f":"IF(L209=\"\",\" \",LOOKUP(L209,FLOTA!A:A,FLOTA!B:B))","v":" "},"",{"$f":"IF(N209=\"\",\" \",LOOKUP(N209,FLOTA!A:A,FLOTA!H:H))","v":" "},null,null,null,null,"."]
[null,null,null,null,null,null,null,null,null,null,null,null,{"$f":"IF(L210=\"\",\" \",LOOKUP(L210,FLOTA!A:A,FLOTA!B:B))","v":" "},"",{"$f":"IF(N210=\"\",\" \",LOOKUP(N210,FLOTA!A:A,FLOTA!H:H))","v":" "},null,null,null,null,"."]
[null,null,null,null,null,null,null,null,null,null,null,null,{"$f":"IF(L211=\"\",\" \",LOOKUP(L211,FLOTA!A:A,FLOTA!B:B))","v":" "},"",{"$f":"IF(N211=\"\",\" \",LOOKUP(N211,FLOTA!A:A,FLOTA!H:H))","v":" "},null,null,null,null,"."]
[null,null,null,null,null,null,null,null,null,null,null,null,{"$f":"IF(L212=\"\",\" \",LOOKUP(L212,FLOTA!A:A,FLOTA!B:B))","v":" "},"",{"$f":"IF(N212=\"\",\" \",LOOKUP(N212,FLOTA!A:A,FLOTA!H:H))","v":" "},null,null,null,null,"."]
[null,null,null,null,null,null,null,null,null,null,null,null,{"$f":"IF(L213=\"\",\" \",LOOKUP(L213,FLOTA!A:A,FLOTA!B:B))","v":" "},"",{"$f":"IF(N213=\"\",\" \",LOOKUP(N213,FLOTA!A:A,FLOTA!H:H))","v":" "},null,null,null,null,"."]
[null,null,null,null,null,null,null,null,null,null,null,null,{"$f":"IF(L214=\"\",\" \",LOOKUP(L214,FLOTA!A:A,FLOTA!B:B))","v":" "},"",{"$f":"IF(N214=\"\",\" \",LOOKUP(N214,FLOTA!A:A,FLOTA!H:H))","v":" "},null,null,null,null,"."]
[null,null,null,null,null,null,null,null,null,null,null,null,{"$f":"IF(L215=\"\",\" \",LOOKUP(L215,FLOTA!A:A,FLOTA!B:B))","v":" "},"",{"$f":"IF(N215=\"\",\" \",LOOKUP(N215,FLOTA!A:A,FLOTA!H:H))","v":" "},null,null,null,null,"."]
[null,null,null,null,null,null,null,null,null,null,null,null,{"$f":"IF(L216=\"\",\" \",LOOKUP(L216,FLOTA!A:A,FLOTA!B:B))","v":" "},"",{"$f":"IF(N216=\"\",\" \",LOOKUP(N216,FLOTA!A:A,FLOTA!H:H))","v":" "},null,null,null,null,"."]
[null,null,null,null,null,null,null,null,null,null,null,null,{"$f":"IF(L217=\"\",\" \",LOOKUP(L217,FLOTA!A:A,FLOTA!B:B))","v":" "},"",{"$f":"IF(N217=\"\",\" \",LOOKUP(N217,FLOTA!A:A,FLOTA!H:H))","v":" "},null,null,null,null,"."]
[null,null,null,null,null,null,null,null,null,null,null,null,{"$f":"IF(L218=\"\",\" \",LOOKUP(L218,FLOTA!A:A,FLOTA!B:B))","v":" "},"",{"$f":"IF(N218=\"\",\" \",LOOKUP(N218,FLOTA!A:A,FLOTA!H:H))","v":" "},null,null,null,null,"."]
[null,null,null,null,null,null,null,null,null,null,null,null,{"$f":"IF(L219=\"\",\" \",LOOKUP(L219,FLOTA!A:A,FLOTA!B:B))","v":" "},"",{"$f":"IF(N219=\"\",\" \",LOOKUP(N219,FLOTA!A:A,FLOTA!H:H))","v":" "},null,null,null,null,"."]
[null,null,null,null,null,null,null,null,null,null,null,null,{"$f":"IF(L220=\"\",\" \",LOOKUP(L220,FLOTA!A:A,FLOTA!B:B))","v":" "},"",{"$f":"IF(N220=\"\",\" \",LOOKUP(N220,FLOTA!A:A,FLOTA!H:H))","v":" "},null,null,null,null,"."]
[null,null,null,null,null,null,null,null,null,null,null,null,{"$f":"IF(L221=\"\",\" \",LOOKUP(L221,FLOTA!A:A,FLOTA!B:B))","v":" "},"",{"$f":"IF(N221=\"\",\" \",LOOKUP(N221,FLOTA!A:A,FLOTA!H:H))","v":" "},null,null,null,null,"."]
[null,null,null,null,null,null,null,null,null,null,null,null,{"$f":"IF(L222=\"\",\" \",LOOKUP(L222,FLOTA!A:A,FLOTA!B:B))","v":" "},"",{"$f":"IF(N222=\"\",\" \",LOOKUP(N222,FLOTA!A:A,FLOTA!H:H))","v":" "},null,null,null,null,"."]
[null,null,null,null,null,null,null,null,null,null,null,null,{"$f":"IF(L223=\"\",\" \",LOOKUP(L223,FLOTA!A:A,FLOTA!B:B))","v":" "},"",{"$f":"IF(N223=\"\",\" \",LOOKUP(N223,FLOTA!A:A,FLOTA!H:H))","v":" "},null,null,null,null,"."]
[null,null,null,null,null,null,null,null,null,null,null,null,{"$f":"IF(L224=\"\",\" \",LOOKUP(L224,FLOTA!A:A,FLOTA!B:B))","v":" "},"",{"$f":"IF(N224=\"\",\" \",LOOKUP(N224,FLOTA!A:A,FLOTA!H:H))","v":" "},null,null,null,null,"."]
[null,null,null,null,null,null,null,null,null,null,null,null,{"$f":"IF(L225=\"\",\" \",LOOKUP(L225,FLOTA!A:A,FLOTA!B:B))","v":" "},"",{"$f":"IF(N225=\"\",\" \",LOOKUP(N225,FLOTA!A:A,FLOTA!H:H))","v":" "},null,null,null,null,"."]
[null,null,null,null,null,null,null,null,null,null,null,null,{"$f":"IF(L226=\"\",\" \",LOOKUP(L226,FLOTA!A:A,FLOTA!B:B))","v":" "},"",{"$f":"IF(N226=\"\",\" \",LOOKUP(N226,FLOTA!A:A,FLOTA!H:H))","v":" "},null,null,null,null,"."]
[null,null,null,null,null,null,null,null,null,null,null,null,{"$f":"IF(L227=\"\",\" \",LOOKUP(L227,FLOTA!A:A,FLOTA!B:B))","v":" "},"",{"$f":"IF(N227=\"\",\" \",LOOKUP(N227,FLOTA!A:A,FLOTA!H:H))","v":" "},null,null,null,null,"."]
[null,null,null,null,null,null,null,null,null,null,null,null,{"$f":"IF(L228=\"\",\" \",LOOKUP(L228,FLOTA!A:A,FLOTA!B:B))","v":" "},"",{"$f":"IF(N228=\"\",\" \",LOOKUP(N228,FLOTA!A:A,FLOTA!H:H))","v":" "},null,null,null,null,"."]
[null,null,null,null,null,null,null,null,null,null,null,null,{"$f":"IF(L229=\"\",\" \",LOOKUP(L229,FLOTA!A:A,FLOTA!B:B))","v":" "},"",{"$f":"IF(N229=\"\",\" \",LOOKUP(N229,FLOTA!A:A,FLOTA!H:H))","v":" "},null,null,null,null,"."]
[null,null,null,null,null,null,null,null,null,null,null,null,{"$f":"IF(L230=\"\",\" \",LOOKUP(L230,FLOTA!A:A,FLOTA!B:B))","v":" "},"",{"$f":"IF(N230=\"\",\" \",LOOKUP(N230,FLOTA!A:A,FLOTA!H:H))","v":" "},null,null,null,null,"."]
[null,null,null,null,null,null,null,null,null,null,null,null,{"$f":"IF(L231=\"\",\" \",LOOKUP(L231,FLOTA!A:A,FLOTA!B:B))","v":" "},"",{"$f":"IF(N231=\"\",\" \",LOOKUP(N231,FLOTA!A:A,FLOTA!H:H))","v":" "},null,null,null,null,"."]
[null,null,null,null,null,null,null,null,null,null,null,null,{"$f":"IF(L232=\"\",\" \",LOOKUP(L232,FLOTA!A:A,FLOTA!B:B))","v":" "},"",{"$f":"IF(N232=\"\",\" \",LOOKUP(N232,FLOTA!A:A,FLOTA!H:H))","v":" "},null,null,null,null,"."]
[null,null,null,null,null,null,null,null,null,null,null,null,{"$f":"IF(L233=\"\",\" \",LOOKUP(L233,FLOTA!A:A,FLOTA!B:B))","v":" "},"",{"$f":"IF(N233=\"\",\" \",LOOKUP(N233,FLOTA!A:A,FLOTA!H:H))","v":" "},null,null,null,null,"."]
[null,null,null,null,null,null,null,null,null,null,null,null,{"$f":"IF(L234=\"\",\" \",LOOKUP(L234,FLOTA!A:A,FLOTA!B:B))","v":" "},"",{"$f":"IF(N234=\"\",\" \",LOOKUP(N234,FLOTA!A:A,FLOTA!H:H))","v":" "},null,null,null,null,"."]
[null,null,null,null,null,null,null,null,null,null,null,null,{"$f":"IF(L235=\"\",\" \",LOOKUP(L235,FLOTA!A:A,FLOTA!B:B))","v":" "},"",{"$f":"IF(N235=\"\",\" \",LOOKUP(N235,FLOTA!A:A,FLOTA!H:H))","v":" "},null,null,null,null,"."]
[null,null,null,null,null,null,null,null,null,null,null,null,{"$f":"IF(L236=\"\",\" \",LOOKUP(L236,FLOTA!A:A,FLOTA!B:B))","v":" "},"",{"$f":"IF(N236=\"\",\" \",LOOKUP(N236,FLOTA!A:A,FLOTA!H:H))","v":" "},null,null,null,null,"."]
[null,null,null,null,null,null,null,null,null,null,null,null,{"$f":"IF(L237=\"\",\" \",LOOKUP(L237,FLOTA!A:A,FLOTA!B:B))","v":" "},"",{"$f":"IF(N237=\"\",\" \",LOOKUP(N237,FLOTA!A:A,FLOTA!H:H))","v":" "},null,null,null,null,"."]
[null,null,null,null,null,null,null,null,null,null,null,null,{"$f":"IF(L238=\"\",\" \",LOOKUP(L238,FLOTA!A:A,FLOTA!B:B))","v":" "},"",{"$f":"IF(N238=\"\",\" \",LOOKUP(N238,FLOTA!A:A,FLOTA!H:H))","v":" "},null,null,null,null,"."]
[null,null,null,null,null,null,null,null,null,null,null,null,{"$f":"IF(L239=\"\",\" \",LOOKUP(L239,FLOTA!A:A,FLOTA!B:B))","v":" "},"",{"$f":"IF(N239=\"\",\" \",LOOKUP(N239,FLOTA!A:A,FLOTA!H:H))","v":" "},null,null,null,null,"."]
[null,null,null,null,null,null,null,null,null,null,null,null,{"$f":"IF(L240=\"\",\" \",LOOKUP(L240,FLOTA!A:A,FLOTA!B:B))","v":" "},"",{"$f":"IF(N240=\"\",\" \",LOOKUP(N240,FLOTA!A:A,FLOTA!H:H))","v":" "},null,null,null,null,"."]
[null,null,null,null,null,null,null,null,null,null,null,null,{"$f":"IF(L241=\"\",\" \",LOOKUP(L241,FLOTA!A:A,FLOTA!B:B))","v":" "},"",{"$f":"IF(N241=\"\",\" \",LOOKUP(N241,FLOTA!A:A,FLOTA!H:H))","v":" "},null,null,null,null,"."]
[null,null,null,null,null,null,null,null,null,null,null,null,{"$f":"IF(L242=\"\",\" \",LOOKUP(L242,FLOTA!A:A,FLOTA!B:B))","v":" "},"",{"$f":"IF(N242=\"\",\" \",LOOKUP(N242,FLOTA!A:A,FLOTA!H:H))","v":" "},null,null,null,null,"."]
[null,null,null,null,null,null,null,null,null,null,null,null,{"$f":"IF(L243=\"\",\" \",LOOKUP(L243,FLOTA!A:A,FLOTA!B:B))","v":" "},"",{"$f":"IF(N243=\"\",\" \",LOOKUP(N243,FLOTA!A:A,FLOTA!H:H))","v":" "},null,null,null,null,"."]
[null,null,null,null,null,null,null,null,null,null,null,null,{"$f":"IF(L244=\"\",\" \",LOOKUP(L244,FLOTA!A:A,FLOTA!B:B))","v":" "},"",{"$f":"IF(N244=\"\",\" \",LOOKUP(N244,FLOTA!A:A,FLOTA!H:H))","v":" "},null,null,null,null,"."]
[null,null,null,null,null,null,null,null,null,null,null,null,{"$f":"IF(L245=\"\",\" \",LOOKUP(L245,FLOTA!A:A,FLOTA!B:B))","v":" "},"",{"$f":"IF(N245=\"\",\" \",LOOKUP(N245,FLOTA!A:A,FLOTA!H:H))","v":" "},null,null,null,null,"."]
[null,null,null,null,null,null,null,null,null,null,null,null,{"$f":"IF(L246=\"\",\" \",LOOKUP(L246,FLOTA!A:A,FLOTA!B:B))","v":" "},"",{"$f":"IF(N246=\"\",\" \",LOOKUP(N246,FLOTA!A:A,FLOTA!H:H))","v":" "},null,null,null,null,"."]
[null,null,null,null,null,null,null,null,null,null,null,null,{"$f":"IF(L247=\"\",\" \",LOOKUP(L247,FLOTA!A:A,FLOTA!B:B))","v":" "},"",{"$f":"IF(N247=\"\",\" \",LOOKUP(N247,FLOTA!A:A,FLOTA!H:H))","v":" "},null,null,null,null,"."]
[null,null,null,null,null,null,null,null,null,null,null,null,{"$f":"IF(L248=\"\",\" \",LOOKUP(L248,FLOTA!A:A,FLOTA!B:B))","v":" "},"",{"$f":"IF(N248=\"\",\" \",LOOKUP(N248,FLOTA!A:A,FLOTA!H:H))","v":" "},null,null,null,null,"."]
[null,null,null,null,null,null,null,null,null,null,null,null,{"$f":"IF(L249=\"\",\" \",LOOKUP(L249,FLOTA!A:A,FLOTA!B:B))","v":" "},"",{"$f":"IF(N249=\"\",\" \",LOOKUP(N249,FLOTA!A:A,FLOTA!H:H))","v":" "},null,null,null,null,"."]
[null,null,null,null,null,null,null,null,null,null,null,null,{"$f":"IF(L250=\"\",\" \",LOOKUP(L250,FLOTA!A:A,FLOTA!B:B))","v":" "},"",{"$f":"IF(N250=\"\",\" \",LOOKUP(N250,FLOTA!A:A,FLOTA!H:H))","v":" "},null,null,null,null,"."]
[null,null,null,null,null,null,null,null,null,null,null,null,{"$f":"IF(L251=\"\",\" \",LOOKUP(L251,FLOTA!A:A,FLOTA!B:B))","v":" "},"",{"$f":"IF(N251=\"\",\" \",LOOKUP(N251,FLOTA!A:A,FLOTA!H:H))","v":" "},null,null,null,null,"."]
[null,null,null,null,null,null,null,null,null,null,null,null,{"$f":"IF(L252=\"\",\" \",LOOKUP(L252,FLOTA!A:A,FLOTA!B:B))","v":" "},"",{"$f":"IF(N252=\"\",\" \",LOOKUP(N252,FLOTA!A:A,FLOTA!H:H))","v":" "},null,null,null,null,"."]
[null,null,null,null,null,null,null,null,null,null,null,null,{"$f":"IF(L253=\"\",\" \",LOOKUP(L253,FLOTA!A:A,FLOTA!B:B))","v":" "},"",{"$f":"IF(N253=\"\",\" \",LOOKUP(N253,FLOTA!A:A,FLOTA!H:H))","v":" "},null,null,null,null,"."]
[null,null,null,null,null,null,null,null,null,null,null,null,{"$f":"IF(L254=\"\",\" \",LOOKUP(L254,FLOTA!A:A,FLOTA!B:B))","v":" "},"",{"$f":"IF(N254=\"\",\" \",LOOKUP(N254,FLOTA!A:A,FLOTA!H:H))","v":" "},null,null,null,null,"."]
[null,null,null,null,null,null,null,null,null,null,null,null,{"$f":"IF(L255=\"\",\" \",LOOKUP(L255,FLOTA!A:A,FLOTA!B:B))","v":" "},"",{"$f":"IF(N255=\"\",\" \",LOOKUP(N255,FLOTA!A:A,FLOTA!H:H))","v":" "},null,null,null,null,"."]
[null,null,null,null,null,null,null,null,null,null,null,null,{"$f":"IF(L256=\"\",\" \",LOOKUP(L256,FLOTA!A:A,FLOTA!B:B))","v":" "},"",{"$f":"IF(N256=\"\",\" \",LOOKUP(N256,FLOTA!A:A,FLOTA!H:H))","v":" "},null,null,null,null,"."]
[null,null,null,null,null,null,null,null,null,null,null,null,{"$f":"IF(L257=\"\",\" \",LOOKUP(L257,FLOTA!A:A,FLOTA!B:B))","v":" "},{"$f":"IF(L257=\"\",\"\",L257)","v":""},{"$f":"IF(N257=\"\",\" \",LOOKUP(N257,FLOTA!A:A,FLOTA!H:H))","v":" "},null,null,null,null,"."]
[null,null,null,null,null,null,null,null,null,null,null,null,{"$f":"IF(L258=\"\",\" \",LOOKUP(L258,FLOTA!A:A,FLOTA!B:B))","v":" "},"",{"$f":"IF(N258=\"\",\" \",LOOKUP(N258,FLOTA!A:A,FLOTA!H:H))","v":" "},null,null,null,null,"."]
[null,null,null,null,null,null,null,null,null,null,null,null,{"$f":"IF(L259=\"\",\" \",LOOKUP(L259,FLOTA!A:A,FLOTA!B:B))","v":" "},"",{"$f":"IF(N259=\"\",\" \",LOOKUP(N259,FLOTA!A:A,FLOTA!H:H))","v":" "},null,null,null,null,"."]
[null,null,null,null,null,null,null,null,null,null,null,null,{"$f":"IF(L260=\"\",\" \",LOOKUP(L260,FLOTA!A:A,FLOTA!B:B))","v":" "},"",{"$f":"IF(N260=\"\",\" \",LOOKUP(N260,FLOTA!A:A,FLOTA!H:H))","v":" "},null,null,null,null,"."]
[null,null,null,null,null,null,null,null,null,null,null,null,{"$f":"IF(L261=\"\",\" \",LOOKUP(L261,FLOTA!A:A,FLOTA!B:B))","v":" "},"",{"$f":"IF(N261=\"\",\" \",LOOKUP(N261,FLOTA!A:A,FLOTA!H:H))","v":" "},null,null,null,null,"."]
[null,null,null,null,null,null,null,null,null,null,null,null,{"$f":"IF(L262=\"\",\" \",LOOKUP(L262,FLOTA!A:A,FLOTA!B:B))","v":" "},"",{"$f":"IF(N262=\"\",\" \",LOOKUP(N262,FLOTA!A:A,FLOTA!H:H))","v":" "},null,null,null,null,"."]
[null,null,null,null,null,null,null,null,null,null,null,null,{"$f":"IF(L263=\"\",\" \",LOOKUP(L263,FLOTA!A:A,FLOTA!B:B))","v":" "},"",{"$f":"IF(N263=\"\",\" \",LOOKUP(N263,FLOTA!A:A,FLOTA!H:H))","v":" "},null,null,null,null,"."]
[null,null,null,null,null,null,null,null,null,null,null,null,{"$f":"IF(L264=\"\",\" \",LOOKUP(L264,FLOTA!A:A,FLOTA!B:B))","v":" "},"",{"$f":"IF(N264=\"\",\" \",LOOKUP(N264,FLOTA!A:A,FLOTA!H:H))","v":" "},null,null,null,null,"."]
[null,null,null,null,null,null,null,null,null,null,null,null,{"$f":"IF(L265=\"\",\" \",LOOKUP(L265,FLOTA!A:A,FLOTA!B:B))","v":" "},"",{"$f":"IF(N265=\"\",\" \",LOOKUP(N265,FLOTA!A:A,FLOTA!H:H))","v":" "},null,null,null,null,"."]
[null,null,null,null,null,null,null,null,null,null,null,null,{"$f":"IF(L266=\"\",\" \",LOOKUP(L266,FLOTA!A:A,FLOTA!B:B))","v":" "},"",{"$f":"IF(N266=\"\",\" \",LOOKUP(N266,FLOTA!A:A,FLOTA!H:H))","v":" "},null,null,null,null,"."]
[null,null,null,null,null,null,null,null,null,null,null,null,{"$f":"IF(L267=\"\",\" \",LOOKUP(L267,FLOTA!A:A,FLOTA!B:B))","v":" "},"",{"$f":"IF(N267=\"\",\" \",LOOKUP(N267,FLOTA!A:A,FLOTA!H:H))","v":" "},null,null,null,null,"."]
[null,null,null,null,null,null,null,null,null,null,null,null,{"$f":"IF(L268=\"\",\" \",LOOKUP(L268,FLOTA!A:A,FLOTA!B:B))","v":" "},"",{"$f":"IF(N268=\"\",\" \",LOOKUP(N268,FLOTA!A:A,FLOTA!H:H))","v":" "},null,null,null,null,"."]
[null,null,null,null,null,null,null,null,null,null,null,null,{"$f":"IF(L269=\"\",\" \",LOOKUP(L269,FLOTA!A:A,FLOTA!B:B))","v":" "},"",{"$f":"IF(N269=\"\",\" \",LOOKUP(N269,FLOTA!A:A,FLOTA!H:H))","v":" "},null,null,null,null,"."]
[null,null,null,null,null,null,null,null,null,null,null,null,{"$f":"IF(L270=\"\",\" \",LOOKUP(L270,FLOTA!A:A,FLOTA!B:B))","v":" "},"",{"$f":"IF(N270=\"\",\" \",LOOKUP(N270,FLOTA!A:A,FLOTA!H:H))","v":" "},null,null,null,null,"."]
[null,null,null,null,null,null,null,null,null,null,null,null,{"$f":"IF(L271=\"\",\" \",LOOKUP(L271,FLOTA!A:A,FLOTA!B:B))","v":" "},"",{"$f":"IF(N271=\"\",\" \",LOOKUP(N271,FLOTA!A:A,FLOTA!H:H))","v":" "},null,null,null,null,"."]
[null,null,null,null,null,null,null,null,null,null,null,null,{"$f":"IF(L272=\"\",\" \",LOOKUP(L272,FLOTA!A:A,FLOTA!B:B))","v":" "},"",{"$f":"IF(N272=\"\",\" \",LOOKUP(N272,FLOTA!A:A,FLOTA!H:H))","v":" "},null,null,null,null,"."]
[null,null,null,null,null,null,null,null,null,null,null,null,{"$f":"IF(L273=\"\",\" \",LOOKUP(L273,FLOTA!A:A,FLOTA!B:B))","v":" "},"",{"$f":"IF(N273=\"\",\" \",LOOKUP(N273,FLOTA!A:A,FLOTA!H:H))","v":" "},null,null,null,null,"."]
[null,null,null,null,null,null,null,null,null,null,null,null,{"$f":"IF(L274=\"\",\" \",LOOKUP(L274,FLOTA!A:A,FLOTA!B:B))","v":" "},"",{"$f":"IF(N274=\"\",\" \",LOOKUP(N274,FLOTA!A:A,FLOTA!H:H))","v":" "},null,null,null,null,"."]
[null,null,null,null,null,null,null,null,null,null,null,null,{"$f":"IF(L275=\"\",\" \",LOOKUP(L275,FLOTA!A:A,FLOTA!B:B))","v":" "},"",{"$f":"IF(N275=\"\",\" \",LOOKUP(N275,FLOTA!A:A,FLOTA!H:H))","v":" "},null,null,null,null,"."]
[null,null,null,null,null,null,null,null,null,null,null,null,{"$f":"IF(L276=\"\",\" \",LOOKUP(L276,FLOTA!A:A,FLOTA!B:B))","v":" "},"",{"$f":"IF(N276=\"\",\" \",LOOKUP(N276,FLOTA!A:A,FLOTA!H:H))","v":" "},null,null,null,null,"."]
[null,null,null,null,null,null,null,null,null,null,null,null,{"$f":"IF(L277=\"\",\" \",LOOKUP(L277,FLOTA!A:A,FLOTA!B:B))","v":" "},"",{"$f":"IF(N277=\"\",\" \",LOOKUP(N277,FLOTA!A:A,FLOTA!H:H))","v":" "},null,null,null,null,"."]
[null,null,null,null,null,null,null,null,null,null,null,null,{"$f":"IF(L278=\"\",\" \",LOOKUP(L278,FLOTA!A:A,FLOTA!B:B))","v":" "},"",{"$f":"IF(N278=\"\",\" \",LOOKUP(N278,FLOTA!A:A,FLOTA!H:H))","v":" "},null,null,null,null,"."]
[null,null,null,null,null,null,null,null,null,null,null,null,{"$f":"IF(L279=\"\",\" \",LOOKUP(L279,FLOTA!A:A,FLOTA!B:B))","v":" "},"",{"$f":"IF(N279=\"\",\" \",LOOKUP(N279,FLOTA!A:A,FLOTA!H:H))","v":" "},null,null,null,null,"."]
[null,null,null,null,null,null,null,null,null,null,null,null,{"$f":"IF(L280=\"\",\" \",LOOKUP(L280,FLOTA!A:A,FLOTA!B:B))","v":" "},"",{"$f":"IF(N280=\"\",\" \",LOOKUP(N280,FLOTA!A:A,FLOTA!H:H))","v":" "},null,null,null,null,"."]
[null,null,null,null,null,null,null,null,null,null,null,null,{"$f":"IF(L281=\"\",\" \",LOOKUP(L281,FLOTA!A:A,FLOTA!B:B))","v":" "},"",{"$f":"IF(N281=\"\",\" \",LOOKUP(N281,FLOTA!A:A,FLOTA!H:H))","v":" "},null,null,null,null,"."]
[null,null,null,null,null,null,null,null,null,null,null,null,{"$f":"IF(L282=\"\",\" \",LOOKUP(L282,FLOTA!A:A,FLOTA!B:B))","v":" "},"",{"$f":"IF(N282=\"\",\" \",LOOKUP(N282,FLOTA!A:A,FLOTA!H:H))","v":" "},null,null,null,null,"."]
[null,null,null,null,null,null,null,null,null,null,null,null,{"$f":"IF(L283=\"\",\" \",LOOKUP(L283,FLOTA!A:A,FLOTA!B:B))","v":" "},"",{"$f":"IF(N283=\"\",\" \",LOOKUP(N283,FLOTA!A:A,FLOTA!H:H))","v":" "},null,null,null,null,"."]
[null,null,null,null,null,null,null,null,null,null,null,null,{"$f":"IF(L284=\"\",\" \",LOOKUP(L284,FLOTA!A:A,FLOTA!B:B))","v":" "},"",{"$f":"IF(N284=\"\",\" \",LOOKUP(N284,FLOTA!A:A,FLOTA!H:H))","v":" "},null,null,null,null,"."]
[null,null,null,null,null,null,null,null,null,null,null,null,{"$f":"IF(L285=\"\",\" \",LOOKUP(L285,FLOTA!A:A,FLOTA!B:B))","v":" "},"",{"$f":"IF(N285=\"\",\" \",LOOKUP(N285,FLOTA!A:A,FLOTA!H:H))","v":" "},null,null,null,null,"."]
[null,null,null,null,null,null,null,null,null,null,null,null,{"$f":"IF(L286=\"\",\" \",LOOKUP(L286,FLOTA!A:A,FLOTA!B:B))","v":" "},"",{"$f":"IF(N286=\"\",\" \",LOOKUP(N286,FLOTA!A:A,FLOTA!H:H))","v":" "},null,null,null,null,"."]
[null,null,null,null,null,null,null,null,null,null,null,null,{"$f":"IF(L287=\"\",\" \",LOOKUP(L287,FLOTA!A:A,FLOTA!B:B))","v":" "},"",{"$f":"IF(N287=\"\",\" \",LOOKUP(N287,FLOTA!A:A,FLOTA!H:H))","v":" "},null,null,null,null,"."]
[null,null,null,null,null,null,null,null,null,null,null,null,{"$f":"IF(L288=\"\",\" \",LOOKUP(L288,FLOTA!A:A,FLOTA!B:B))","v":" "},"",{"$f":"IF(N288=\"\",\" \",LOOKUP(N288,FLOTA!A:A,FLOTA!H:H))","v":" "},null,null,null,null,"."]
[null,null,null,null,null,null,null,null,null,null,null,null,{"$f":"IF(L289=\"\",\" \",LOOKUP(L289,FLOTA!A:A,FLOTA!B:B))","v":" "},"",{"$f":"IF(N289=\"\",\" \",LOOKUP(N289,FLOTA!A:A,FLOTA!H:H))","v":" "},null,null,null,null,"."]
[null,null,null,null,null,null,null,null,null,null,null,null,{"$f":"IF(L290=\"\",\" \",LOOKUP(L290,FLOTA!A:A,FLOTA!B:B))","v":" "},"",{"$f":"IF(N290=\"\",\" \",LOOKUP(N290,FLOTA!A:A,FLOTA!H:H))","v":" "},null,null,null,null,"."]
[null,null,null,null,null,null,null,null,null,null,null,null,{"$f":"IF(L291=\"\",\" \",LOOKUP(L291,FLOTA!A:A,FLOTA!B:B))","v":" "},"",{"$f":"IF(N291=\"\",\" \",LOOKUP(N291,FLOTA!A:A,FLOTA!H:H))","v":" "},null,null,null,null,"."]
[null,null,null,null,null,null,null,null,null,null,null,null,{"$f":"IF(L292=\"\",\" \",LOOKUP(L292,FLOTA!A:A,FLOTA!B:B))","v":" "},"",{"$f":"IF(N292=\"\",\" \",LOOKUP(N292,FLOTA!A:A,FLOTA!H:H))","v":" "},null,null,null,null,"."]
[null,null,null,null,null,null,null,null,null,null,null,null,{"$f":"IF(L293=\"\",\" \",LOOKUP(L293,FLOTA!A:A,FLOTA!B:B))","v":" "},"",{"$f":"IF(N293=\"\",\" \",LOOKUP(N293,FLOTA!A:A,FLOTA!H:H))","v":" "},null,null,null,null,"."]
[null,null,null,null,null,null,null,null,null,null,null,null,{"$f":"IF(L294=\"\",\" \",LOOKUP(L294,FLOTA!A:A,FLOTA!B:B))","v":" "},"",{"$f":"IF(N294=\"\",\" \",LOOKUP(N294,FLOTA!A:A,FLOTA!H:H))","v":" "},null,null,null,null,"."]
[null,null,null,null,null,null,null,null,null,null,null,null,{"$f":"IF(L295=\"\",\" \",LOOKUP(L295,FLOTA!A:A,FLOTA!B:B))","v":" "},"",{"$f":"IF(N295=\"\",\" \",LOOKUP(N295,FLOTA!A:A,FLOTA!H:H))","v":" "},null,null,null,null,"."]
[null,null,null,null,null,null,null,null,null,null,null,null,{"$f":"IF(L296=\"\",\" \",LOOKUP(L296,FLOTA!A:A,FLOTA!B:B))","v":" "},"",{"$f":"IF(N296=\"\",\" \",LOOKUP(N296,FLOTA!A:A,FLOTA!H:H))","v":" "},null,null,null,null,"."]
[null,null,null,null,null,null,null,null,null,null,null,null,{"$f":"IF(L297=\"\",\" \",LOOKUP(L297,FLOTA!A:A,FLOTA!B:B))","v":" "},"",{"$f":"IF(N297=\"\",\" \",LOOKUP(N297,FLOTA!A:A,FLOTA!H:H))","v":" "},null,null,null,null,"."]
[null,null,null,null,null,null,null,null,null,null,null,null,{"$f":"IF(L298=\"\",\" \",LOOKUP(L298,FLOTA!A:A,FLOTA!B:B))","v":" "},"",{"$f":"IF(N298=\"\",\" \",LOOKUP(N298,FLOTA!A:A,FLOTA!H:H))","v":" "},null,null,null,null,"."]
[null,null,null,null,null,null,null,null,null,null,null,null,{"$f":"IF(L299=\"\",\" \",LOOKUP(L299,FLOTA!A:A,FLOTA!B:B))","v":" "},"",{"$f":"IF(N299=\"\",\" \",LOOKUP(N299,FLOTA!A:A,FLOTA!H:H))","v":" "},null,null,null,null,"."]
[null,null,null,null,null,null,null,null,null,null,null,null,{"$f":"IF(L300=\"\",\" \",LOOKUP(L300,FLOTA!A:A,FLOTA!B:B))","v":" "},"",{"$f":"IF(N300=\"\",\" \",LOOKUP(N300,FLOTA!A:A,FLOTA!H:H))","v":" "},null,null,null,null,"."]
[null,null,null,null,null,null,null,null,null,null,null,null,{"$f":"IF(L301=\"\",\" \",LOOKUP(L301,FLOTA!A:A,FLOTA!B:B))","v":" "},"",{"$f":"IF(N301=\"\",\" \",LOOKUP(N301,FLOTA!A:A,FLOTA!H:H))","v":" "},null,null,null,null,"."]
[null,null,null,null,null,null,null,null,null,null,null,null,{"$f":"IF(L302=\"\",\" \",LOOKUP(L302,FLOTA!A:A,FLOTA!B:B))","v":" "},"",{"$f":"IF(N302=\"\",\" \",LOOKUP(N302,FLOTA!A:A,FLOTA!H:H))","v":" "},null,null,null,null,"."]
[null,null,null,null,null,null,null,null,null,null,null,null,{"$f":"IF(L303=\"\",\" \",LOOKUP(L303,FLOTA!A:A,FLOTA!B:B))","v":" "},"",{"$f":"IF(N303=\"\",\" \",LOOKUP(N303,FLOTA!A:A,FLOTA!H:H))","v":" "},null,null,null,null,"."]
[null,null,null,null,null,null,null,null,null,null,null,null,{"$f":"IF(L304=\"\",\" \",LOOKUP(L304,FLOTA!A:A,FLOTA!B:B))","v":" "},"",{"$f":"IF(N304=\"\",\" \",LOOKUP(N304,FLOTA!A:A,FLOTA!H:H))","v":" "},null,null,null,null,"."]
[null,null,null,null,null,null,null,null,null,null,null,null,{"$f":"IF(L305=\"\",\" \",LOOKUP(L305,FLOTA!A:A,FLOTA!B:B))","v":" "},"",{"$f":"IF(N305=\"\",\" \",LOOKUP(N305,FLOTA!A:A,FLOTA!H:H))","v":" "},null,null,null,null,"."]
[null,null,null,null,null,null,null,null,null,null,null,null,{"$f":"IF(L306=\"\",\" \",LOOKUP(L306,FLOTA!A:A,FLOTA!B:B))","v":" "},"",{"$f":"IF(N306=\"\",\" \",LOOKUP(N306,FLOTA!A:A,FLOTA!H:H))","v":" "},null,null,null,null,"."]
[null,null,null,null,null,null,null,null,null,null,null,null,{"$f":"IF(L307=\"\",\" \",LOOKUP(L307,FLOTA!A:A,FLOTA!B:B))","v":" "},"",{"$f":"IF(N307=\"\",\" \",LOOKUP(N307,FLOTA!A:A,FLOTA!H:H))","v":" "},null,null,null,null,"."]
[null,null,null,null,null,null,null,null,null,null,null,null,{"$f":"IF(L308=\"\",\" \",LOOKUP(L308,FLOTA!A:A,FLOTA!B:B))","v":" "},"",{"$f":"IF(N308=\"\",\" \",LOOKUP(N308,FLOTA!A:A,FLOTA!H:H))","v":" "},null,null,null,null,"."]
[null,null,null,null,null,null,null,null,null,null,null,null,{"$f":"IF(L309=\"\",\" \",LOOKUP(L309,FLOTA!A:A,FLOTA!B:B))","v":" "},"",{"$f":"IF(N309=\"\",\" \",LOOKUP(N309,FLOTA!A:A,FLOTA!H:H))","v":" "},null,null,null,null,"."]
[null,null,null,null,null,null,null,null,null,null,null,null,{"$f":"IF(L310=\"\",\" \",LOOKUP(L310,FLOTA!A:A,FLOTA!B:B))","v":" "},"",{"$f":"IF(N310=\"\",\" \",LOOKUP(N310,FLOTA!A:A,FLOTA!H:H))","v":" "},null,null,null,null,"."]
[null,null,null,null,null,null,null,null,null,null,null,null,{"$f":"IF(L311=\"\",\" \",LOOKUP(L311,FLOTA!A:A,FLOTA!B:B))","v":" "},"",{"$f":"IF(N311=\"\",\" \",LOOKUP(N311,FLOTA!A:A,FLOTA!H:H))","v":" "},null,null,null,null,"."]
[null,null,null,null,null,null,null,null,null,null,null,null,{"$f":"IF(L312=\"\",\" \",LOOKUP(L312,FLOTA!A:A,FLOTA!B:B))","v":" "},"",{"$f":"IF(N312=\"\",\" \",LOOKUP(N312,FLOTA!A:A,FLOTA!H:H))","v":" "},null,null,null,null,"."]
[null,null,null,null,null,null,null,null,null,null,null,null,{"$f":"IF(L313=\"\",\" \",LOOKUP(L313,FLOTA!A:A,FLOTA!B:B))","v":" "},"",{"$f":"IF(N313=\"\",\" \",LOOKUP(N313,FLOTA!A:A,FLOTA!H:H))","v":" "},null,null,null,null,"."]
[null,null,null,null,null,null,null,null,null,null,null,null,{"$f":"IF(L314=\"\",\" \",LOOKUP(L314,FLOTA!A:A,FLOTA!B:B))","v":" "},"",{"$f":"IF(N314=\"\",\" \",LOOKUP(N314,FLOTA!A:A,FLOTA!H:H))","v":" "},null,null,null,null,"."]
[null,null,null,null,null,null,null,null,null,null,null,null,{"$f":"IF(L315=\"\",\" \",LOOKUP(L315,FLOTA!A:A,FLOTA!B:B))","v":" "},"",{"$f":"IF(N315=\"\",\" \",LOOKUP(N315,FLOTA!A:A,FLOTA!H:H))","v":" "},null,null,null,null,"."]
[null,null,null,null,null,null,null,null,null,null,null,null,{"$f":"IF(L316=\"\",\" \",LOOKUP(L316,FLOTA!A:A,FLOTA!B:B))","v":" "},"",{"$f":"IF(N316=\"\",\" \",LOOKUP(N316,FLOTA!A:A,FLOTA!H:H))","v":" "},null,null,null,null,"."]
[null,null,null,null,null,null,null,null,null,null,null,null,{"$f":"IF(L317=\"\",\" \",LOOKUP(L317,FLOTA!A:A,FLOTA!B:B))","v":" "},"",{"$f":"IF(N317=\"\",\" \",LOOKUP(N317,FLOTA!A:A,FLOTA!H:H))","v":" "},null,null,null,null,"."]
[null,null,null,null,null,null,null,null,null,null,null,null,{"$f":"IF(L318=\"\",\" \",LOOKUP(L318,FLOTA!A:A,FLOTA!B:B))","v":" "},"",{"$f":"IF(N318=\"\",\" \",LOOKUP(N318,FLOTA!A:A,FLOTA!H:H))","v":" "},null,null,null,null,"."]
[null,null,null,null,null,null,null,null,null,null,null,null,{"$f":"IF(L319=\"\",\" \",LOOKUP(L319,FLOTA!A:A,FLOTA!B:B))","v":" "},"",{"$f":"IF(N319=\"\",\" \",LOOKUP(N319,FLOTA!A:A,FLOTA!H:H))","v":" "},null,null,null,null,"."]
[null,null,null,null,null,null,null,null,null,null,null,null,{"$f":"IF(L320=\"\",\" \",LOOKUP(L320,FLOTA!A:A,FLOTA!B:B))","v":" "},"",{"$f":"IF(N320=\"\",\" \",LOOKUP(N320,FLOTA!A:A,FLOTA!H:H))","v":" "},null,null,null,null,"."]
[null,null,null,null,null,null,null,null,null,null,null,null,{"$f":"IF(L321=\"\",\" \",LOOKUP(L321,FLOTA!A:A,FLOTA!B:B))","v":" "},{"$f":"IF(L321=\"\",\"\",L321)","v":""},{"$f":"IF(N321=\"\",\" \",LOOKUP(N321,FLOTA!A:A,FLOTA!H:H))","v":" "},null,null,null,null,"."]
[null,null,null,null,null,null,null,null,null,null,null,null,{"$f":"IF(L322=\"\",\" \",LOOKUP(L322,FLOTA!A:A,FLOTA!B:B))","v":" "},"",{"$f":"IF(N322=\"\",\" \",LOOKUP(N322,FLOTA!A:A,FLOTA!H:H))","v":" "},null,null,null,null,"."]
[null,null,null,null,null,null,null,null,null,null,null,null,{"$f":"IF(L323=\"\",\" \",LOOKUP(L323,FLOTA!A:A,FLOTA!B:B))","v":" "},"",{"$f":"IF(N323=\"\",\" \",LOOKUP(N323,FLOTA!A:A,FLOTA!H:H))","v":" "},null,null,null,null,"."]
[null,null,null,null,null,null,null,null,null,null,null,null,{"$f":"IF(L324=\"\",\" \",LOOKUP(L324,FLOTA!A:A,FLOTA!B:B))","v":" "},"",{"$f":"IF(N324=\"\",\" \",LOOKUP(N324,FLOTA!A:A,FLOTA!H:H))","v":" "},null,null,null,null,"."]
[null,null,null,null,null,null,null,null,null,null,null,null,{"$f":"IF(L325=\"\",\" \",LOOKUP(L325,FLOTA!A:A,FLOTA!B:B))","v":" "},"",{"$f":"IF(N325=\"\",\" \",LOOKUP(N325,FLOTA!A:A,FLOTA!H:H))","v":" "},null,null,null,null,"."]
[null,null,null,null,null,null,null,null,null,null,null,null,{"$f":"IF(L326=\"\",\" \",LOOKUP(L326,FLOTA!A:A,FLOTA!B:B))","v":" "},"",{"$f":"IF(N326=\"\",\" \",LOOKUP(N326,FLOTA!A:A,FLOTA!H:H))","v":" "},null,null,null,null,"."]
[null,null,null,null,null,null,null,null,null,null,null,null,{"$f":"IF(L327=\"\",\" \",LOOKUP(L327,FLOTA!A:A,FLOTA!B:B))","v":" "},"",{"$f":"IF(N327=\"\",\" \",LOOKUP(N327,FLOTA!A:A,FLOTA!H:H))","v":" "},null,null,null,null,"."]
[null,null,null,null,null,null,null,null,null,null,null,null,{"$f":"IF(L328=\"\",\" \",LOOKUP(L328,FLOTA!A:A,FLOTA!B:B))","v":" "},"",{"$f":"IF(N328=\"\",\" \",LOOKUP(N328,FLOTA!A:A,FLOTA!H:H))","v":" "},null,null,null,null,"."]
[null,null,null,null,null,null,null,null,null,null,null,null,{"$f":"IF(L329=\"\",\" \",LOOKUP(L329,FLOTA!A:A,FLOTA!B:B))","v":" "},"",{"$f":"IF(N329=\"\",\" \",LOOKUP(N329,FLOTA!A:A,FLOTA!H:H))","v":" "},null,null,null,null,"."]
[null,null,null,null,null,null,null,null,null,null,null,null,{"$f":"IF(L330=\"\",\" \",LOOKUP(L330,FLOTA!A:A,FLOTA!B:B))","v":" "},"",{"$f":"IF(N330=\"\",\" \",LOOKUP(N330,FLOTA!A:A,FLOTA!H:H))","v":" "},null,null,null,null,"."]
[null,null,null,null,null,null,null,null,null,null,null,null,{"$f":"IF(L331=\"\",\" \",LOOKUP(L331,FLOTA!A:A,FLOTA!B:B))","v":" "},"",{"$f":"IF(N331=\"\",\" \",LOOKUP(N331,FLOTA!A:A,FLOTA!H:H))","v":" "},null,null,null,null,"."]
[null,null,null,null,null,null,null,null,null,null,null,null,{"$f":"IF(L332=\"\",\" \",LOOKUP(L332,FLOTA!A:A,FLOTA!B:B))","v":" "},"",{"$f":"IF(N332=\"\",\" \",LOOKUP(N332,FLOTA!A:A,FLOTA!H:H))","v":" "},null,null,null,null,"."]
[null,null,null,null,null,null,null,null,null,null,null,null,{"$f":"IF(L333=\"\",\" \",LOOKUP(L333,FLOTA!A:A,FLOTA!B:B))","v":" "},"",{"$f":"IF(N333=\"\",\" \",LOOKUP(N333,FLOTA!A:A,FLOTA!H:H))","v":" "},null,null,null,null,"."]
[null,null,null,null,null,null,null,null,null,null,null,null,{"$f":"IF(L334=\"\",\" \",LOOKUP(L334,FLOTA!A:A,FLOTA!B:B))","v":" "},"",{"$f":"IF(N334=\"\",\" \",LOOKUP(N334,FLOTA!A:A,FLOTA!H:H))","v":" "},null,null,null,null,"."]
[null,null,null,null,null,null,null,null,null,null,null,null,{"$f":"IF(L335=\"\",\" \",LOOKUP(L335,FLOTA!A:A,FLOTA!B:B))","v":" "},"",{"$f":"IF(N335=\"\",\" \",LOOKUP(N335,FLOTA!A:A,FLOTA!H:H))","v":" "},null,null,null,null,"."]
[null,null,null,null,null,null,null,null,null,null,null,null,{"$f":"IF(L336=\"\",\" \",LOOKUP(L336,FLOTA!A:A,FLOTA!B:B))","v":" "},"",{"$f":"IF(N336=\"\",\" \",LOOKUP(N336,FLOTA!A:A,FLOTA!H:H))","v":" "},null,null,null,null,"."]
[null,null,null,null,null,null,null,null,null,null,null,null,{"$f":"IF(L337=\"\",\" \",LOOKUP(L337,FLOTA!A:A,FLOTA!B:B))","v":" "},"",{"$f":"IF(N337=\"\",\" \",LOOKUP(N337,FLOTA!A:A,FLOTA!H:H))","v":" "},null,null,null,null,"."]
[null,null,null,null,null,null,null,null,null,null,null,null,{"$f":"IF(L338=\"\",\" \",LOOKUP(L338,FLOTA!A:A,FLOTA!B:B))","v":" "},"",{"$f":"IF(N338=\"\",\" \",LOOKUP(N338,FLOTA!A:A,FLOTA!H:H))","v":" "},null,null,null,null,"."]
[null,null,null,null,null,null,null,null,null,null,null,null,{"$f":"IF(L339=\"\",\" \",LOOKUP(L339,FLOTA!A:A,FLOTA!B:B))","v":" "},"",{"$f":"IF(N339=\"\",\" \",LOOKUP(N339,FLOTA!A:A,FLOTA!H:H))","v":" "},null,null,null,null,"."]
[null,null,null,null,null,null,null,null,null,null,null,null,{"$f":"IF(L340=\"\",\" \",LOOKUP(L340,FLOTA!A:A,FLOTA!B:B))","v":" "},"",{"$f":"IF(N340=\"\",\" \",LOOKUP(N340,FLOTA!A:A,FLOTA!H:H))","v":" "},null,null,null,null,"."]
[null,null,null,null,null,null,null,null,null,null,null,null,{"$f":"IF(L341=\"\",\" \",LOOKUP(L341,FLOTA!A:A,FLOTA!B:B))","v":" "},"",{"$f":"IF(N341=\"\",\" \",LOOKUP(N341,FLOTA!A:A,FLOTA!H:H))","v":" "},null,null,null,null,"."]
[null,null,null,null,null,null,null,null,null,null,null,null,{"$f":"IF(L342=\"\",\" \",LOOKUP(L342,FLOTA!A:A,FLOTA!B:B))","v":" "},"",{"$f":"IF(N342=\"\",\" \",LOOKUP(N342,FLOTA!A:A,FLOTA!H:H))","v":" "},null,null,null,null,"."]
[null,null,null,null,null,null,null,null,null,null,null,null,{"$f":"IF(L343=\"\",\" \",LOOKUP(L343,FLOTA!A:A,FLOTA!B:B))","v":" "},"",{"$f":"IF(N343=\"\",\" \",LOOKUP(N343,FLOTA!A:A,FLOTA!H:H))","v":" "},null,null,null,null,"."]
[null,null,null,null,null,null,null,null,null,null,null,null,{"$f":"IF(L344=\"\",\" \",LOOKUP(L344,FLOTA!A:A,FLOTA!B:B))","v":" "},"",{"$f":"IF(N344=\"\",\" \",LOOKUP(N344,FLOTA!A:A,FLOTA!H:H))","v":" "},null,null,null,null,"."]
[null,null,null,null,null,null,null,null,null,null,null,null,{"$f":"IF(L345=\"\",\" \",LOOKUP(L345,FLOTA!A:A,FLOTA!B:B))","v":" "},"",{"$f":"IF(N345=\"\",\" \",LOOKUP(N345,FLOTA!A:A,FLOTA!H:H))","v":" "},null,null,null,null,"."]
[null,null,null,null,null,null,null,null,null,null,null,null,{"$f":"IF(L346=\"\",\" \",LOOKUP(L346,FLOTA!A:A,FLOTA!B:B))","v":" "},"",{"$f":"IF(N346=\"\",\" \",LOOKUP(N346,FLOTA!A:A,FLOTA!H:H))","v":" "},null,null,null,null,"."]
[null,null,null,null,null,null,null,null,null,null,null,null,{"$f":"IF(L347=\"\",\" \",LOOKUP(L347,FLOTA!A:A,FLOTA!B:B))","v":" "},"",{"$f":"IF(N347=\"\",\" \",LOOKUP(N347,FLOTA!A:A,FLOTA!H:H))","v":" "},null,null,null,null,"."]
[null,null,null,null,null,null,null,null,null,null,null,null,{"$f":"IF(L348=\"\",\" \",LOOKUP(L348,FLOTA!A:A,FLOTA!B:B))","v":" "},"",{"$f":"IF(N348=\"\",\" \",LOOKUP(N348,FLOTA!A:A,FLOTA!H:H))","v":" "},null,null,null,null,"."]
[null,null,null,null,null,null,null,null,null,null,null,null,{"$f":"IF(L349=\"\",\" \",LOOKUP(L349,FLOTA!A:A,FLOTA!B:B))","v":" "},"",{"$f":"IF(N349=\"\",\" \",LOOKUP(N349,FLOTA!A:A,FLOTA!H:H))","v":" "},null,null,null,null,"."]
[null,null,null,null,null,null,null,null,null,null,null,null,{"$f":"IF(L350=\"\",\" \",LOOKUP(L350,FLOTA!A:A,FLOTA!B:B))","v":" "},"",{"$f":"IF(N350=\"\",\" \",LOOKUP(N350,FLOTA!A:A,FLOTA!H:H))","v":" "},null,null,null,null,"."]
[null,null,null,null,null,null,null,null,null,null,null,null,{"$f":"IF(L351=\"\",\" \",LOOKUP(L351,FLOTA!A:A,FLOTA!B:B))","v":" "},"",{"$f":"IF(N351=\"\",\" \",LOOKUP(N351,FLOTA!A:A,FLOTA!H:H))","v":" "},null,null,null,null,"."]
[null,null,null,null,null,null,null,null,null,null,null,null,{"$f":"IF(L352=\"\",\" \",LOOKUP(L352,FLOTA!A:A,FLOTA!B:B))","v":" "},"",{"$f":"IF(N352=\"\",\" \",LOOKUP(N352,FLOTA!A:A,FLOTA!H:H))","v":" "},null,null,null,null,"."]
[null,null,null,null,null,null,null,null,null,null,null,null,{"$f":"IF(L353=\"\",\" \",LOOKUP(L353,FLOTA!A:A,FLOTA!B:B))","v":" "},"",{"$f":"IF(N353=\"\",\" \",LOOKUP(N353,FLOTA!A:A,FLOTA!H:H))","v":" "},null,null,null,null,"."]
[null,null,null,null,null,null,null,null,null,null,null,null,{"$f":"IF(L354=\"\",\" \",LOOKUP(L354,FLOTA!A:A,FLOTA!B:B))","v":" "},"",{"$f":"IF(N354=\"\",\" \",LOOKUP(N354,FLOTA!A:A,FLOTA!H:H))","v":" "},null,null,null,null,"."]
[null,null,null,null,null,null,null,null,null,null,null,null,{"$f":"IF(L355=\"\",\" \",LOOKUP(L355,FLOTA!A:A,FLOTA!B:B))","v":" "},"",{"$f":"IF(N355=\"\",\" \",LOOKUP(N355,FLOTA!A:A,FLOTA!H:H))","v":" "},null,null,null,null,"."]
[null,null,null,null,null,null,null,null,null,null,null,null,{"$f":"IF(L356=\"\",\" \",LOOKUP(L356,FLOTA!A:A,FLOTA!B:B))","v":" "},"",{"$f":"IF(N356=\"\",\" \",LOOKUP(N356,FLOTA!A:A,FLOTA!H:H))","v":" "},null,null,null,null,"."]
[null,null,null,null,null,null,null,null,null,null,null,null,{"$f":"IF(L357=\"\",\" \",LOOKUP(L357,FLOTA!A:A,FLOTA!B:B))","v":" "},"",{"$f":"IF(N357=\"\",\" \",LOOKUP(N357,FLOTA!A:A,FLOTA!H:H))","v":" "},null,null,null,null,"."]
[null,null,null,null,null,null,null,null,null,null,null,null,{"$f":"IF(L358=\"\",\" \",LOOKUP(L358,FLOTA!A:A,FLOTA!B:B))","v":" "},"",{"$f":"IF(N358=\"\",\" \",LOOKUP(N358,FLOTA!A:A,FLOTA!H:H))","v":" "},null,null,null,null,"."]
[null,null,null,null,null,null,null,null,null,null,null,null,{"$f":"IF(L359=\"\",\" \",LOOKUP(L359,FLOTA!A:A,FLOTA!B:B))","v":" "},"",{"$f":"IF(N359=\"\",\" \",LOOKUP(N359,FLOTA!A:A,FLOTA!H:H))","v":" "},null,null,null,null,"."]
[null,null,null,null,null,null,null,null,null,null,null,null,{"$f":"IF(L360=\"\",\" \",LOOKUP(L360,FLOTA!A:A,FLOTA!B:B))","v":" "},"",{"$f":"IF(N360=\"\",\" \",LOOKUP(N360,FLOTA!A:A,FLOTA!H:H))","v":" "},null,null,null,null,"."]
[null,null,null,null,null,null,null,null,null,null,null,null,{"$f":"IF(L361=\"\",\" \",LOOKUP(L361,FLOTA!A:A,FLOTA!B:B))","v":" "},"",{"$f":"IF(N361=\"\",\" \",LOOKUP(N361,FLOTA!A:A,FLOTA!H:H))","v":" "},null,null,null,null,"."]
[null,null,null,null,null,null,null,null,null,null,null,null,{"$f":"IF(L362=\"\",\" \",LOOKUP(L362,FLOTA!A:A,FLOTA!B:B))","v":" "},"",{"$f":"IF(N362=\"\",\" \",LOOKUP(N362,FLOTA!A:A,FLOTA!H:H))","v":" "},null,null,null,null,"."]
[null,null,null,null,null,null,null,null,null,null,null,null,{"$f":"IF(L363=\"\",\" \",LOOKUP(L363,FLOTA!A:A,FLOTA!B:B))","v":" "},"",{"$f":"IF(N363=\"\",\" \",LOOKUP(N363,FLOTA!A:A,FLOTA!H:H))","v":" "},null,null,null,null,"."]
[null,null,null,null,null,null,null,null,null,null,null,null,{"$f":"IF(L364=\"\",\" \",LOOKUP(L364,FLOTA!A:A,FLOTA!B:B))","v":" "},"",{"$f":"IF(N364=\"\",\" \",LOOKUP(N364,FLOTA!A:A,FLOTA!H:H))","v":" "},null,null,null,null,"."]
[null,null,null,null,null,null,null,null,null,null,null,null,{"$f":"IF(L365=\"\",\" \",LOOKUP(L365,FLOTA!A:A,FLOTA!B:B))","v":" "},"",{"$f":"IF(N365=\"\",\" \",LOOKUP(N365,FLOTA!A:A,FLOTA!H:H))","v":" "},null,null,null,null,"."]
[null,null,null,null,null,null,null,null,null,null,null,null,{"$f":"IF(L366=\"\",\" \",LOOKUP(L366,FLOTA!A:A,FLOTA!B:B))","v":" "},"",{"$f":"IF(N366=\"\",\" \",LOOKUP(N366,FLOTA!A:A,FLOTA!H:H))","v":" "},null,null,null,null,"."]
[null,null,null,null,null,null,null,null,null,null,null,null,{"$f":"IF(L367=\"\",\" \",LOOKUP(L367,FLOTA!A:A,FLOTA!B:B))","v":" "},"",{"$f":"IF(N367=\"\",\" \",LOOKUP(N367,FLOTA!A:A,FLOTA!H:H))","v":" "},null,null,null,null,"."]
[null,null,null,null,null,null,null,null,null,null,null,null,{"$f":"IF(L368=\"\",\" \",LOOKUP(L368,FLOTA!A:A,FLOTA!B:B))","v":" "},"",{"$f":"IF(N368=\"\",\" \",LOOKUP(N368,FLOTA!A:A,FLOTA!H:H))","v":" "},null,null,null,null,"."]
[null,null,null,null,null,null,null,null,null,null,null,null,{"$f":"IF(L369=\"\",\" \",LOOKUP(L369,FLOTA!A:A,FLOTA!B:B))","v":" "},"",{"$f":"IF(N369=\"\",\" \",LOOKUP(N369,FLOTA!A:A,FLOTA!H:H))","v":" "},null,null,null,null,"."]
[null,null,null,null,null,null,null,null,null,null,null,null,{"$f":"IF(L370=\"\",\" \",LOOKUP(L370,FLOTA!A:A,FLOTA!B:B))","v":" "},"",{"$f":"IF(N370=\"\",\" \",LOOKUP(N370,FLOTA!A:A,FLOTA!H:H))","v":" "},null,null,null,null,"."]
[null,null,null,null,null,null,null,null,null,null,null,null,{"$f":"IF(L371=\"\",\" \",LOOKUP(L371,FLOTA!A:A,FLOTA!B:B))","v":" "},"",{"$f":"IF(N371=\"\",\" \",LOOKUP(N371,FLOTA!A:A,FLOTA!H:H))","v":" "},null,null,null,null,"."]
[null,null,null,null,null,null,null,null,null,null,null,null,{"$f":"IF(L372=\"\",\" \",LOOKUP(L372,FLOTA!A:A,FLOTA!B:B))","v":" "},"",{"$f":"IF(N372=\"\",\" \",LOOKUP(N372,FLOTA!A:A,FLOTA!H:H))","v":" "},null,null,null,null,"."]
[null,null,null,null,null,null,null,null,null,null,null,null,{"$f":"IF(L373=\"\",\" \",LOOKUP(L373,FLOTA!A:A,FLOTA!B:B))","v":" "},"",{"$f":"IF(N373=\"\",\" \",LOOKUP(N373,FLOTA!A:A,FLOTA!H:H))","v":" "},null,null,null,null,"."]
[null,null,null,null,null,null,null,null,null,null,null,null,{"$f":"IF(L374=\"\",\" \",LOOKUP(L374,FLOTA!A:A,FLOTA!B:B))","v":" "},"",{"$f":"IF(N374=\"\",\" \",LOOKUP(N374,FLOTA!A:A,FLOTA!H:H))","v":" "},null,null,null,null,"."]
[null,null,null,null,null,null,null,null,null,null,null,null,{"$f":"IF(L375=\"\",\" \",LOOKUP(L375,FLOTA!A:A,FLOTA!B:B))","v":" "},"",{"$f":"IF(N375=\"\",\" \",LOOKUP(N375,FLOTA!A:A,FLOTA!H:H))","v":" "},null,null,null,null,"."]
[null,null,null,null,null,null,null,null,null,null,null,null,{"$f":"IF(L376=\"\",\" \",LOOKUP(L376,FLOTA!A:A,FLOTA!B:B))","v":" "},"",{"$f":"IF(N376=\"\",\" \",LOOKUP(N376,FLOTA!A:A,FLOTA!H:H))","v":" "},null,null,null,null,"."]
[null,null,null,null,null,null,null,null,null,null,null,null,{"$f":"IF(L377=\"\",\" \",LOOKUP(L377,FLOTA!A:A,FLOTA!B:B))","v":" "},"",{"$f":"IF(N377=\"\",\" \",LOOKUP(N377,FLOTA!A:A,FLOTA!H:H))","v":" "},null,null,null,null,"."]
[null,null,null,null,null,null,null,null,null,null,null,null,{"$f":"IF(L378=\"\",\" \",LOOKUP(L378,FLOTA!A:A,FLOTA!B:B))","v":" "},"",{"$f":"IF(N378=\"\",\" \",LOOKUP(N378,FLOTA!A:A,FLOTA!H:H))","v":" "},null,null,null,null,"."]
[null,null,null,null,null,null,null,null,null,null,null,null,{"$f":"IF(L379=\"\",\" \",LOOKUP(L379,FLOTA!A:A,FLOTA!B:B))","v":" "},"",{"$f":"IF(N379=\"\",\" \",LOOKUP(N379,FLOTA!A:A,FLOTA!H:H))","v":" "},null,null,null,null,"."]
[null,null,null,null,null,null,null,null,null,null,null,null,{"$f":"IF(L380=\"\",\" \",LOOKUP(L380,FLOTA!A:A,FLOTA!B:B))","v":" "},"",{"$f":"IF(N380=\"\",\" \",LOOKUP(N380,FLOTA!A:A,FLOTA!H:H))","v":" "},null,null,null,null,"."]
[null,null,null,null,null,null,null,null,null,null,null,null,{"$f":"IF(L381=\"\",\" \",LOOKUP(L381,FLOTA!A:A,FLOTA!B:B))","v":" "},"",{"$f":"IF(N381=\"\",\" \",LOOKUP(N381,FLOTA!A:A,FLOTA!H:H))","v":" "},null,null,null,null,"."]
[null,null,null,null,null,null,null,null,null,null,null,null,{"$f":"IF(L382=\"\",\" \",LOOKUP(L382,FLOTA!A:A,FLOTA!B:B))","v":" "},"",{"$f":"IF(N382=\"\",\" \",LOOKUP(N382,FLOTA!A:A,FLOTA!H:H))","v":" "},null,null,null,null,"."]
[null,null,null,null,null,null,null,null,null,null,null,null,{"$f":"IF(L383=\"\",\" \",LOOKUP(L383,FLOTA!A:A,FLOTA!B:B))","v":" "},"",{"$f":"IF(N383=\"\",\" \",LOOKUP(N383,FLOTA!A:A,FLOTA!H:H))","v":" "},null,null,null,null,"."]
[null,null,null,null,null,null,null,null,null,null,null,null,{"$f":"IF(L384=\"\",\" \",LOOKUP(L384,FLOTA!A:A,FLOTA!B:B))","v":" "},"",{"$f":"IF(N384=\"\",\" \",LOOKUP(N384,FLOTA!A:A,FLOTA!H:H))","v":" "},null,null,null,null,"."]
[null,null,null,null,null,null,null,null,null,null,null,null,{"$f":"IF(L385=\"\",\" \",LOOKUP(L385,FLOTA!A:A,FLOTA!B:B))","v":" "},{"$f":"IF(L385=\"\",\"\",L385)","v":""},{"$f":"IF(N385=\"\",\" \",LOOKUP(N385,FLOTA!A:A,FLOTA!H:H))","v":" "},null,null,null,null,"."]
[null,null,null,null,null,null,null,null,null,null,null,null,{"$f":"IF(L386=\"\",\" \",LOOKUP(L386,FLOTA!A:A,FLOTA!B:B))","v":" "},"",{"$f":"IF(N386=\"\",\" \",LOOKUP(N386,FLOTA!A:A,FLOTA!H:H))","v":" "},null,null,null,null,"."]
[null,null,null,null,null,null,null,null,null,null,null,null,{"$f":"IF(L387=\"\",\" \",LOOKUP(L387,FLOTA!A:A,FLOTA!B:B))","v":" "},"",{"$f":"IF(N387=\"\",\" \",LOOKUP(N387,FLOTA!A:A,FLOTA!H:H))","v":" "},null,null,null,null,"."]
[null,null,null,null,null,null,null,null,null,null,null,null,{"$f":"IF(L388=\"\",\" \",LOOKUP(L388,FLOTA!A:A,FLOTA!B:B))","v":" "},"",{"$f":"IF(N388=\"\",\" \",LOOKUP(N388,FLOTA!A:A,FLOTA!H:H))","v":" "},null,null,null,null,"."]
[null,null,null,null,null,null,null,null,null,null,null,null,{"$f":"IF(L389=\"\",\" \",LOOKUP(L389,FLOTA!A:A,FLOTA!B:B))","v":" "},"",{"$f":"IF(N389=\"\",\" \",LOOKUP(N389,FLOTA!A:A,FLOTA!H:H))","v":" "},null,null,null,null,"."]
[null,null,null,null,null,null,null,null,null,null,null,null,{"$f":"IF(L390=\"\",\" \",LOOKUP(L390,FLOTA!A:A,FLOTA!B:B))","v":" "},"",{"$f":"IF(N390=\"\",\" \",LOOKUP(N390,FLOTA!A:A,FLOTA!H:H))","v":" "},null,null,null,null,"."]
[null,null,null,null,null,null,null,null,null,null,null,null,{"$f":"IF(L391=\"\",\" \",LOOKUP(L391,FLOTA!A:A,FLOTA!B:B))","v":" "},"",{"$f":"IF(N391=\"\",\" \",LOOKUP(N391,FLOTA!A:A,FLOTA!H:H))","v":" "},null,null,null,null,"."]
[null,null,null,null,null,null,null,null,null,null,null,null,{"$f":"IF(L392=\"\",\" \",LOOKUP(L392,FLOTA!A:A,FLOTA!B:B))","v":" "},"",{"$f":"IF(N392=\"\",\" \",LOOKUP(N392,FLOTA!A:A,FLOTA!H:H))","v":" "},null,null,null,null,"."]
[null,null,null,null,null,null,null,null,null,null,null,null,{"$f":"IF(L393=\"\",\" \",LOOKUP(L393,FLOTA!A:A,FLOTA!B:B))","v":" "},"",{"$f":"IF(N393=\"\",\" \",LOOKUP(N393,FLOTA!A:A,FLOTA!H:H))","v":" "},null,null,null,null,"."]
[null,null,null,null,null,null,null,null,null,null,null,null,{"$f":"IF(L394=\"\",\" \",LOOKUP(L394,FLOTA!A:A,FLOTA!B:B))","v":" "},"",{"$f":"IF(N394=\"\",\" \",LOOKUP(N394,FLOTA!A:A,FLOTA!H:H))","v":" "},null,null,null,null,"."]
[null,null,null,null,null,null,null,null,null,null,null,null,{"$f":"IF(L395=\"\",\" \",LOOKUP(L395,FLOTA!A:A,FLOTA!B:B))","v":" "},"",{"$f":"IF(N395=\"\",\" \",LOOKUP(N395,FLOTA!A:A,FLOTA!H:H))","v":" "},null,null,null,null,"."]
[null,null,null,null,null,null,null,null,null,null,null,null,{"$f":"IF(L396=\"\",\" \",LOOKUP(L396,FLOTA!A:A,FLOTA!B:B))","v":" "},"",{"$f":"IF(N396=\"\",\" \",LOOKUP(N396,FLOTA!A:A,FLOTA!H:H))","v":" "},null,null,null,null,"."]
[null,null,null,null,null,null,null,null,null,null,null,null,{"$f":"IF(L397=\"\",\" \",LOOKUP(L397,FLOTA!A:A,FLOTA!B:B))","v":" "},"",{"$f":"IF(N397=\"\",\" \",LOOKUP(N397,FLOTA!A:A,FLOTA!H:H))","v":" "},null,null,null,null,"."]
[null,null,null,null,null,null,null,null,null,null,null,null,{"$f":"IF(L398=\"\",\" \",LOOKUP(L398,FLOTA!A:A,FLOTA!B:B))","v":" "},"",{"$f":"IF(N398=\"\",\" \",LOOKUP(N398,FLOTA!A:A,FLOTA!H:H))","v":" "},null,null,null,null,"."]
[null,null,null,null,null,null,null,null,null,null,null,null,{"$f":"IF(L399=\"\",\" \",LOOKUP(L399,FLOTA!A:A,FLOTA!B:B))","v":" "},"",{"$f":"IF(N399=\"\",\" \",LOOKUP(N399,FLOTA!A:A,FLOTA!H:H))","v":" "},null,null,null,null,"."]
[null,null,null,null,null,null,null,null,null,null,null,null,{"$f":"IF(L400=\"\",\" \",LOOKUP(L400,FLOTA!A:A,FLOTA!B:B))","v":" "},"",{"$f":"IF(N400=\"\",\" \",LOOKUP(N400,FLOTA!A:A,FLOTA!H:H))","v":" "},null,null,null,null,"."]
[null,null,null,null,null,null,null,null,null,null,null,null,{"$f":"IF(L401=\"\",\" \",LOOKUP(L401,FLOTA!A:A,FLOTA!B:B))","v":" "},"",{"$f":"IF(N401=\"\",\" \",LOOKUP(N401,FLOTA!A:A,FLOTA!H:H))","v":" "},null,null,null,null,"."]
[null,null,null,null,null,null,null,null,null,null,null,null,{"$f":"IF(L402=\"\",\" \",LOOKUP(L402,FLOTA!A:A,FLOTA!B:B))","v":" "},"",{"$f":"IF(N402=\"\",\" \",LOOKUP(N402,FLOTA!A:A,FLOTA!H:H))","v":" "},null,null,null,null,"."]
[null,null,null,null,null,null,null,null,null,null,null,null,{"$f":"IF(L403=\"\",\" \",LOOKUP(L403,FLOTA!A:A,FLOTA!B:B))","v":" "},"",{"$f":"IF(N403=\"\",\" \",LOOKUP(N403,FLOTA!A:A,FLOTA!H:H))","v":" "},null,null,null,null,"."]
[null,null,null,null,null,null,null,null,null,null,null,null,{"$f":"IF(L404=\"\",\" \",LOOKUP(L404,FLOTA!A:A,FLOTA!B:B))","v":" "},"",{"$f":"IF(N404=\"\",\" \",LOOKUP(N404,FLOTA!A:A,FLOTA!H:H))","v":" "},null,null,null,null,"."]
[null,null,null,null,null,null,null,null,null,null,null,null,{"$f":"IF(L405=\"\",\" \",LOOKUP(L405,FLOTA!A:A,FLOTA!B:B))","v":" "},"",{"$f":"IF(N405=\"\",\" \",LOOKUP(N405,FLOTA!A:A,FLOTA!H:H))","v":" "},null,null,null,null,"."]
[null,null,null,null,null,null,null,null,null,null,null,null,{"$f":"IF(L406=\"\",\" \",LOOKUP(L406,FLOTA!A:A,FLOTA!B:B))","v":" "},"",{"$f":"IF(N406=\"\",\" \",LOOKUP(N406,FLOTA!A:A,FLOTA!H:H))","v":" "},null,null,null,null,"."]
[null,null,null,null,null,null,null,null,null,null,null,null,{"$f":"IF(L407=\"\",\" \",LOOKUP(L407,FLOTA!A:A,FLOTA!B:B))","v":" "},"",{"$f":"IF(N407=\"\",\" \",LOOKUP(N407,FLOTA!A:A,FLOTA!H:H))","v":" "},null,null,null,null,"."]
[null,null,null,null,null,null,null,null,null,null,null,null,{"$f":"IF(L408=\"\",\" \",LOOKUP(L408,FLOTA!A:A,FLOTA!B:B))","v":" "},"",{"$f":"IF(N408=\"\",\" \",LOOKUP(N408,FLOTA!A:A,FLOTA!H:H))","v":" "},null,null,null,null,"."]
[null,null,null,null,null,null,null,null,null,null,null,null,{"$f":"IF(L409=\"\",\" \",LOOKUP(L409,FLOTA!A:A,FLOTA!B:B))","v":" "},"",{"$f":"IF(N409=\"\",\" \",LOOKUP(N409,FLOTA!A:A,FLOTA!H:H))","v":" "},null,null,null,null,"."]
[null,null,null,null,null,null,null,null,null,null,null,null,{"$f":"IF(L410=\"\",\" \",LOOKUP(L410,FLOTA!A:A,FLOTA!B:B))","v":" "},"",{"$f":"IF(N410=\"\",\" \",LOOKUP(N410,FLOTA!A:A,FLOTA!H:H))","v":" "},null,null,null,null,"."]
[null,null,null,null,null,null,null,null,null,null,null,null,{"$f":"IF(L411=\"\",\" \",LOOKUP(L411,FLOTA!A:A,FLOTA!B:B))","v":" "},"",{"$f":"IF(N411=\"\",\" \",LOOKUP(N411,FLOTA!A:A,FLOTA!H:H))","v":" "},null,null,null,null,"."]
[null,null,null,null,null,null,null,null,null,null,null,null,{"$f":"IF(L412=\"\",\" \",LOOKUP(L412,FLOTA!A:A,FLOTA!B:B))","v":" "},"",{"$f":"IF(N412=\"\",\" \",LOOKUP(N412,FLOTA!A:A,FLOTA!H:H))","v":" "},null,null,null,null,"."]
[null,null,null,null,null,null,null,null,null,null,null,null,{"$f":"IF(L413=\"\",\" \",LOOKUP(L413,FLOTA!A:A,FLOTA!B:B))","v":" "},"",{"$f":"IF(N413=\"\",\" \",LOOKUP(N413,FLOTA!A:A,FLOTA!H:H))","v":" "},null,null,null,null,"."]
[null,null,null,null,null,null,null,null,null,null,null,null,{"$f":"IF(L414=\"\",\" \",LOOKUP(L414,FLOTA!A:A,FLOTA!B:B))","v":" "},"",{"$f":"IF(N414=\"\",\" \",LOOKUP(N414,FLOTA!A:A,FLOTA!H:H))","v":" "},null,null,null,null,"."]
[null,null,null,null,null,null,null,null,null,null,null,null,{"$f":"IF(L415=\"\",\" \",LOOKUP(L415,FLOTA!A:A,FLOTA!B:B))","v":" "},"",{"$f":"IF(N415=\"\",\" \",LOOKUP(N415,FLOTA!A:A,FLOTA!H:H))","v":" "},null,null,null,null,"."]
[null,null,null,null,null,null,null,null,null,null,null,null,{"$f":"IF(L416=\"\",\" \",LOOKUP(L416,FLOTA!A:A,FLOTA!B:B))","v":" "},"",{"$f":"IF(N416=\"\",\" \",LOOKUP(N416,FLOTA!A:A,FLOTA!H:H))","v":" "},null,null,null,null,"."]
[null,null,null,null,null,null,null,null,null,null,null,null,{"$f":"IF(L417=\"\",\" \",LOOKUP(L417,FLOTA!A:A,FLOTA!B:B))","v":" "},"",{"$f":"IF(N417=\"\",\" \",LOOKUP(N417,FLOTA!A:A,FLOTA!H:H))","v":" "},null,null,null,null,"."]
[null,null,null,null,null,null,null,null,null,null,null,null,{"$f":"IF(L418=\"\",\" \",LOOKUP(L418,FLOTA!A:A,FLOTA!B:B))","v":" "},"",{"$f":"IF(N418=\"\",\" \",LOOKUP(N418,FLOTA!A:A,FLOTA!H:H))","v":" "},null,null,null,null,"."]
[null,null,null,null,null,null,null,null,null,null,null,null,{"$f":"IF(L419=\"\",\" \",LOOKUP(L419,FLOTA!A:A,FLOTA!B:B))","v":" "},"",{"$f":"IF(N419=\"\",\" \",LOOKUP(N419,FLOTA!A:A,FLOTA!H:H))","v":" "},null,null,null,null,"."]
[null,null,null,null,null,null,null,null,null,null,null,null,{"$f":"IF(L420=\"\",\" \",LOOKUP(L420,FLOTA!A:A,FLOTA!B:B))","v":" "},"",{"$f":"IF(N420=\"\",\" \",LOOKUP(N420,FLOTA!A:A,FLOTA!H:H))","v":" "},null,null,null,null,"."]
[null,null,null,null,null,null,null,null,null,null,null,null,{"$f":"IF(L421=\"\",\" \",LOOKUP(L421,FLOTA!A:A,FLOTA!B:B))","v":" "},"",{"$f":"IF(N421=\"\",\" \",LOOKUP(N421,FLOTA!A:A,FLOTA!H:H))","v":" "},null,null,null,null,"."]
[null,null,null,null,null,null,null,null,null,null,null,null,{"$f":"IF(L422=\"\",\" \",LOOKUP(L422,FLOTA!A:A,FLOTA!B:B))","v":" "},"",{"$f":"IF(N422=\"\",\" \",LOOKUP(N422,FLOTA!A:A,FLOTA!H:H))","v":" "},null,null,null,null,"."]
[null,null,null,null,null,null,null,null,null,null,null,null,{"$f":"IF(L423=\"\",\" \",LOOKUP(L423,FLOTA!A:A,FLOTA!B:B))","v":" "},"",{"$f":"IF(N423=\"\",\" \",LOOKUP(N423,FLOTA!A:A,FLOTA!H:H))","v":" "},null,null,null,null,"."]
[null,null,null,null,null,null,null,null,null,null,null,null,{"$f":"IF(L424=\"\",\" \",LOOKUP(L424,FLOTA!A:A,FLOTA!B:B))","v":" "},"",{"$f":"IF(N424=\"\",\" \",LOOKUP(N424,FLOTA!A:A,FLOTA!H:H))","v":" "},null,null,null,null,"."]
[null,null,null,null,null,null,null,null,null,null,null,null,{"$f":"IF(L425=\"\",\" \",LOOKUP(L425,FLOTA!A:A,FLOTA!B:B))","v":" "},"",{"$f":"IF(N425=\"\",\" \",LOOKUP(N425,FLOTA!A:A,FLOTA!H:H))","v":" "},null,null,null,null,"."]
[null,null,null,null,null,null,null,null,null,null,null,null,{"$f":"IF(L426=\"\",\" \",LOOKUP(L426,FLOTA!A:A,FLOTA!B:B))","v":" "},"",{"$f":"IF(N426=\"\",\" \",LOOKUP(N426,FLOTA!A:A,FLOTA!H:H))","v":" "},null,null,null,null,"."]
[null,null,null,null,null,null,null,null,null,null,null,null,{"$f":"IF(L427=\"\",\" \",LOOKUP(L427,FLOTA!A:A,FLOTA!B:B))","v":" "},"",{"$f":"IF(N427=\"\",\" \",LOOKUP(N427,FLOTA!A:A,FLOTA!H:H))","v":" "},null,null,null,null,"."]
[null,null,null,null,null,null,null,null,null,null,null,null,{"$f":"IF(L428=\"\",\" \",LOOKUP(L428,FLOTA!A:A,FLOTA!B:B))","v":" "},"",{"$f":"IF(N428=\"\",\" \",LOOKUP(N428,FLOTA!A:A,FLOTA!H:H))","v":" "},null,null,null,null,"."]
[null,null,null,null,null,null,null,null,null,null,null,null,{"$f":"IF(L429=\"\",\" \",LOOKUP(L429,FLOTA!A:A,FLOTA!B:B))","v":" "},"",{"$f":"IF(N429=\"\",\" \",LOOKUP(N429,FLOTA!A:A,FLOTA!H:H))","v":" "},null,null,null,null,"."]
[null,null,null,null,null,null,null,null,null,null,null,null,{"$f":"IF(L430=\"\",\" \",LOOKUP(L430,FLOTA!A:A,FLOTA!B:B))","v":" "},"",{"$f":"IF(N430=\"\",\" \",LOOKUP(N430,FLOTA!A:A,FLOTA!H:H))","v":" "},null,null,null,null,"."]
[null,null,null,null,null,null,null,null,null,null,null,null,{"$f":"IF(L431=\"\",\" \",LOOKUP(L431,FLOTA!A:A,FLOTA!B:B))","v":" "},"",{"$f":"IF(N431=\"\",\" \",LOOKUP(N431,FLOTA!A:A,FLOTA!H:H))","v":" "},null,null,null,null,"."]
[null,null,null,null,null,null,null,null,null,null,null,null,{"$f":"IF(L432=\"\",\" \",LOOKUP(L432,FLOTA!A:A,FLOTA!B:B))","v":" "},"",{"$f":"IF(N432=\"\",\" \",LOOKUP(N432,FLOTA!A:A,FLOTA!H:H))","v":" "},null,null,null,null,"."]
[null,null,null,null,null,null,null,null,null,null,null,null,{"$f":"IF(L433=\"\",\" \",LOOKUP(L433,FLOTA!A:A,FLOTA!B:B))","v":" "},"",{"$f":"IF(N433=\"\",\" \",LOOKUP(N433,FLOTA!A:A,FLOTA!H:H))","v":" "},null,null,null,null,"."]
[null,null,null,null,null,null,null,null,null,null,null,null,{"$f":"IF(L434=\"\",\" \",LOOKUP(L434,FLOTA!A:A,FLOTA!B:B))","v":" "},"",{"$f":"IF(N434=\"\",\" \",LOOKUP(N434,FLOTA!A:A,FLOTA!H:H))","v":" "},null,null,null,null,"."]
[null,null,null,null,null,null,null,null,null,null,null,null,{"$f":"IF(L435=\"\",\" \",LOOKUP(L435,FLOTA!A:A,FLOTA!B:B))","v":" "},"",{"$f":"IF(N435=\"\",\" \",LOOKUP(N435,FLOTA!A:A,FLOTA!H:H))","v":" "},null,null,null,null,"."]
[null,null,null,null,null,null,null,null,null,null,null,null,{"$f":"IF(L436=\"\",\" \",LOOKUP(L436,FLOTA!A:A,FLOTA!B:B))","v":" "},"",{"$f":"IF(N436=\"\",\" \",LOOKUP(N436,FLOTA!A:A,FLOTA!H:H))","v":" "},null,null,null,null,"."]
[null,null,null,null,null,null,null,null,null,null,null,null,{"$f":"IF(L437=\"\",\" \",LOOKUP(L437,FLOTA!A:A,FLOTA!B:B))","v":" "},"",{"$f":"IF(N437=\"\",\" \",LOOKUP(N437,FLOTA!A:A,FLOTA!H:H))","v":" "},null,null,null,null,"."]
[null,null,null,null,null,null,null,null,null,null,null,null,{"$f":"IF(L438=\"\",\" \",LOOKUP(L438,FLOTA!A:A,FLOTA!B:B))","v":" "},"",{"$f":"IF(N438=\"\",\" \",LOOKUP(N438,FLOTA!A:A,FLOTA!H:H))","v":" "},null,null,null,null,"."]
[null,null,null,null,null,null,null,null,null,null,null,null,{"$f":"IF(L439=\"\",\" \",LOOKUP(L439,FLOTA!A:A,FLOTA!B:B))","v":" "},"",{"$f":"IF(N439=\"\",\" \",LOOKUP(N439,FLOTA!A:A,FLOTA!H:H))","v":" "},null,null,null,null,"."]
[null,null,null,null,null,null,null,null,null,null,null,null,{"$f":"IF(L440=\"\",\" \",LOOKUP(L440,FLOTA!A:A,FLOTA!B:B))","v":" "},"",{"$f":"IF(N440=\"\",\" \",LOOKUP(N440,FLOTA!A:A,FLOTA!H:H))","v":" "},null,null,null,null,"."]
[null,null,null,null,null,null,null,null,null,null,null,null,{"$f":"IF(L441=\"\",\" \",LOOKUP(L441,FLOTA!A:A,FLOTA!B:B))","v":" "},"",{"$f":"IF(N441=\"\",\" \",LOOKUP(N441,FLOTA!A:A,FLOTA!H:H))","v":" "},null,null,null,null,"."]
[null,null,null,null,null,null,null,null,null,null,null,null,{"$f":"IF(L442=\"\",\" \",LOOKUP(L442,FLOTA!A:A,FLOTA!B:B))","v":" "},"",{"$f":"IF(N442=\"\",\" \",LOOKUP(N442,FLOTA!A:A,FLOTA!H:H))","v":" "},null,null,null,null,"."]
[null,null,null,null,null,null,null,null,null,null,null,null,{"$f":"IF(L443=\"\",\" \",LOOKUP(L443,FLOTA!A:A,FLOTA!B:B))","v":" "},"",{"$f":"IF(N443=\"\",\" \",LOOKUP(N443,FLOTA!A:A,FLOTA!H:H))","v":" "},null,null,null,null,"."]
[null,null,null,null,null,null,null,null,null,null,null,null,{"$f":"IF(L444=\"\",\" \",LOOKUP(L444,FLOTA!A:A,FLOTA!B:B))","v":" "},"",{"$f":"IF(N444=\"\",\" \",LOOKUP(N444,FLOTA!A:A,FLOTA!H:H))","v":" "},null,null,null,null,"."]
[null,null,null,null,null,null,null,null,null,null,null,null,{"$f":"IF(L445=\"\",\" \",LOOKUP(L445,FLOTA!A:A,FLOTA!B:B))","v":" "},"",{"$f":"IF(N445=\"\",\" \",LOOKUP(N445,FLOTA!A:A,FLOTA!H:H))","v":" "},null,null,null,null,"."]
[null,null,null,null,null,null,null,null,null,null,null,null,{"$f":"IF(L446=\"\",\" \",LOOKUP(L446,FLOTA!A:A,FLOTA!B:B))","v":" "},"",{"$f":"IF(N446=\"\",\" \",LOOKUP(N446,FLOTA!A:A,FLOTA!H:H))","v":" "},null,null,null,null,"."]
[null,null,null,null,null,null,null,null,null,null,null,null,{"$f":"IF(L447=\"\",\" \",LOOKUP(L447,FLOTA!A:A,FLOTA!B:B))","v":" "},"",{"$f":"IF(N447=\"\",\" \",LOOKUP(N447,FLOTA!A:A,FLOTA!H:H))","v":" "},null,null,null,null,"."]
[null,null,null,null,null,null,null,null,null,null,null,null,{"$f":"IF(L448=\"\",\" \",LOOKUP(L448,FLOTA!A:A,FLOTA!B:B))","v":" "},"",{"$f":"IF(N448=\"\",\" \",LOOKUP(N448,FLOTA!A:A,FLOTA!H:H))","v":" "},null,null,null,null,"."]
[null,null,null,null,null,null,null,null,null,null,null,null,{"$f":"IF(L449=\"\",\" \",LOOKUP(L449,FLOTA!A:A,FLOTA!B:B))","v":" "},{"$f":"IF(L449=\"\",\"\",L449)","v":""},{"$f":"IF(N449=\"\",\" \",LOOKUP(N449,FLOTA!A:A,FLOTA!H:H))","v":" "},null,null,null,null,"."]
[null,null,null,null,null,null,null,null,null,null,null,null,{"$f":"IF(L450=\"\",\" \",LOOKUP(L450,FLOTA!A:A,FLOTA!B:B))","v":" "},"",{"$f":"IF(N450=\"\",\" \",LOOKUP(N450,FLOTA!A:A,FLOTA!H:H))","v":" "},null,null,null,null,"."]
[null,null,null,null,null,null,null,null,null,null,null,null,{"$f":"IF(L451=\"\",\" \",LOOKUP(L451,FLOTA!A:A,FLOTA!B:B))","v":" "},"",{"$f":"IF(N451=\"\",\" \",LOOKUP(N451,FLOTA!A:A,FLOTA!H:H))","v":" "},null,null,null,null,"."]
[null,null,null,null,null,null,null,null,null,null,null,null,{"$f":"IF(L452=\"\",\" \",LOOKUP(L452,FLOTA!A:A,FLOTA!B:B))","v":" "},"",{"$f":"IF(N452=\"\",\" \",LOOKUP(N452,FLOTA!A:A,FLOTA!H:H))","v":" "},null,null,null,null,"."]
[null,null,null,null,null,null,null,null,null,null,null,null,{"$f":"IF(L453=\"\",\" \",LOOKUP(L453,FLOTA!A:A,FLOTA!B:B))","v":" "},"",{"$f":"IF(N453=\"\",\" \",LOOKUP(N453,FLOTA!A:A,FLOTA!H:H))","v":" "},null,null,null,null,"."]
[null,null,null,null,null,null,null,null,null,null,null,null,{"$f":"IF(L454=\"\",\" \",LOOKUP(L454,FLOTA!A:A,FLOTA!B:B))","v":" "},"",{"$f":"IF(N454=\"\",\" \",LOOKUP(N454,FLOTA!A:A,FLOTA!H:H))","v":" "},null,null,null,null,"."]
[null,null,null,null,null,null,null,null,null,null,null,null,{"$f":"IF(L455=\"\",\" \",LOOKUP(L455,FLOTA!A:A,FLOTA!B:B))","v":" "},"",{"$f":"IF(N455=\"\",\" \",LOOKUP(N455,FLOTA!A:A,FLOTA!H:H))","v":" "},null,null,null,null,"."]
[null,null,null,null,null,null,null,null,null,null,null,null,{"$f":"IF(L456=\"\",\" \",LOOKUP(L456,FLOTA!A:A,FLOTA!B:B))","v":" "},"",{"$f":"IF(N456=\"\",\" \",LOOKUP(N456,FLOTA!A:A,FLOTA!H:H))","v":" "},null,null,null,null,"."]
[null,null,null,null,null,null,null,null,null,null,null,null,{"$f":"IF(L457=\"\",\" \",LOOKUP(L457,FLOTA!A:A,FLOTA!B:B))","v":" "},"",{"$f":"IF(N457=\"\",\" \",LOOKUP(N457,FLOTA!A:A,FLOTA!H:H))","v":" "},null,null,null,null,"."]
[null,null,null,null,null,null,null,null,null,null,null,null,{"$f":"IF(L458=\"\",\" \",LOOKUP(L458,FLOTA!A:A,FLOTA!B:B))","v":" "},"",{"$f":"IF(N458=\"\",\" \",LOOKUP(N458,FLOTA!A:A,FLOTA!H:H))","v":" "},null,null,null,null,"."]
[null,null,null,null,null,null,null,null,null,null,null,null,{"$f":"IF(L459=\"\",\" \",LOOKUP(L459,FLOTA!A:A,FLOTA!B:B))","v":" "},"",{"$f":"IF(N459=\"\",\" \",LOOKUP(N459,FLOTA!A:A,FLOTA!H:H))","v":" "},null,null,null,null,"."]
[null,null,null,null,null,null,null,null,null,null,null,null,{"$f":"IF(L460=\"\",\" \",LOOKUP(L460,FLOTA!A:A,FLOTA!B:B))","v":" "},"",{"$f":"IF(N460=\"\",\" \",LOOKUP(N460,FLOTA!A:A,FLOTA!H:H))","v":" "},null,null,null,null,"."]
[null,null,null,null,null,null,null,null,null,null,null,null,{"$f":"IF(L461=\"\",\" \",LOOKUP(L461,FLOTA!A:A,FLOTA!B:B))","v":" "},"",{"$f":"IF(N461=\"\",\" \",LOOKUP(N461,FLOTA!A:A,FLOTA!H:H))","v":" "},null,null,null,null,"."]
[null,null,null,null,null,null,null,null,null,null,null,null,{"$f":"IF(L462=\"\",\" \",LOOKUP(L462,FLOTA!A:A,FLOTA!B:B))","v":" "},"",{"$f":"IF(N462=\"\",\" \",LOOKUP(N462,FLOTA!A:A,FLOTA!H:H))","v":" "},null,null,null,null,"."]
[null,null,null,null,null,null,null,null,null,null,null,null,{"$f":"IF(L463=\"\",\" \",LOOKUP(L463,FLOTA!A:A,FLOTA!B:B))","v":" "},"",{"$f":"IF(N463=\"\",\" \",LOOKUP(N463,FLOTA!A:A,FLOTA!H:H))","v":" "},null,null,null,null,"."]
[null,null,null,null,null,null,null,null,null,null,null,null,{"$f":"IF(L464=\"\",\" \",LOOKUP(L464,FLOTA!A:A,FLOTA!B:B))","v":" "},"",{"$f":"IF(N464=\"\",\" \",LOOKUP(N464,FLOTA!A:A,FLOTA!H:H))","v":" "},null,null,null,null,"."]
[null,null,null,null,null,null,null,null,null,null,null,null,{"$f":"IF(L465=\"\",\" \",LOOKUP(L465,FLOTA!A:A,FLOTA!B:B))","v":" "},"",{"$f":"IF(N465=\"\",\" \",LOOKUP(N465,FLOTA!A:A,FLOTA!H:H))","v":" "},null,null,null,null,"."]
[null,null,null,null,null,null,null,null,null,null,null,null,{"$f":"IF(L466=\"\",\" \",LOOKUP(L466,FLOTA!A:A,FLOTA!B:B))","v":" "},"",{"$f":"IF(N466=\"\",\" \",LOOKUP(N466,FLOTA!A:A,FLOTA!H:H))","v":" "},null,null,null,null,"."]
[null,null,null,null,null,null,null,null,null,null,null,null,{"$f":"IF(L467=\"\",\" \",LOOKUP(L467,FLOTA!A:A,FLOTA!B:B))","v":" "},"",{"$f":"IF(N467=\"\",\" \",LOOKUP(N467,FLOTA!A:A,FLOTA!H:H))","v":" "},null,null,null,null,"."]
[null,null,null,null,null,null,null,null,null,null,null,null,{"$f":"IF(L468=\"\",\" \",LOOKUP(L468,FLOTA!A:A,FLOTA!B:B))","v":" "},"",{"$f":"IF(N468=\"\",\" \",LOOKUP(N468,FLOTA!A:A,FLOTA!H:H))","v":" "},null,null,null,null,"."]
[null,null,null,null,null,null,null,null,null,null,null,null,{"$f":"IF(L469=\"\",\" \",LOOKUP(L469,FLOTA!A:A,FLOTA!B:B))","v":" "},"",{"$f":"IF(N469=\"\",\" \",LOOKUP(N469,FLOTA!A:A,FLOTA!H:H))","v":" "},null,null,null,null,"."]
[null,null,null,null,null,null,null,null,null,null,null,null,{"$f":"IF(L470=\"\",\" \",LOOKUP(L470,FLOTA!A:A,FLOTA!B:B))","v":" "},"",{"$f":"IF(N470=\"\",\" \",LOOKUP(N470,FLOTA!A:A,FLOTA!H:H))","v":" "},null,null,null,null,"."]
[null,null,null,null,null,null,null,null,null,null,null,null,{"$f":"IF(L471=\"\",\" \",LOOKUP(L471,FLOTA!A:A,FLOTA!B:B))","v":" "},"",{"$f":"IF(N471=\"\",\" \",LOOKUP(N471,FLOTA!A:A,FLOTA!H:H))","v":" "},null,null,null,null,"."]
[null,null,null,null,null,null,null,null,null,null,null,null,{"$f":"IF(L472=\"\",\" \",LOOKUP(L472,FLOTA!A:A,FLOTA!B:B))","v":" "},"",{"$f":"IF(N472=\"\",\" \",LOOKUP(N472,FLOTA!A:A,FLOTA!H:H))","v":" "},null,null,null,null,"."]
[null,null,null,null,null,null,null,null,null,null,null,null,{"$f":"IF(L473=\"\",\" \",LOOKUP(L473,FLOTA!A:A,FLOTA!B:B))","v":" "},"",{"$f":"IF(N473=\"\",\" \",LOOKUP(N473,FLOTA!A:A,FLOTA!H:H))","v":" "},null,null,null,null,"."]
[null,null,null,null,null,null,null,null,null,null,null,null,{"$f":"IF(L474=\"\",\" \",LOOKUP(L474,FLOTA!A:A,FLOTA!B:B))","v":" "},"",{"$f":"IF(N474=\"\",\" \",LOOKUP(N474,FLOTA!A:A,FLOTA!H:H))","v":" "},null,null,null,null,"."]
[null,null,null,null,null,null,null,null,null,null,null,null,{"$f":"IF(L475=\"\",\" \",LOOKUP(L475,FLOTA!A:A,FLOTA!B:B))","v":" "},"",{"$f":"IF(N475=\"\",\" \",LOOKUP(N475,FLOTA!A:A,FLOTA!H:H))","v":" "},null,null,null,null,"."]
[null,null,null,null,null,null,null,null,null,null,null,null,{"$f":"IF(L476=\"\",\" \",LOOKUP(L476,FLOTA!A:A,FLOTA!B:B))","v":" "},"",{"$f":"IF(N476=\"\",\" \",LOOKUP(N476,FLOTA!A:A,FLOTA!H:H))","v":" "},null,null,null,null,"."]
[null,null,null,null,null,null,null,null,null,null,null,null,{"$f":"IF(L477=\"\",\" \",LOOKUP(L477,FLOTA!A:A,FLOTA!B:B))","v":" "},"",{"$f":"IF(N477=\"\",\" \",LOOKUP(N477,FLOTA!A:A,FLOTA!H:H))","v":" "},null,null,null,null,"."]
[null,null,null,null,null,null,null,null,null,null,null,null,{"$f":"IF(L478=\"\",\" \",LOOKUP(L478,FLOTA!A:A,FLOTA!B:B))","v":" "},"",{"$f":"IF(N478=\"\",\" \",LOOKUP(N478,FLOTA!A:A,FLOTA!H:H))","v":" "},null,null,null,null,"."]
[null,null,null,null,null,null,null,null,null,null,null,null,{"$f":"IF(L479=\"\",\" \",LOOKUP(L479,FLOTA!A:A,FLOTA!B:B))","v":" "},"",{"$f":"IF(N479=\"\",\" \",LOOKUP(N479,FLOTA!A:A,FLOTA!H:H))","v":" "},null,null,null,null,"."]
[null,null,null,null,null,null,null,null,null,null,null,null,{"$f":"IF(L480=\"\",\" \",LOOKUP(L480,FLOTA!A:A,FLOTA!B:B))","v":" "},"",{"$f":"IF(N480=\"\",\" \",LOOKUP(N480,FLOTA!A:A,FLOTA!H:H))","v":" "},null,null,null,null,"."]
[null,null,null,null,null,null,null,null,null,null,null,null,{"$f":"IF(L481=\"\",\" \",LOOKUP(L481,FLOTA!A:A,FLOTA!B:B))","v":" "},"",{"$f":"IF(N481=\"\",\" \",LOOKUP(N481,FLOTA!A:A,FLOTA!H:H))","v":" "},null,null,null,null,"."]
[null,null,null,null,null,null,null,null,null,null,null,null,{"$f":"IF(L482=\"\",\" \",LOOKUP(L482,FLOTA!A:A,FLOTA!B:B))","v":" "},"",{"$f":"IF(N482=\"\",\" \",LOOKUP(N482,FLOTA!A:A,FLOTA!H:H))","v":" "},null,null,null,null,"."]
[null,null,null,null,null,null,null,null,null,null,null,null,{"$f":"IF(L483=\"\",\" \",LOOKUP(L483,FLOTA!A:A,FLOTA!B:B))","v":" "},"",{"$f":"IF(N483=\"\",\" \",LOOKUP(N483,FLOTA!A:A,FLOTA!H:H))","v":" "},null,null,null,null,"."]
[null,null,null,null,null,null,null,null,null,null,null,null,{"$f":"IF(L484=\"\",\" \",LOOKUP(L484,FLOTA!A:A,FLOTA!B:B))","v":" "},"",{"$f":"IF(N484=\"\",\" \",LOOKUP(N484,FLOTA!A:A,FLOTA!H:H))","v":" "},null,null,null,null,"."]
[null,null,null,null,null,null,null,null,null,null,null,null,{"$f":"IF(L485=\"\",\" \",LOOKUP(L485,FLOTA!A:A,FLOTA!B:B))","v":" "},"",{"$f":"IF(N485=\"\",\" \",LOOKUP(N485,FLOTA!A:A,FLOTA!H:H))","v":" "},null,null,null,null,"."]
[null,null,null,null,null,null,null,null,null,null,null,null,{"$f":"IF(L486=\"\",\" \",LOOKUP(L486,FLOTA!A:A,FLOTA!B:B))","v":" "},"",{"$f":"IF(N486=\"\",\" \",LOOKUP(N486,FLOTA!A:A,FLOTA!H:H))","v":" "},null,null,null,null,"."]
[null,null,null,null,null,null,null,null,null,null,null,null,{"$f":"IF(L487=\"\",\" \",LOOKUP(L487,FLOTA!A:A,FLOTA!B:B))","v":" "},"",{"$f":"IF(N487=\"\",\" \",LOOKUP(N487,FLOTA!A:A,FLOTA!H:H))","v":" "},null,null,null,null,"."]
[null,null,null,null,null,null,null,null,null,null,null,null,{"$f":"IF(L488=\"\",\" \",LOOKUP(L488,FLOTA!A:A,FLOTA!B:B))","v":" "},"",{"$f":"IF(N488=\"\",\" \",LOOKUP(N488,FLOTA!A:A,FLOTA!H:H))","v":" "},null,null,null,null,"."]
[null,null,null,null,null,null,null,null,null,null,null,null,{"$f":"IF(L489=\"\",\" \",LOOKUP(L489,FLOTA!A:A,FLOTA!B:B))","v":" "},"",{"$f":"IF(N489=\"\",\" \",LOOKUP(N489,FLOTA!A:A,FLOTA!H:H))","v":" "},null,null,null,null,"."]
[null,null,null,null,null,null,null,null,null,null,null,null,{"$f":"IF(L490=\"\",\" \",LOOKUP(L490,FLOTA!A:A,FLOTA!B:B))","v":" "},"",{"$f":"IF(N490=\"\",\" \",LOOKUP(N490,FLOTA!A:A,FLOTA!H:H))","v":" "},null,null,null,null,"."]
[null,null,null,null,null,null,null,null,null,null,null,null,{"$f":"IF(L491=\"\",\" \",LOOKUP(L491,FLOTA!A:A,FLOTA!B:B))","v":" "},"",{"$f":"IF(N491=\"\",\" \",LOOKUP(N491,FLOTA!A:A,FLOTA!H:H))","v":" "},null,null,null,null,"."]
[null,null,null,null,null,null,null,null,null,null,null,null,{"$f":"IF(L492=\"\",\" \",LOOKUP(L492,FLOTA!A:A,FLOTA!B:B))","v":" "},"",{"$f":"IF(N492=\"\",\" \",LOOKUP(N492,FLOTA!A:A,FLOTA!H:H))","v":" "},null,null,null,null,"."]
[null,null,null,null,null,null,null,null,null,null,null,null,{"$f":"IF(L493=\"\",\" \",LOOKUP(L493,FLOTA!A:A,FLOTA!B:B))","v":" "},"",{"$f":"IF(N493=\"\",\" \",LOOKUP(N493,FLOTA!A:A,FLOTA!H:H))","v":" "},null,null,null,null,"."]
[null,null,null,null,null,null,null,null,null,null,null,null,{"$f":"IF(L494=\"\",\" \",LOOKUP(L494,FLOTA!A:A,FLOTA!B:B))","v":" "},"",{"$f":"IF(N494=\"\",\" \",LOOKUP(N494,FLOTA!A:A,FLOTA!H:H))","v":" "},null,null,null,null,"."]
[null,null,null,null,null,null,null,null,null,null,null,null,{"$f":"IF(L495=\"\",\" \",LOOKUP(L495,FLOTA!A:A,FLOTA!B:B))","v":" "},"",{"$f":"IF(N495=\"\",\" \",LOOKUP(N495,FLOTA!A:A,FLOTA!H:H))","v":" "},null,null,null,null,"."]
[null,null,null,null,null,null,null,null,null,null,null,null,{"$f":"IF(L496=\"\",\" \",LOOKUP(L496,FLOTA!A:A,FLOTA!B:B))","v":" "},"",{"$f":"IF(N496=\"\",\" \",LOOKUP(N496,FLOTA!A:A,FLOTA!H:H))","v":" "},null,null,null,null,"."]
[null,null,null,null,null,null,null,null,null,null,null,null,{"$f":"IF(L497=\"\",\" \",LOOKUP(L497,FLOTA!A:A,FLOTA!B:B))","v":" "},"",{"$f":"IF(N497=\"\",\" \",LOOKUP(N497,FLOTA!A:A,FLOTA!H:H))","v":" "},null,null,null,null,"."]
[null,null,null,null,null,null,null,null,null,null,null,null,{"$f":"IF(L498=\"\",\" \",LOOKUP(L498,FLOTA!A:A,FLOTA!B:B))","v":" "},"",{"$f":"IF(N498=\"\",\" \",LOOKUP(N498,FLOTA!A:A,FLOTA!H:H))","v":" "},null,null,null,null,"."]
[null,null,null,null,null,null,null,null,null,null,null,null,{"$f":"IF(L499=\"\",\" \",LOOKUP(L499,FLOTA!A:A,FLOTA!B:B))","v":" "},"",{"$f":"IF(N499=\"\",\" \",LOOKUP(N499,FLOTA!A:A,FLOTA!H:H))","v":" "},null,null,null,null,"."]
[null,null,null,null,null,null,null,null,null,null,null,null,{"$f":"IF(L500=\"\",\" \",LOOKUP(L500,FLOTA!A:A,FLOTA!B:B))","v":" "},"",{"$f":"IF(N500=\"\",\" \",LOOKUP(N500,FLOTA!A:A,FLOTA!H:H))","v":" "},null,null,null,null,"."]
[null,null,null,null,null,null,null,null,null,null,null,null,{"$f":"IF(L501=\"\",\" \",LOOKUP(L501,FLOTA!A:A,FLOTA!B:B))","v":" "},"",{"$f":"IF(N501=\"\",\" \",LOOKUP(N501,FLOTA!A:A,FLOTA!H:H))","v":" "},null,null,null,null,"."]
[null,null,null,null,null,null,null,null,null,null,null,null,{"$f":"IF(L502=\"\",\" \",LOOKUP(L502,FLOTA!A:A,FLOTA!B:B))","v":" "},"",{"$f":"IF(N502=\"\",\" \",LOOKUP(N502,FLOTA!A:A,FLOTA!H:H))","v":" "},null,null,null,null,"."]
[null,null,null,null,null,null,null,null,null,null,null,null,{"$f":"IF(L503=\"\",\" \",LOOKUP(L503,FLOTA!A:A,FLOTA!B:B))","v":" "},"",{"$f":"IF(N503=\"\",\" \",LOOKUP(N503,FLOTA!A:A,FLOTA!H:H))","v":" "},null,null,null,null,"."]
[null,null,null,null,null,null,null,null,null,null,null,null,{"$f":"IF(L504=\"\",\" \",LOOKUP(L504,FLOTA!A:A,FLOTA!B:B))","v":" "},"",{"$f":"IF(N504=\"\",\" \",LOOKUP(N504,FLOTA!A:A,FLOTA!H:H))","v":" "},null,null,null,null,"."]
[null,null,null,null,null,null,null,null,null,null,null,null,{"$f":"IF(L505=\"\",\" \",LOOKUP(L505,FLOTA!A:A,FLOTA!B:B))","v":" "},"",{"$f":"IF(N505=\"\",\" \",LOOKUP(N505,FLOTA!A:A,FLOTA!H:H))","v":" "},null,null,null,null,"."]
[null,null,null,null,null,null,null,null,null,null,null,null,{"$f":"IF(L506=\"\",\" \",LOOKUP(L506,FLOTA!A:A,FLOTA!B:B))","v":" "},"",{"$f":"IF(N506=\"\",\" \",LOOKUP(N506,FLOTA!A:A,FLOTA!H:H))","v":" "},null,null,null,null,"."]
[null,null,null,null,null,null,null,null,null,null,null,null,{"$f":"IF(L507=\"\",\" \",LOOKUP(L507,FLOTA!A:A,FLOTA!B:B))","v":" "},"",{"$f":"IF(N507=\"\",\" \",LOOKUP(N507,FLOTA!A:A,FLOTA!H:H))","v":" "},null,null,null,null,"."]
[null,null,null,null,null,null,null,null,null,null,null,null,{"$f":"IF(L508=\"\",\" \",LOOKUP(L508,FLOTA!A:A,FLOTA!B:B))","v":" "},"",{"$f":"IF(N508=\"\",\" \",LOOKUP(N508,FLOTA!A:A,FLOTA!H:H))","v":" "},null,null,null,null,"."]
[null,null,null,null,null,null,null,null,null,null,null,null,{"$f":"IF(L509=\"\",\" \",LOOKUP(L509,FLOTA!A:A,FLOTA!B:B))","v":" "},"",{"$f":"IF(N509=\"\",\" \",LOOKUP(N509,FLOTA!A:A,FLOTA!H:H))","v":" "},null,null,null,null,"."]
[null,null,null,null,null,null,null,null,null,null,null,null,{"$f":"IF(L510=\"\",\" \",LOOKUP(L510,FLOTA!A:A,FLOTA!B:B))","v":" "},"",{"$f":"IF(N510=\"\",\" \",LOOKUP(N510,FLOTA!A:A,FLOTA!H:H))","v":" "},null,null,null,null,"."]
[null,null,null,null,null,null,null,null,null,null,null,null,{"$f":"IF(L511=\"\",\" \",LOOKUP(L511,FLOTA!A:A,FLOTA!B:B))","v":" "},"",{"$f":"IF(N511=\"\",\" \",LOOKUP(N511,FLOTA!A:A,FLOTA!H:H))","v":" "},null,null,null,null,"."]
[null,null,null,null,null,null,null,null,null,null,null,null,{"$f":"IF(L512=\"\",\" \",LOOKUP(L512,FLOTA!A:A,FLOTA!B:B))","v":" "},"",{"$f":"IF(N512=\"\",\" \",LOOKUP(N512,FLOTA!A:A,FLOTA!H:H))","v":" "},null,null,null,null,"."]
[null,null,null,null,null,null,null,null,null,null,null,null,{"$f":"IF(L513=\"\",\" \",LOOKUP(L513,FLOTA!A:A,FLOTA!B:B))","v":" "},{"$f":"IF(L513=\"\",\"\",L513)","v":""},{"$f":"IF(N513=\"\",\" \",LOOKUP(N513,FLOTA!A:A,FLOTA!H:H))","v":" "},null,null,null,null,"."]
[null,null,null,null,null,null,null,null,null,null,null,null,{"$f":"IF(L514=\"\",\" \",LOOKUP(L514,FLOTA!A:A,FLOTA!B:B))","v":" "},"",{"$f":"IF(N514=\"\",\" \",LOOKUP(N514,FLOTA!A:A,FLOTA!H:H))","v":" "},null,null,null,null,"."]
[null,null,null,null,null,null,null,null,null,null,null,null,{"$f":"IF(L515=\"\",\" \",LOOKUP(L515,FLOTA!A:A,FLOTA!B:B))","v":" "},"",{"$f":"IF(N515=\"\",\" \",LOOKUP(N515,FLOTA!A:A,FLOTA!H:H))","v":" "},null,null,null,null,"."]
[null,null,null,null,null,null,null,null,null,null,null,null,{"$f":"IF(L516=\"\",\" \",LOOKUP(L516,FLOTA!A:A,FLOTA!B:B))","v":" "},"",{"$f":"IF(N516=\"\",\" \",LOOKUP(N516,FLOTA!A:A,FLOTA!H:H))","v":" "},null,null,null,null,"."]
[null,null,null,null,null,null,null,null,null,null,null,null,{"$f":"IF(L517=\"\",\" \",LOOKUP(L517,FLOTA!A:A,FLOTA!B:B))","v":" "},"",{"$f":"IF(N517=\"\",\" \",LOOKUP(N517,FLOTA!A:A,FLOTA!H:H))","v":" "},null,null,null,null,"."]
[null,null,null,null,null,null,null,null,null,null,null,null,{"$f":"IF(L518=\"\",\" \",LOOKUP(L518,FLOTA!A:A,FLOTA!B:B))","v":" "},"",{"$f":"IF(N518=\"\",\" \",LOOKUP(N518,FLOTA!A:A,FLOTA!H:H))","v":" "},null,null,null,null,"."]
[null,null,null,null,null,null,null,null,null,null,null,null,{"$f":"IF(L519=\"\",\" \",LOOKUP(L519,FLOTA!A:A,FLOTA!B:B))","v":" "},"",{"$f":"IF(N519=\"\",\" \",LOOKUP(N519,FLOTA!A:A,FLOTA!H:H))","v":" "},null,null,null,null,"."]
[null,null,null,null,null,null,null,null,null,null,null,null,{"$f":"IF(L520=\"\",\" \",LOOKUP(L520,FLOTA!A:A,FLOTA!B:B))","v":" "},"",{"$f":"IF(N520=\"\",\" \",LOOKUP(N520,FLOTA!A:A,FLOTA!H:H))","v":" "},null,null,null,null,"."]
[null,null,null,null,null,null,null,null,null,null,null,null,{"$f":"IF(L521=\"\",\" \",LOOKUP(L521,FLOTA!A:A,FLOTA!B:B))","v":" "},"",{"$f":"IF(N521=\"\",\" \",LOOKUP(N521,FLOTA!A:A,FLOTA!H:H))","v":" "},null,null,null,null,"."]
[null,null,null,null,null,null,null,null,null,null,null,null,{"$f":"IF(L522=\"\",\" \",LOOKUP(L522,FLOTA!A:A,FLOTA!B:B))","v":" "},"",{"$f":"IF(N522=\"\",\" \",LOOKUP(N522,FLOTA!A:A,FLOTA!H:H))","v":" "},null,null,null,null,"."]
[null,null,null,null,null,null,null,null,null,null,null,null,{"$f":"IF(L523=\"\",\" \",LOOKUP(L523,FLOTA!A:A,FLOTA!B:B))","v":" "},"",{"$f":"IF(N523=\"\",\" \",LOOKUP(N523,FLOTA!A:A,FLOTA!H:H))","v":" "},null,null,null,null,"."]
[null,null,null,null,null,null,null,null,null,null,null,null,{"$f":"IF(L524=\"\",\" \",LOOKUP(L524,FLOTA!A:A,FLOTA!B:B))","v":" "},"",{"$f":"IF(N524=\"\",\" \",LOOKUP(N524,FLOTA!A:A,FLOTA!H:H))","v":" "},null,null,null,null,"."]
[null,null,null,null,null,null,null,null,null,null,null,null,{"$f":"IF(L525=\"\",\" \",LOOKUP(L525,FLOTA!A:A,FLOTA!B:B))","v":" "},"",{"$f":"IF(N525=\"\",\" \",LOOKUP(N525,FLOTA!A:A,FLOTA!H:H))","v":" "},null,null,null,null,"."]
[null,null,null,null,null,null,null,null,null,null,null,null,{"$f":"IF(L526=\"\",\" \",LOOKUP(L526,FLOTA!A:A,FLOTA!B:B))","v":" "},"",{"$f":"IF(N526=\"\",\" \",LOOKUP(N526,FLOTA!A:A,FLOTA!H:H))","v":" "},null,null,null,null,"."]
[null,null,null,null,null,null,null,null,null,null,null,null,{"$f":"IF(L527=\"\",\" \",LOOKUP(L527,FLOTA!A:A,FLOTA!B:B))","v":" "},"",{"$f":"IF(N527=\"\",\" \",LOOKUP(N527,FLOTA!A:A,FLOTA!H:H))","v":" "},null,null,null,null,"."]
[null,null,null,null,null,null,null,null,null,null,null,null,{"$f":"IF(L528=\"\",\" \",LOOKUP(L528,FLOTA!A:A,FLOTA!B:B))","v":" "},"",{"$f":"IF(N528=\"\",\" \",LOOKUP(N528,FLOTA!A:A,FLOTA!H:H))","v":" "},null,null,null,null,"."]
[null,null,null,null,null,null,null,null,null,null,null,null,{"$f":"IF(L529=\"\",\" \",LOOKUP(L529,FLOTA!A:A,FLOTA!B:B))","v":" "},"",{"$f":"IF(N529=\"\",\" \",LOOKUP(N529,FLOTA!A:A,FLOTA!H:H))","v":" "},null,null,null,null,"."]
[null,null,null,null,null,null,null,null,null,null,null,null,{"$f":"IF(L530=\"\",\" \",LOOKUP(L530,FLOTA!A:A,FLOTA!B:B))","v":" "},"",{"$f":"IF(N530=\"\",\" \",LOOKUP(N530,FLOTA!A:A,FLOTA!H:H))","v":" "},null,null,null,null,"."]
[null,null,null,null,null,null,null,null,null,null,null,null,{"$f":"IF(L531=\"\",\" \",LOOKUP(L531,FLOTA!A:A,FLOTA!B:B))","v":" "},"",{"$f":"IF(N531=\"\",\" \",LOOKUP(N531,FLOTA!A:A,FLOTA!H:H))","v":" "},null,null,null,null,"."]
[null,null,null,null,null,null,null,null,null,null,null,null,{"$f":"IF(L532=\"\",\" \",LOOKUP(L532,FLOTA!A:A,FLOTA!B:B))","v":" "},"",{"$f":"IF(N532=\"\",\" \",LOOKUP(N532,FLOTA!A:A,FLOTA!H:H))","v":" "},null,null,null,null,"."]
[null,null,null,null,null,null,null,null,null,null,null,null,{"$f":"IF(L533=\"\",\" \",LOOKUP(L533,FLOTA!A:A,FLOTA!B:B))","v":" "},"",{"$f":"IF(N533=\"\",\" \",LOOKUP(N533,FLOTA!A:A,FLOTA!H:H))","v":" "},null,null,null,null,"."]
[null,null,null,null,null,null,null,null,null,null,null,null,{"$f":"IF(L534=\"\",\" \",LOOKUP(L534,FLOTA!A:A,FLOTA!B:B))","v":" "},"",{"$f":"IF(N534=\"\",\" \",LOOKUP(N534,FLOTA!A:A,FLOTA!H:H))","v":" "},null,null,null,null,"."]
[null,null,null,null,null,null,null,null,null,null,null,null,{"$f":"IF(L535=\"\",\" \",LOOKUP(L535,FLOTA!A:A,FLOTA!B:B))","v":" "},"",{"$f":"IF(N535=\"\",\" \",LOOKUP(N535,FLOTA!A:A,FLOTA!H:H))","v":" "},null,null,null,null,"."]
[null,null,null,null,null,null,null,null,null,null,null,null,{"$f":"IF(L536=\"\",\" \",LOOKUP(L536,FLOTA!A:A,FLOTA!B:B))","v":" "},"",{"$f":"IF(N536=\"\",\" \",LOOKUP(N536,FLOTA!A:A,FLOTA!H:H))","v":" "},null,null,null,null,"."]
[null,null,null,null,null,null,null,null,null,null,null,null,{"$f":"IF(L537=\"\",\" \",LOOKUP(L537,FLOTA!A:A,FLOTA!B:B))","v":" "},"",{"$f":"IF(N537=\"\",\" \",LOOKUP(N537,FLOTA!A:A,FLOTA!H:H))","v":" "},null,null,null,null,"."]
[null,null,null,null,null,null,null,null,null,null,null,null,{"$f":"IF(L538=\"\",\" \",LOOKUP(L538,FLOTA!A:A,FLOTA!B:B))","v":" "},"",{"$f":"IF(N538=\"\",\" \",LOOKUP(N538,FLOTA!A:A,FLOTA!H:H))","v":" "},null,null,null,null,"."]
[null,null,null,null,null,null,null,null,null,null,null,null,{"$f":"IF(L539=\"\",\" \",LOOKUP(L539,FLOTA!A:A,FLOTA!B:B))","v":" "},"",{"$f":"IF(N539=\"\",\" \",LOOKUP(N539,FLOTA!A:A,FLOTA!H:H))","v":" "},null,null,null,null,"."]
[null,null,null,null,null,null,null,null,null,null,null,null,{"$f":"IF(L540=\"\",\" \",LOOKUP(L540,FLOTA!A:A,FLOTA!B:B))","v":" "},"",{"$f":"IF(N540=\"\",\" \",LOOKUP(N540,FLOTA!A:A,FLOTA!H:H))","v":" "},null,null,null,null,"."]
[null,null,null,null,null,null,null,null,null,null,null,null,{"$f":"IF(L541=\"\",\" \",LOOKUP(L541,FLOTA!A:A,FLOTA!B:B))","v":" "},"",{"$f":"IF(N541=\"\",\" \",LOOKUP(N541,FLOTA!A:A,FLOTA!H:H))","v":" "},null,null,null,null,"."]
[null,null,null,null,null,null,null,null,null,null,null,null,{"$f":"IF(L542=\"\",\" \",LOOKUP(L542,FLOTA!A:A,FLOTA!B:B))","v":" "},"",{"$f":"IF(N542=\"\",\" \",LOOKUP(N542,FLOTA!A:A,FLOTA!H:H))","v":" "},null,null,null,null,"."]
[null,null,null,null,null,null,null,null,null,null,null,null,{"$f":"IF(L543=\"\",\" \",LOOKUP(L543,FLOTA!A:A,FLOTA!B:B))","v":" "},"",{"$f":"IF(N543=\"\",\" \",LOOKUP(N543,FLOTA!A:A,FLOTA!H:H))","v":" "},null,null,null,null,"."]
[null,null,null,null,null,null,null,null,null,null,null,null,{"$f":"IF(L544=\"\",\" \",LOOKUP(L544,FLOTA!A:A,FLOTA!B:B))","v":" "},"",{"$f":"IF(N544=\"\",\" \",LOOKUP(N544,FLOTA!A:A,FLOTA!H:H))","v":" "},null,null,null,null,"."]
[null,null,null,null,null,null,null,null,null,null,null,null,{"$f":"IF(L545=\"\",\" \",LOOKUP(L545,FLOTA!A:A,FLOTA!B:B))","v":" "},"",{"$f":"IF(N545=\"\",\" \",LOOKUP(N545,FLOTA!A:A,FLOTA!H:H))","v":" "},null,null,null,null,"."]
[null,null,null,null,null,null,null,null,null,null,null,null,{"$f":"IF(L546=\"\",\" \",LOOKUP(L546,FLOTA!A:A,FLOTA!B:B))","v":" "},"",{"$f":"IF(N546=\"\",\" \",LOOKUP(N546,FLOTA!A:A,FLOTA!H:H))","v":" "},null,null,null,null,"."]
[null,null,null,null,null,null,null,null,null,null,null,null,{"$f":"IF(L547=\"\",\" \",LOOKUP(L547,FLOTA!A:A,FLOTA!B:B))","v":" "},"",{"$f":"IF(N547=\"\",\" \",LOOKUP(N547,FLOTA!A:A,FLOTA!H:H))","v":" "},null,null,null,null,"."]
[null,null,null,null,null,null,null,null,null,null,null,null,{"$f":"IF(L548=\"\",\" \",LOOKUP(L548,FLOTA!A:A,FLOTA!B:B))","v":" "},"",{"$f":"IF(N548=\"\",\" \",LOOKUP(N548,FLOTA!A:A,FLOTA!H:H))","v":" "},null,null,null,null,"."]
[null,null,null,null,null,null,null,null,null,null,null,null,{"$f":"IF(L549=\"\",\" \",LOOKUP(L549,FLOTA!A:A,FLOTA!B:B))","v":" "},"",{"$f":"IF(N549=\"\",\" \",LOOKUP(N549,FLOTA!A:A,FLOTA!H:H))","v":" "},null,null,null,null,"."]
[null,null,null,null,null,null,null,null,null,null,null,null,{"$f":"IF(L550=\"\",\" \",LOOKUP(L550,FLOTA!A:A,FLOTA!B:B))","v":" "},"",{"$f":"IF(N550=\"\",\" \",LOOKUP(N550,FLOTA!A:A,FLOTA!H:H))","v":" "},null,null,null,null,"."]
[null,null,null,null,null,null,null,null,null,null,null,null,{"$f":"IF(L551=\"\",\" \",LOOKUP(L551,FLOTA!A:A,FLOTA!B:B))","v":" "},"",{"$f":"IF(N551=\"\",\" \",LOOKUP(N551,FLOTA!A:A,FLOTA!H:H))","v":" "},null,null,null,null,"."]
[null,null,null,null,null,null,null,null,null,null,null,null,{"$f":"IF(L552=\"\",\" \",LOOKUP(L552,FLOTA!A:A,FLOTA!B:B))","v":" "},"",{"$f":"IF(N552=\"\",\" \",LOOKUP(N552,FLOTA!A:A,FLOTA!H:H))","v":" "},null,null,null,null,"."]
[null,null,null,null,null,null,null,null,null,null,null,null,{"$f":"IF(L553=\"\",\" \",LOOKUP(L553,FLOTA!A:A,FLOTA!B:B))","v":" "},"",{"$f":"IF(N553=\"\",\" \",LOOKUP(N553,FLOTA!A:A,FLOTA!H:H))","v":" "},null,null,null,null,"."]
[null,null,null,null,null,null,null,null,null,null,null,null,{"$f":"IF(L554=\"\",\" \",LOOKUP(L554,FLOTA!A:A,FLOTA!B:B))","v":" "},"",{"$f":"IF(N554=\"\",\" \",LOOKUP(N554,FLOTA!A:A,FLOTA!H:H))","v":" "},null,null,null,null,"."]
[null,null,null,null,null,null,null,null,null,null,null,null,{"$f":"IF(L555=\"\",\" \",LOOKUP(L555,FLOTA!A:A,FLOTA!B:B))","v":" "},"",{"$f":"IF(N555=\"\",\" \",LOOKUP(N555,FLOTA!A:A,FLOTA!H:H))","v":" "},null,null,null,null,"."]
[null,null,null,null,null,null,null,null,null,null,null,null,{"$f":"IF(L556=\"\",\" \",LOOKUP(L556,FLOTA!A:A,FLOTA!B:B))","v":" "},"",{"$f":"IF(N556=\"\",\" \",LOOKUP(N556,FLOTA!A:A,FLOTA!H:H))","v":" "},null,null,null,null,"."]
[null,null,null,null,null,null,null,null,null,null,null,null,{"$f":"IF(L557=\"\",\" \",LOOKUP(L557,FLOTA!A:A,FLOTA!B:B))","v":" "},"",{"$f":"IF(N557=\"\",\" \",LOOKUP(N557,FLOTA!A:A,FLOTA!H:H))","v":" "},null,null,null,null,"."]
[null,null,null,null,null,null,null,null,null,null,null,null,{"$f":"IF(L558=\"\",\" \",LOOKUP(L558,FLOTA!A:A,FLOTA!B:B))","v":" "},"",{"$f":"IF(N558=\"\",\" \",LOOKUP(N558,FLOTA!A:A,FLOTA!H:H))","v":" "},null,null,null,null,"."]
[null,null,null,null,null,null,null,null,null,null,null,null,{"$f":"IF(L559=\"\",\" \",LOOKUP(L559,FLOTA!A:A,FLOTA!B:B))","v":" "},"",{"$f":"IF(N559=\"\",\" \",LOOKUP(N559,FLOTA!A:A,FLOTA!H:H))","v":" "},null,null,null,null,"."]
[null,null,null,null,null,null,null,null,null,null,null,null,{"$f":"IF(L560=\"\",\" \",LOOKUP(L560,FLOTA!A:A,FLOTA!B:B))","v":" "},"",{"$f":"IF(N560=\"\",\" \",LOOKUP(N560,FLOTA!A:A,FLOTA!H:H))","v":" "},null,null,null,null,"."]
[null,null,null,null,null,null,null,null,null,null,null,null,{"$f":"IF(L561=\"\",\" \",LOOKUP(L561,FLOTA!A:A,FLOTA!B:B))","v":" "},"",{"$f":"IF(N561=\"\",\" \",LOOKUP(N561,FLOTA!A:A,FLOTA!H:H))","v":" "},null,null,null,null,"."]
[null,null,null,null,null,null,null,null,null,null,null,null,{"$f":"IF(L562=\"\",\" \",LOOKUP(L562,FLOTA!A:A,FLOTA!B:B))","v":" "},"",{"$f":"IF(N562=\"\",\" \",LOOKUP(N562,FLOTA!A:A,FLOTA!H:H))","v":" "},null,null,null,null,"."]
[null,null,null,null,null,null,null,null,null,null,null,null,{"$f":"IF(L563=\"\",\" \",LOOKUP(L563,FLOTA!A:A,FLOTA!B:B))","v":" "},"",{"$f":"IF(N563=\"\",\" \",LOOKUP(N563,FLOTA!A:A,FLOTA!H:H))","v":" "},null,null,null,null,"."]
[null,null,null,null,null,null,null,null,null,null,null,null,{"$f":"IF(L564=\"\",\" \",LOOKUP(L564,FLOTA!A:A,FLOTA!B:B))","v":" "},"",{"$f":"IF(N564=\"\",\" \",LOOKUP(N564,FLOTA!A:A,FLOTA!H:H))","v":" "},null,null,null,null,"."]
[null,null,null,null,null,null,null,null,null,null,null,null,{"$f":"IF(L565=\"\",\" \",LOOKUP(L565,FLOTA!A:A,FLOTA!B:B))","v":" "},"",{"$f":"IF(N565=\"\",\" \",LOOKUP(N565,FLOTA!A:A,FLOTA!H:H))","v":" "},null,null,null,null,"."]
[null,null,null,null,null,null,null,null,null,null,null,null,{"$f":"IF(L566=\"\",\" \",LOOKUP(L566,FLOTA!A:A,FLOTA!B:B))","v":" "},"",{"$f":"IF(N566=\"\",\" \",LOOKUP(N566,FLOTA!A:A,FLOTA!H:H))","v":" "},null,null,null,null,"."]
[null,null,null,null,null,null,null,null,null,null,null,null,{"$f":"IF(L567=\"\",\" \",LOOKUP(L567,FLOTA!A:A,FLOTA!B:B))","v":" "},"",{"$f":"IF(N567=\"\",\" \",LOOKUP(N567,FLOTA!A:A,FLOTA!H:H))","v":" "},null,null,null,null,"."]
[null,null,null,null,null,null,null,null,null,null,null,null,{"$f":"IF(L568=\"\",\" \",LOOKUP(L568,FLOTA!A:A,FLOTA!B:B))","v":" "},"",{"$f":"IF(N568=\"\",\" \",LOOKUP(N568,FLOTA!A:A,FLOTA!H:H))","v":" "},null,null,null,null,"."]
[null,null,null,null,null,null,null,null,null,null,null,null,{"$f":"IF(L569=\"\",\" \",LOOKUP(L569,FLOTA!A:A,FLOTA!B:B))","v":" "},"",{"$f":"IF(N569=\"\",\" \",LOOKUP(N569,FLOTA!A:A,FLOTA!H:H))","v":" "},null,null,null,null,"."]
[null,null,null,null,null,null,null,null,null,null,null,null,{"$f":"IF(L570=\"\",\" \",LOOKUP(L570,FLOTA!A:A,FLOTA!B:B))","v":" "},"",{"$f":"IF(N570=\"\",\" \",LOOKUP(N570,FLOTA!A:A,FLOTA!H:H))","v":" "},null,null,null,null,"."]
[null,null,null,null,null,null,null,null,null,null,null,null,{"$f":"IF(L571=\"\",\" \",LOOKUP(L571,FLOTA!A:A,FLOTA!B:B))","v":" "},"",{"$f":"IF(N571=\"\",\" \",LOOKUP(N571,FLOTA!A:A,FLOTA!H:H))","v":" "},null,null,null,null,"."]
[null,null,null,null,null,null,null,null,null,null,null,null,{"$f":"IF(L572=\"\",\" \",LOOKUP(L572,FLOTA!A:A,FLOTA!B:B))","v":" "},"",{"$f":"IF(N572=\"\",\" \",LOOKUP(N572,FLOTA!A:A,FLOTA!H:H))","v":" "},null,null,null,null,"."]
[null,null,null,null,null,null,null,null,null,null,null,null,{"$f":"IF(L573=\"\",\" \",LOOKUP(L573,FLOTA!A:A,FLOTA!B:B))","v":" "},"",{"$f":"IF(N573=\"\",\" \",LOOKUP(N573,FLOTA!A:A,FLOTA!H:H))","v":" "},null,null,null,null,"."]
[null,null,null,null,null,null,null,null,null,null,null,null,{"$f":"IF(L574=\"\",\" \",LOOKUP(L574,FLOTA!A:A,FLOTA!B:B))","v":" "},"",{"$f":"IF(N574=\"\",\" \",LOOKUP(N574,FLOTA!A:A,FLOTA!H:H))","v":" "},null,null,null,null,"."]
[null,null,null,null,null,null,null,null,null,null,null,null,{"$f":"IF(L575=\"\",\" \",LOOKUP(L575,FLOTA!A:A,FLOTA!B:B))","v":" "},"",{"$f":"IF(N575=\"\",\" \",LOOKUP(N575,FLOTA!A:A,FLOTA!H:H))","v":" "},null,null,null,null,"."]
[null,null,null,null,null,null,null,null,null,null,null,null,{"$f":"IF(L576=\"\",\" \",LOOKUP(L576,FLOTA!A:A,FLOTA!B:B))","v":" "},"",{"$f":"IF(N576=\"\",\" \",LOOKUP(N576,FLOTA!A:A,FLOTA!H:H))","v":" "},null,null,null,null,"."]
[null,null,null,null,null,null,null,null,null,null,null,null,{"$f":"IF(L577=\"\",\" \",LOOKUP(L577,FLOTA!A:A,FLOTA!B:B))","v":" "},{"$f":"IF(L577=\"\",\"\",L577)","v":""},{"$f":"IF(N577=\"\",\" \",LOOKUP(N577,FLOTA!A:A,FLOTA!H:H))","v":" "},null,null,null,null,"."]
[null,null,null,null,null,null,null,null,null,null,null,null,{"$f":"IF(L578=\"\",\" \",LOOKUP(L578,FLOTA!A:A,FLOTA!B:B))","v":" "},"",{"$f":"IF(N578=\"\",\" \",LOOKUP(N578,FLOTA!A:A,FLOTA!H:H))","v":" "},null,null,null,null,"."]
[null,null,null,null,null,null,null,null,null,null,null,null,{"$f":"IF(L579=\"\",\" \",LOOKUP(L579,FLOTA!A:A,FLOTA!B:B))","v":" "},"",{"$f":"IF(N579=\"\",\" \",LOOKUP(N579,FLOTA!A:A,FLOTA!H:H))","v":" "},null,null,null,null,"."]
[null,null,null,null,null,null,null,null,null,null,null,null,{"$f":"IF(L580=\"\",\" \",LOOKUP(L580,FLOTA!A:A,FLOTA!B:B))","v":" "},"",{"$f":"IF(N580=\"\",\" \",LOOKUP(N580,FLOTA!A:A,FLOTA!H:H))","v":" "},null,null,null,null,"."]
[null,null,null,null,null,null,null,null,null,null,null,null,{"$f":"IF(L581=\"\",\" \",LOOKUP(L581,FLOTA!A:A,FLOTA!B:B))","v":" "},"",{"$f":"IF(N581=\"\",\" \",LOOKUP(N581,FLOTA!A:A,FLOTA!H:H))","v":" "},null,null,null,null,"."]
[null,null,null,null,null,null,null,null,null,null,null,null,{"$f":"IF(L582=\"\",\" \",LOOKUP(L582,FLOTA!A:A,FLOTA!B:B))","v":" "},"",{"$f":"IF(N582=\"\",\" \",LOOKUP(N582,FLOTA!A:A,FLOTA!H:H))","v":" "},null,null,null,null,"."]
[null,null,null,null,null,null,null,null,null,null,null,null,{"$f":"IF(L583=\"\",\" \",LOOKUP(L583,FLOTA!A:A,FLOTA!B:B))","v":" "},"",{"$f":"IF(N583=\"\",\" \",LOOKUP(N583,FLOTA!A:A,FLOTA!H:H))","v":" "},null,null,null,null,"."]
[null,null,null,null,null,null,null,null,null,null,null,null,{"$f":"IF(L584=\"\",\" \",LOOKUP(L584,FLOTA!A:A,FLOTA!B:B))","v":" "},"",{"$f":"IF(N584=\"\",\" \",LOOKUP(N584,FLOTA!A:A,FLOTA!H:H))","v":" "},null,null,null,null,"."]
[null,null,null,null,null,null,null,null,null,null,null,null,{"$f":"IF(L585=\"\",\" \",LOOKUP(L585,FLOTA!A:A,FLOTA!B:B))","v":" "},"",{"$f":"IF(N585=\"\",\" \",LOOKUP(N585,FLOTA!A:A,FLOTA!H:H))","v":" "},null,null,null,null,"."]
[null,null,null,null,null,null,null,null,null,null,null,null,{"$f":"IF(L586=\"\",\" \",LOOKUP(L586,FLOTA!A:A,FLOTA!B:B))","v":" "},"",{"$f":"IF(N586=\"\",\" \",LOOKUP(N586,FLOTA!A:A,FLOTA!H:H))","v":" "},null,null,null,null,"."]
[null,null,null,null,null,null,null,null,null,null,null,null,{"$f":"IF(L587=\"\",\" \",LOOKUP(L587,FLOTA!A:A,FLOTA!B:B))","v":" "},"",{"$f":"IF(N587=\"\",\" \",LOOKUP(N587,FLOTA!A:A,FLOTA!H:H))","v":" "},null,null,null,null,"."]
[null,null,null,null,null,null,null,null,null,null,null,null,{"$f":"IF(L588=\"\",\" \",LOOKUP(L588,FLOTA!A:A,FLOTA!B:B))","v":" "},"",{"$f":"IF(N588=\"\",\" \",LOOKUP(N588,FLOTA!A:A,FLOTA!H:H))","v":" "},null,null,null,null,"."]
[null,null,null,null,null,null,null,null,null,null,null,null,{"$f":"IF(L589=\"\",\" \",LOOKUP(L589,FLOTA!A:A,FLOTA!B:B))","v":" "},"",{"$f":"IF(N589=\"\",\" \",LOOKUP(N589,FLOTA!A:A,FLOTA!H:H))","v":" "},null,null,null,null,"."]
[null,null,null,null,null,null,null,null,null,null,null,null,{"$f":"IF(L590=\"\",\" \",LOOKUP(L590,FLOTA!A:A,FLOTA!B:B))","v":" "},"",{"$f":"IF(N590=\"\",\" \",LOOKUP(N590,FLOTA!A:A,FLOTA!H:H))","v":" "},null,null,null,null,"."]
[null,null,null,null,null,null,null,null,null,null,null,null,{"$f":"IF(L591=\"\",\" \",LOOKUP(L591,FLOTA!A:A,FLOTA!B:B))","v":" "},"",{"$f":"IF(N591=\"\",\" \",LOOKUP(N591,FLOTA!A:A,FLOTA!H:H))","v":" "},null,null,null,null,"."]
[null,null,null,null,null,null,null,null,null,null,null,null,{"$f":"IF(L592=\"\",\" \",LOOKUP(L592,FLOTA!A:A,FLOTA!B:B))","v":" "},"",{"$f":"IF(N592=\"\",\" \",LOOKUP(N592,FLOTA!A:A,FLOTA!H:H))","v":" "},null,null,null,null,"."]
[null,null,null,null,null,null,null,null,null,null,null,null,{"$f":"IF(L593=\"\",\" \",LOOKUP(L593,FLOTA!A:A,FLOTA!B:B))","v":" "},"",{"$f":"IF(N593=\"\",\" \",LOOKUP(N593,FLOTA!A:A,FLOTA!H:H))","v":" "},null,null,null,null,"."]
[null,null,null,null,null,null,null,null,null,null,null,null,{"$f":"IF(L594=\"\",\" \",LOOKUP(L594,FLOTA!A:A,FLOTA!B:B))","v":" "},"",{"$f":"IF(N594=\"\",\" \",LOOKUP(N594,FLOTA!A:A,FLOTA!H:H))","v":" "},null,null,null,null,"."]
[null,null,null,null,null,null,null,null,null,null,null,null,{"$f":"IF(L595=\"\",\" \",LOOKUP(L595,FLOTA!A:A,FLOTA!B:B))","v":" "},"",{"$f":"IF(N595=\"\",\" \",LOOKUP(N595,FLOTA!A:A,FLOTA!H:H))","v":" "},null,null,null,null,"."]
[null,null,null,null,null,null,null,null,null,null,null,null,{"$f":"IF(L596=\"\",\" \",LOOKUP(L596,FLOTA!A:A,FLOTA!B:B))","v":" "},"",{"$f":"IF(N596=\"\",\" \",LOOKUP(N596,FLOTA!A:A,FLOTA!H:H))","v":" "},null,null,null,null,"."]
[null,null,null,null,null,null,null,null,null,null,null,null,{"$f":"IF(L597=\"\",\" \",LOOKUP(L597,FLOTA!A:A,FLOTA!B:B))","v":" "},"",{"$f":"IF(N597=\"\",\" \",LOOKUP(N597,FLOTA!A:A,FLOTA!H:H))","v":" "},null,null,null,null,"."]
[null,null,null,null,null,null,null,null,null,null,null,null,{"$f":"IF(L598=\"\",\" \",LOOKUP(L598,FLOTA!A:A,FLOTA!B:B))","v":" "},"",{"$f":"IF(N598=\"\",\" \",LOOKUP(N598,FLOTA!A:A,FLOTA!H:H))","v":" "},null,null,null,null,"."]
[null,null,null,null,null,null,null,null,null,null,null,null,{"$f":"IF(L599=\"\",\" \",LOOKUP(L599,FLOTA!A:A,FLOTA!B:B))","v":" "},"",{"$f":"IF(N599=\"\",\" \",LOOKUP(N599,FLOTA!A:A,FLOTA!H:H))","v":" "},null,null,null,null,"."]
[null,null,null,null,null,null,null,null,null,null,null,null,{"$f":"IF(L600=\"\",\" \",LOOKUP(L600,FLOTA!A:A,FLOTA!B:B))","v":" "},"",{"$f":"IF(N600=\"\",\" \",LOOKUP(N600,FLOTA!A:A,FLOTA!H:H))","v":" "},null,null,null,null,"."]
[null,null,null,null,null,null,null,null,null,null,null,null,{"$f":"IF(L601=\"\",\" \",LOOKUP(L601,FLOTA!A:A,FLOTA!B:B))","v":" "},"",{"$f":"IF(N601=\"\",\" \",LOOKUP(N601,FLOTA!A:A,FLOTA!H:H))","v":" "},null,null,null,null,"."]
[null,null,null,null,null,null,null,null,null,null,null,null,{"$f":"IF(L602=\"\",\" \",LOOKUP(L602,FLOTA!A:A,FLOTA!B:B))","v":" "},"",{"$f":"IF(N602=\"\",\" \",LOOKUP(N602,FLOTA!A:A,FLOTA!H:H))","v":" "},null,null,null,null,"."]
[null,null,null,null,null,null,null,null,null,null,null,null,{"$f":"IF(L603=\"\",\" \",LOOKUP(L603,FLOTA!A:A,FLOTA!B:B))","v":" "},"",{"$f":"IF(N603=\"\",\" \",LOOKUP(N603,FLOTA!A:A,FLOTA!H:H))","v":" "},null,null,null,null,"."]
[null,null,null,null,null,null,null,null,null,null,null,null,{"$f":"IF(L604=\"\",\" \",LOOKUP(L604,FLOTA!A:A,FLOTA!B:B))","v":" "},"",{"$f":"IF(N604=\"\",\" \",LOOKUP(N604,FLOTA!A:A,FLOTA!H:H))","v":" "},null,null,null,null,"."]
[null,null,null,null,null,null,null,null,null,null,null,null,{"$f":"IF(L605=\"\",\" \",LOOKUP(L605,FLOTA!A:A,FLOTA!B:B))","v":" "},"",{"$f":"IF(N605=\"\",\" \",LOOKUP(N605,FLOTA!A:A,FLOTA!H:H))","v":" "},null,null,null,null,"."]
[null,null,null,null,null,null,null,null,null,null,null,null,{"$f":"IF(L606=\"\",\" \",LOOKUP(L606,FLOTA!A:A,FLOTA!B:B))","v":" "},"",{"$f":"IF(N606=\"\",\" \",LOOKUP(N606,FLOTA!A:A,FLOTA!H:H))","v":" "},null,null,null,null,"."]
[null,null,null,null,null,null,null,null,null,null,null,null,{"$f":"IF(L607=\"\",\" \",LOOKUP(L607,FLOTA!A:A,FLOTA!B:B))","v":" "},"",{"$f":"IF(N607=\"\",\" \",LOOKUP(N607,FLOTA!A:A,FLOTA!H:H))","v":" "},null,null,null,null,"."]
[null,null,null,null,null,null,null,null,null,null,null,null,{"$f":"IF(L608=\"\",\" \",LOOKUP(L608,FLOTA!A:A,FLOTA!B:B))","v":" "},"",{"$f":"IF(N608=\"\",\" \",LOOKUP(N608,FLOTA!A:A,FLOTA!H:H))","v":" "},null,null,null,null,"."]
[null,null,null,null,null,null,null,null,null,null,null,null,{"$f":"IF(L609=\"\",\" \",LOOKUP(L609,FLOTA!A:A,FLOTA!B:B))","v":" "},"",{"$f":"IF(N609=\"\",\" \",LOOKUP(N609,FLOTA!A:A,FLOTA!H:H))","v":" "},null,null,null,null,"."]
[null,null,null,null,null,null,null,null,null,null,null,null,{"$f":"IF(L610=\"\",\" \",LOOKUP(L610,FLOTA!A:A,FLOTA!B:B))","v":" "},"",{"$f":"IF(N610=\"\",\" \",LOOKUP(N610,FLOTA!A:A,FLOTA!H:H))","v":" "},null,null,null,null,"."]
[null,null,null,null,null,null,null,null,null,null,null,null,{"$f":"IF(L611=\"\",\" \",LOOKUP(L611,FLOTA!A:A,FLOTA!B:B))","v":" "},"",{"$f":"IF(N611=\"\",\" \",LOOKUP(N611,FLOTA!A:A,FLOTA!H:H))","v":" "},null,null,null,null,"."]
[null,null,null,null,null,null,null,null,null,null,null,null,{"$f":"IF(L612=\"\",\" \",LOOKUP(L612,FLOTA!A:A,FLOTA!B:B))","v":" "},"",{"$f":"IF(N612=\"\",\" \",LOOKUP(N612,FLOTA!A:A,FLOTA!H:H))","v":" "},null,null,null,null,"."]
[null,null,null,null,null,null,null,null,null,null,null,null,{"$f":"IF(L613=\"\",\" \",LOOKUP(L613,FLOTA!A:A,FLOTA!B:B))","v":" "},"",{"$f":"IF(N613=\"\",\" \",LOOKUP(N613,FLOTA!A:A,FLOTA!H:H))","v":" "},null,null,null,null,"."]
[null,null,null,null,null,null,null,null,null,null,null,null,{"$f":"IF(L614=\"\",\" \",LOOKUP(L614,FLOTA!A:A,FLOTA!B:B))","v":" "},"",{"$f":"IF(N614=\"\",\" \",LOOKUP(N614,FLOTA!A:A,FLOTA!H:H))","v":" "},null,null,null,null,"."]
[null,null,null,null,null,null,null,null,null,null,null,null,{"$f":"IF(L615=\"\",\" \",LOOKUP(L615,FLOTA!A:A,FLOTA!B:B))","v":" "},"",{"$f":"IF(N615=\"\",\" \",LOOKUP(N615,FLOTA!A:A,FLOTA!H:H))","v":" "},null,null,null,null,"."]
[null,null,null,null,null,null,null,null,null,null,null,null,{"$f":"IF(L616=\"\",\" \",LOOKUP(L616,FLOTA!A:A,FLOTA!B:B))","v":" "},"",{"$f":"IF(N616=\"\",\" \",LOOKUP(N616,FLOTA!A:A,FLOTA!H:H))","v":" "},null,null,null,null,"."]
[null,null,null,null,null,null,null,null,null,null,null,null,{"$f":"IF(L617=\"\",\" \",LOOKUP(L617,FLOTA!A:A,FLOTA!B:B))","v":" "},"",{"$f":"IF(N617=\"\",\" \",LOOKUP(N617,FLOTA!A:A,FLOTA!H:H))","v":" "},null,null,null,null,"."]
[null,null,null,null,null,null,null,null,null,null,null,null,{"$f":"IF(L618=\"\",\" \",LOOKUP(L618,FLOTA!A:A,FLOTA!B:B))","v":" "},"",{"$f":"IF(N618=\"\",\" \",LOOKUP(N618,FLOTA!A:A,FLOTA!H:H))","v":" "},null,null,null,null,"."]
[null,null,null,null,null,null,null,null,null,null,null,null,{"$f":"IF(L619=\"\",\" \",LOOKUP(L619,FLOTA!A:A,FLOTA!B:B))","v":" "},"",{"$f":"IF(N619=\"\",\" \",LOOKUP(N619,FLOTA!A:A,FLOTA!H:H))","v":" "},null,null,null,null,"."]
[null,null,null,null,null,null,null,null,null,null,null,null,{"$f":"IF(L620=\"\",\" \",LOOKUP(L620,FLOTA!A:A,FLOTA!B:B))","v":" "},"",{"$f":"IF(N620=\"\",\" \",LOOKUP(N620,FLOTA!A:A,FLOTA!H:H))","v":" "},null,null,null,null,"."]
[null,null,null,null,null,null,null,null,null,null,null,null,{"$f":"IF(L621=\"\",\" \",LOOKUP(L621,FLOTA!A:A,FLOTA!B:B))","v":" "},"",{"$f":"IF(N621=\"\",\" \",LOOKUP(N621,FLOTA!A:A,FLOTA!H:H))","v":" "},null,null,null,null,"."]
[null,null,null,null,null,null,null,null,null,null,null,null,{"$f":"IF(L622=\"\",\" \",LOOKUP(L622,FLOTA!A:A,FLOTA!B:B))","v":" "},"",{"$f":"IF(N622=\"\",\" \",LOOKUP(N622,FLOTA!A:A,FLOTA!H:H))","v":" "},null,null,null,null,"."]
[null,null,null,null,null,null,null,null,null,null,null,null,{"$f":"IF(L623=\"\",\" \",LOOKUP(L623,FLOTA!A:A,FLOTA!B:B))","v":" "},"",{"$f":"IF(N623=\"\",\" \",LOOKUP(N623,FLOTA!A:A,FLOTA!H:H))","v":" "},null,null,null,null,"."]
[null,null,null,null,null,null,null,null,null,null,null,null,{"$f":"IF(L624=\"\",\" \",LOOKUP(L624,FLOTA!A:A,FLOTA!B:B))","v":" "},"",{"$f":"IF(N624=\"\",\" \",LOOKUP(N624,FLOTA!A:A,FLOTA!H:H))","v":" "},null,null,null,null,"."]
[null,null,null,null,null,null,null,null,null,null,null,null,{"$f":"IF(L625=\"\",\" \",LOOKUP(L625,FLOTA!A:A,FLOTA!B:B))","v":" "},"",{"$f":"IF(N625=\"\",\" \",LOOKUP(N625,FLOTA!A:A,FLOTA!H:H))","v":" "},null,null,null,null,"."]
[null,null,null,null,null,null,null,null,null,null,null,null,{"$f":"IF(L626=\"\",\" \",LOOKUP(L626,FLOTA!A:A,FLOTA!B:B))","v":" "},"",{"$f":"IF(N626=\"\",\" \",LOOKUP(N626,FLOTA!A:A,FLOTA!H:H))","v":" "},null,null,null,null,"."]
[null,null,null,null,null,null,null,null,null,null,null,null,{"$f":"IF(L627=\"\",\" \",LOOKUP(L627,FLOTA!A:A,FLOTA!B:B))","v":" "},"",{"$f":"IF(N627=\"\",\" \",LOOKUP(N627,FLOTA!A:A,FLOTA!H:H))","v":" "},null,null,null,null,"."]
[null,null,null,null,null,null,null,null,null,null,null,null,{"$f":"IF(L628=\"\",\" \",LOOKUP(L628,FLOTA!A:A,FLOTA!B:B))","v":" "},"",{"$f":"IF(N628=\"\",\" \",LOOKUP(N628,FLOTA!A:A,FLOTA!H:H))","v":" "},null,null,null,null,"."]
[null,null,null,null,null,null,null,null,null,null,null,null,{"$f":"IF(L629=\"\",\" \",LOOKUP(L629,FLOTA!A:A,FLOTA!B:B))","v":" "},"",{"$f":"IF(N629=\"\",\" \",LOOKUP(N629,FLOTA!A:A,FLOTA!H:H))","v":" "},null,null,null,null,"."]
[null,null,null,null,null,null,null,null,null,null,null,null,{"$f":"IF(L630=\"\",\" \",LOOKUP(L630,FLOTA!A:A,FLOTA!B:B))","v":" "},"",{"$f":"IF(N630=\"\",\" \",LOOKUP(N630,FLOTA!A:A,FLOTA!H:H))","v":" "},null,null,null,null,"."]
[null,null,null,null,null,null,null,null,null,null,null,null,{"$f":"IF(L631=\"\",\" \",LOOKUP(L631,FLOTA!A:A,FLOTA!B:B))","v":" "},"",{"$f":"IF(N631=\"\",\" \",LOOKUP(N631,FLOTA!A:A,FLOTA!H:H))","v":" "},null,null,null,null,"."]
[null,null,null,null,null,null,null,null,null,null,null,null,{"$f":"IF(L632=\"\",\" \",LOOKUP(L632,FLOTA!A:A,FLOTA!B:B))","v":" "},"",{"$f":"IF(N632=\"\",\" \",LOOKUP(N632,FLOTA!A:A,FLOTA!H:H))","v":" "},null,null,null,null,"."]
[null,null,null,null,null,null,null,null,null,null,null,null,{"$f":"IF(L633=\"\",\" \",LOOKUP(L633,FLOTA!A:A,FLOTA!B:B))","v":" "},"",{"$f":"IF(N633=\"\",\" \",LOOKUP(N633,FLOTA!A:A,FLOTA!H:H))","v":" "},null,null,null,null,"."]
[null,null,null,null,null,null,null,null,null,null,null,null,{"$f":"IF(L634=\"\",\" \",LOOKUP(L634,FLOTA!A:A,FLOTA!B:B))","v":" "},"",{"$f":"IF(N634=\"\",\" \",LOOKUP(N634,FLOTA!A:A,FLOTA!H:H))","v":" "},null,null,null,null,"."]
[null,null,null,null,null,null,null,null,null,null,null,null,{"$f":"IF(L635=\"\",\" \",LOOKUP(L635,FLOTA!A:A,FLOTA!B:B))","v":" "},"",{"$f":"IF(N635=\"\",\" \",LOOKUP(N635,FLOTA!A:A,FLOTA!H:H))","v":" "},null,null,null,null,"."]
[null,null,null,null,null,null,null,null,null,null,null,null,{"$f":"IF(L636=\"\",\" \",LOOKUP(L636,FLOTA!A:A,FLOTA!B:B))","v":" "},"",{"$f":"IF(N636=\"\",\" \",LOOKUP(N636,FLOTA!A:A,FLOTA!H:H))","v":" "},null,null,null,null,"."]
[null,null,null,null,null,null,null,null,null,null,null,null,{"$f":"IF(L637=\"\",\" \",LOOKUP(L637,FLOTA!A:A,FLOTA!B:B))","v":" "},"",{"$f":"IF(N637=\"\",\" \",LOOKUP(N637,FLOTA!A:A,FLOTA!H:H))","v":" "},null,null,null,null,"."]
[null,null,null,null,null,null,null,null,null,null,null,null,{"$f":"IF(L638=\"\",\" \",LOOKUP(L638,FLOTA!A:A,FLOTA!B:B))","v":" "},"",{"$f":"IF(N638=\"\",\" \",LOOKUP(N638,FLOTA!A:A,FLOTA!H:H))","v":" "},null,null,null,null,"."]
[null,null,null,null,null,null,null,null,null,null,null,null,{"$f":"IF(L639=\"\",\" \",LOOKUP(L639,FLOTA!A:A,FLOTA!B:B))","v":" "},"",{"$f":"IF(N639=\"\",\" \",LOOKUP(N639,FLOTA!A:A,FLOTA!H:H))","v":" "},null,null,null,null,"."]
[null,null,null,null,null,null,null,null,null,null,null,null,{"$f":"IF(L640=\"\",\" \",LOOKUP(L640,FLOTA!A:A,FLOTA!B:B))","v":" "},"",{"$f":"IF(N640=\"\",\" \",LOOKUP(N640,FLOTA!A:A,FLOTA!H:H))","v":" "},null,null,null,null,"."]
[null,null,null,null,null,null,null,null,null,null,null,null,{"$f":"IF(L641=\"\",\" \",LOOKUP(L641,FLOTA!A:A,FLOTA!B:B))","v":" "},{"$f":"IF(L641=\"\",\"\",L641)","v":""},{"$f":"IF(N641=\"\",\" \",LOOKUP(N641,FLOTA!A:A,FLOTA!H:H))","v":" "},null,null,null,null,"."]
[null,null,null,null,null,null,null,null,null,null,null,null,{"$f":"IF(L642=\"\",\" \",LOOKUP(L642,FLOTA!A:A,FLOTA!B:B))","v":" "},"",{"$f":"IF(N642=\"\",\" \",LOOKUP(N642,FLOTA!A:A,FLOTA!H:H))","v":" "},null,null,null,null,"."]
[null,null,null,null,null,null,null,null,null,null,null,null,{"$f":"IF(L643=\"\",\" \",LOOKUP(L643,FLOTA!A:A,FLOTA!B:B))","v":" "},"",{"$f":"IF(N643=\"\",\" \",LOOKUP(N643,FLOTA!A:A,FLOTA!H:H))","v":" "},null,null,null,null,"."]
[null,null,null,null,null,null,null,null,null,null,null,null,{"$f":"IF(L644=\"\",\" \",LOOKUP(L644,FLOTA!A:A,FLOTA!B:B))","v":" "},"",{"$f":"IF(N644=\"\",\" \",LOOKUP(N644,FLOTA!A:A,FLOTA!H:H))","v":" "},null,null,null,null,"."]
[null,null,null,null,null,null,null,null,null,null,null,null,{"$f":"IF(L645=\"\",\" \",LOOKUP(L645,FLOTA!A:A,FLOTA!B:B))","v":" "},"",{"$f":"IF(N645=\"\",\" \",LOOKUP(N645,FLOTA!A:A,FLOTA!H:H))","v":" "},null,null,null,null,"."]
[null,null,null,null,null,null,null,null,null,null,null,null,{"$f":"IF(L646=\"\",\" \",LOOKUP(L646,FLOTA!A:A,FLOTA!B:B))","v":" "},"",{"$f":"IF(N646=\"\",\" \",LOOKUP(N646,FLOTA!A:A,FLOTA!H:H))","v":" "},null,null,null,null,"."]
[null,null,null,null,null,null,null,null,null,null,null,null,{"$f":"IF(L647=\"\",\" \",LOOKUP(L647,FLOTA!A:A,FLOTA!B:B))","v":" "},"",{"$f":"IF(N647=\"\",\" \",LOOKUP(N647,FLOTA!A:A,FLOTA!H:H))","v":" "},null,null,null,null,"."]
[null,null,null,null,null,null,null,null,null,null,null,null,{"$f":"IF(L648=\"\",\" \",LOOKUP(L648,FLOTA!A:A,FLOTA!B:B))","v":" "},"",{"$f":"IF(N648=\"\",\" \",LOOKUP(N648,FLOTA!A:A,FLOTA!H:H))","v":" "},null,null,null,null,"."]
[null,null,null,null,null,null,null,null,null,null,null,null,{"$f":"IF(L649=\"\",\" \",LOOKUP(L649,FLOTA!A:A,FLOTA!B:B))","v":" "},"",{"$f":"IF(N649=\"\",\" \",LOOKUP(N649,FLOTA!A:A,FLOTA!H:H))","v":" "},null,null,null,null,"."]
[null,null,null,null,null,null,null,null,null,null,null,null,{"$f":"IF(L650=\"\",\" \",LOOKUP(L650,FLOTA!A:A,FLOTA!B:B))","v":" "},"",{"$f":"IF(N650=\"\",\" \",LOOKUP(N650,FLOTA!A:A,FLOTA!H:H))","v":" "},null,null,null,null,"."]
[null,null,null,null,null,null,null,null,null,null,null,null,{"$f":"IF(L651=\"\",\" \",LOOKUP(L651,FLOTA!A:A,FLOTA!B:B))","v":" "},"",{"$f":"IF(N651=\"\",\" \",LOOKUP(N651,FLOTA!A:A,FLOTA!H:H))","v":" "},null,null,null,null,"."]
[null,null,null,null,null,null,null,null,null,null,null,null,{"$f":"IF(L652=\"\",\" \",LOOKUP(L652,FLOTA!A:A,FLOTA!B:B))","v":" "},"",{"$f":"IF(N652=\"\",\" \",LOOKUP(N652,FLOTA!A:A,FLOTA!H:H))","v":" "},null,null,null,null,"."]
[null,null,null,null,null,null,null,null,null,null,null,null,{"$f":"IF(L653=\"\",\" \",LOOKUP(L653,FLOTA!A:A,FLOTA!B:B))","v":" "},"",{"$f":"IF(N653=\"\",\" \",LOOKUP(N653,FLOTA!A:A,FLOTA!H:H))","v":" "},null,null,null,null,"."]
[null,null,null,null,null,null,null,null,null,null,null,null,{"$f":"IF(L654=\"\",\" \",LOOKUP(L654,FLOTA!A:A,FLOTA!B:B))","v":" "},"",{"$f":"IF(N654=\"\",\" \",LOOKUP(N654,FLOTA!A:A,FLOTA!H:H))","v":" "},null,null,null,null,"."]
[null,null,null,null,null,null,null,null,null,null,null,null,{"$f":"IF(L655=\"\",\" \",LOOKUP(L655,FLOTA!A:A,FLOTA!B:B))","v":" "},"",{"$f":"IF(N655=\"\",\" \",LOOKUP(N655,FLOTA!A:A,FLOTA!H:H))","v":" "},null,null,null,null,"."]
[null,null,null,null,null,null,null,null,null,null,null,null,{"$f":"IF(L656=\"\",\" \",LOOKUP(L656,FLOTA!A:A,FLOTA!B:B))","v":" "},"",{"$f":"IF(N656=\"\",\" \",LOOKUP(N656,FLOTA!A:A,FLOTA!H:H))","v":" "},null,null,null,null,"."]
[null,null,null,null,null,null,null,null,null,null,null,null,{"$f":"IF(L657=\"\",\" \",LOOKUP(L657,FLOTA!A:A,FLOTA!B:B))","v":" "},"",{"$f":"IF(N657=\"\",\" \",LOOKUP(N657,FLOTA!A:A,FLOTA!H:H))","v":" "},null,null,null,null,"."]
[null,null,null,null,null,null,null,null,null,null,null,null,{"$f":"IF(L658=\"\",\" \",LOOKUP(L658,FLOTA!A:A,FLOTA!B:B))","v":" "},"",{"$f":"IF(N658=\"\",\" \",LOOKUP(N658,FLOTA!A:A,FLOTA!H:H))","v":" "},null,null,null,null,"."]
[null,null,null,null,null,null,null,null,null,null,null,null,{"$f":"IF(L659=\"\",\" \",LOOKUP(L659,FLOTA!A:A,FLOTA!B:B))","v":" "},"",{"$f":"IF(N659=\"\",\" \",LOOKUP(N659,FLOTA!A:A,FLOTA!H:H))","v":" "},null,null,null,null,"."]
[null,null,null,null,null,null,null,null,null,null,null,null,{"$f":"IF(L660=\"\",\" \",LOOKUP(L660,FLOTA!A:A,FLOTA!B:B))","v":" "},"",{"$f":"IF(N660=\"\",\" \",LOOKUP(N660,FLOTA!A:A,FLOTA!H:H))","v":" "},null,null,null,null,"."]
[null,null,null,null,null,null,null,null,null,null,null,null,{"$f":"IF(L661=\"\",\" \",LOOKUP(L661,FLOTA!A:A,FLOTA!B:B))","v":" "},"",{"$f":"IF(N661=\"\",\" \",LOOKUP(N661,FLOTA!A:A,FLOTA!H:H))","v":" "},null,null,null,null,"."]
[null,null,null,null,null,null,null,null,null,null,null,null,{"$f":"IF(L662=\"\",\" \",LOOKUP(L662,FLOTA!A:A,FLOTA!B:B))","v":" "},"",{"$f":"IF(N662=\"\",\" \",LOOKUP(N662,FLOTA!A:A,FLOTA!H:H))","v":" "},null,null,null,null,"."]
[null,null,null,null,null,null,null,null,null,null,null,null,{"$f":"IF(L663=\"\",\" \",LOOKUP(L663,FLOTA!A:A,FLOTA!B:B))","v":" "},"",{"$f":"IF(N663=\"\",\" \",LOOKUP(N663,FLOTA!A:A,FLOTA!H:H))","v":" "},null,null,null,null,"."]
[null,null,null,null,null,null,null,null,null,null,null,null,{"$f":"IF(L664=\"\",\" \",LOOKUP(L664,FLOTA!A:A,FLOTA!B:B))","v":" "},"",{"$f":"IF(N664=\"\",\" \",LOOKUP(N664,FLOTA!A:A,FLOTA!H:H))","v":" "},null,null,null,null,"."]
[null,null,null,null,null,null,null,null,null,null,null,null,{"$f":"IF(L665=\"\",\" \",LOOKUP(L665,FLOTA!A:A,FLOTA!B:B))","v":" "},"",{"$f":"IF(N665=\"\",\" \",LOOKUP(N665,FLOTA!A:A,FLOTA!H:H))","v":" "},null,null,null,null,"."]
[null,null,null,null,null,null,null,null,null,null,null,null,{"$f":"IF(L666=\"\",\" \",LOOKUP(L666,FLOTA!A:A,FLOTA!B:B))","v":" "},"",{"$f":"IF(N666=\"\",\" \",LOOKUP(N666,FLOTA!A:A,FLOTA!H:H))","v":" "},null,null,null,null,"."]
[null,null,null,null,null,null,null,null,null,null,null,null,{"$f":"IF(L667=\"\",\" \",LOOKUP(L667,FLOTA!A:A,FLOTA!B:B))","v":" "},"",{"$f":"IF(N667=\"\",\" \",LOOKUP(N667,FLOTA!A:A,FLOTA!H:H))","v":" "},null,null,null,null,"."]
[null,null,null,null,null,null,null,null,null,null,null,null,{"$f":"IF(L668=\"\",\" \",LOOKUP(L668,FLOTA!A:A,FLOTA!B:B))","v":" "},"",{"$f":"IF(N668=\"\",\" \",LOOKUP(N668,FLOTA!A:A,FLOTA!H:H))","v":" "},null,null,null,null,"."]
[null,null,null,null,null,null,null,null,null,null,null,null,{"$f":"IF(L669=\"\",\" \",LOOKUP(L669,FLOTA!A:A,FLOTA!B:B))","v":" "},"",{"$f":"IF(N669=\"\",\" \",LOOKUP(N669,FLOTA!A:A,FLOTA!H:H))","v":" "},null,null,null,null,"."]
[null,null,null,null,null,null,null,null,null,null,null,null,{"$f":"IF(L670=\"\",\" \",LOOKUP(L670,FLOTA!A:A,FLOTA!B:B))","v":" "},"",{"$f":"IF(N670=\"\",\" \",LOOKUP(N670,FLOTA!A:A,FLOTA!H:H))","v":" "},null,null,null,null,"."]
[null,null,null,null,null,null,null,null,null,null,null,null,{"$f":"IF(L671=\"\",\" \",LOOKUP(L671,FLOTA!A:A,FLOTA!B:B))","v":" "},"",{"$f":"IF(N671=\"\",\" \",LOOKUP(N671,FLOTA!A:A,FLOTA!H:H))","v":" "},null,null,null,null,"."]
[null,null,null,null,null,null,null,null,null,null,null,null,{"$f":"IF(L672=\"\",\" \",LOOKUP(L672,FLOTA!A:A,FLOTA!B:B))","v":" "},"",{"$f":"IF(N672=\"\",\" \",LOOKUP(N672,FLOTA!A:A,FLOTA!H:H))","v":" "},null,null,null,null,"."]
[null,null,null,null,null,null,null,null,null,null,null,null,{"$f":"IF(L673=\"\",\" \",LOOKUP(L673,FLOTA!A:A,FLOTA!B:B))","v":" "},"",{"$f":"IF(N673=\"\",\" \",LOOKUP(N673,FLOTA!A:A,FLOTA!H:H))","v":" "},null,null,null,null,"."]
[null,null,null,null,null,null,null,null,null,null,null,null,{"$f":"IF(L674=\"\",\" \",LOOKUP(L674,FLOTA!A:A,FLOTA!B:B))","v":" "},"",{"$f":"IF(N674=\"\",\" \",LOOKUP(N674,FLOTA!A:A,FLOTA!H:H))","v":" "},null,null,null,null,"."]
[null,null,null,null,null,null,null,null,null,null,null,null,{"$f":"IF(L675=\"\",\" \",LOOKUP(L675,FLOTA!A:A,FLOTA!B:B))","v":" "},"",{"$f":"IF(N675=\"\",\" \",LOOKUP(N675,FLOTA!A:A,FLOTA!H:H))","v":" "},null,null,null,null,"."]
[null,null,null,null,null,null,null,null,null,null,null,null,{"$f":"IF(L676=\"\",\" \",LOOKUP(L676,FLOTA!A:A,FLOTA!B:B))","v":" "},"",{"$f":"IF(N676=\"\",\" \",LOOKUP(N676,FLOTA!A:A,FLOTA!H:H))","v":" "},null,null,null,null,"."]
[null,null,null,null,null,null,null,null,null,null,null,null,{"$f":"IF(L677=\"\",\" \",LOOKUP(L677,FLOTA!A:A,FLOTA!B:B))","v":" "},"",{"$f":"IF(N677=\"\",\" \",LOOKUP(N677,FLOTA!A:A,FLOTA!H:H))","v":" "},null,null,null,null,"."]
[null,null,null,null,null,null,null,null,null,null,null,null,{"$f":"IF(L678=\"\",\" \",LOOKUP(L678,FLOTA!A:A,FLOTA!B:B))","v":" "},"",{"$f":"IF(N678=\"\",\" \",LOOKUP(N678,FLOTA!A:A,FLOTA!H:H))","v":" "},null,null,null,null,"."]
[null,null,null,null,null,null,null,null,null,null,null,null,{"$f":"IF(L679=\"\",\" \",LOOKUP(L679,FLOTA!A:A,FLOTA!B:B))","v":" "},"",{"$f":"IF(N679=\"\",\" \",LOOKUP(N679,FLOTA!A:A,FLOTA!H:H))","v":" "},null,null,null,null,"."]
[null,null,null,null,null,null,null,null,null,null,null,null,{"$f":"IF(L680=\"\",\" \",LOOKUP(L680,FLOTA!A:A,FLOTA!B:B))","v":" "},"",{"$f":"IF(N680=\"\",\" \",LOOKUP(N680,FLOTA!A:A,FLOTA!H:H))","v":" "},null,null,null,null,"."]
[null,null,null,null,null,null,null,null,null,null,null,null,{"$f":"IF(L681=\"\",\" \",LOOKUP(L681,FLOTA!A:A,FLOTA!B:B))","v":" "},"",{"$f":"IF(N681=\"\",\" \",LOOKUP(N681,FLOTA!A:A,FLOTA!H:H))","v":" "},null,null,null,null,"."]
[null,null,null,null,null,null,null,null,null,null,null,null,{"$f":"IF(L682=\"\",\" \",LOOKUP(L682,FLOTA!A:A,FLOTA!B:B))","v":" "},"",{"$f":"IF(N682=\"\",\" \",LOOKUP(N682,FLOTA!A:A,FLOTA!H:H))","v":" "},null,null,null,null,"."]
[null,null,null,null,null,null,null,null,null,null,null,null,{"$f":"IF(L683=\"\",\" \",LOOKUP(L683,FLOTA!A:A,FLOTA!B:B))","v":" "},"",{"$f":"IF(N683=\"\",\" \",LOOKUP(N683,FLOTA!A:A,FLOTA!H:H))","v":" "},null,null,null,null,"."]
[null,null,null,null,null,null,null,null,null,null,null,null,{"$f":"IF(L684=\"\",\" \",LOOKUP(L684,FLOTA!A:A,FLOTA!B:B))","v":" "},"",{"$f":"IF(N684=\"\",\" \",LOOKUP(N684,FLOTA!A:A,FLOTA!H:H))","v":" "},null,null,null,null,"."]
[null,null,null,null,null,null,null,null,null,null,null,null,{"$f":"IF(L685=\"\",\" \",LOOKUP(L685,FLOTA!A:A,FLOTA!B:B))","v":" "},"",{"$f":"IF(N685=\"\",\" \",LOOKUP(N685,FLOTA!A:A,FLOTA!H:H))","v":" "},null,null,null,null,"."]
[null,null,null,null,null,null,null,null,null,null,null,null,{"$f":"IF(L686=\"\",\" \",LOOKUP(L686,FLOTA!A:A,FLOTA!B:B))","v":" "},"",{"$f":"IF(N686=\"\",\" \",LOOKUP(N686,FLOTA!A:A,FLOTA!H:H))","v":" "},null,null,null,null,"."]
[null,null,null,null,null,null,null,null,null,null,null,null,{"$f":"IF(L687=\"\",\" \",LOOKUP(L687,FLOTA!A:A,FLOTA!B:B))","v":" "},"",{"$f":"IF(N687=\"\",\" \",LOOKUP(N687,FLOTA!A:A,FLOTA!H:H))","v":" "},null,null,null,null,"."]
[null,null,null,null,null,null,null,null,null,null,null,null,{"$f":"IF(L688=\"\",\" \",LOOKUP(L688,FLOTA!A:A,FLOTA!B:B))","v":" "},"",{"$f":"IF(N688=\"\",\" \",LOOKUP(N688,FLOTA!A:A,FLOTA!H:H))","v":" "},null,null,null,null,"."]
[null,null,null,null,null,null,null,null,null,null,null,null,{"$f":"IF(L689=\"\",\" \",LOOKUP(L689,FLOTA!A:A,FLOTA!B:B))","v":" "},"",{"$f":"IF(N689=\"\",\" \",LOOKUP(N689,FLOTA!A:A,FLOTA!H:H))","v":" "},null,null,null,null,"."]
[null,null,null,null,null,null,null,null,null,null,null,null,{"$f":"IF(L690=\"\",\" \",LOOKUP(L690,FLOTA!A:A,FLOTA!B:B))","v":" "},"",{"$f":"IF(N690=\"\",\" \",LOOKUP(N690,FLOTA!A:A,FLOTA!H:H))","v":" "},null,null,null,null,"."]
[null,null,null,null,null,null,null,null,null,null,null,null,{"$f":"IF(L691=\"\",\" \",LOOKUP(L691,FLOTA!A:A,FLOTA!B:B))","v":" "},"",{"$f":"IF(N691=\"\",\" \",LOOKUP(N691,FLOTA!A:A,FLOTA!H:H))","v":" "},null,null,null,null,"."]
[null,null,null,null,null,null,null,null,null,null,null,null,{"$f":"IF(L692=\"\",\" \",LOOKUP(L692,FLOTA!A:A,FLOTA!B:B))","v":" "},"",{"$f":"IF(N692=\"\",\" \",LOOKUP(N692,FLOTA!A:A,FLOTA!H:H))","v":" "},null,null,null,null,"."]
[null,null,null,null,null,null,null,null,null,null,null,null,{"$f":"IF(L693=\"\",\" \",LOOKUP(L693,FLOTA!A:A,FLOTA!B:B))","v":" "},"",{"$f":"IF(N693=\"\",\" \",LOOKUP(N693,FLOTA!A:A,FLOTA!H:H))","v":" "},null,null,null,null,"."]
[null,null,null,null,null,null,null,null,null,null,null,null,{"$f":"IF(L694=\"\",\" \",LOOKUP(L694,FLOTA!A:A,FLOTA!B:B))","v":" "},"",{"$f":"IF(N694=\"\",\" \",LOOKUP(N694,FLOTA!A:A,FLOTA!H:H))","v":" "},null,null,null,null,"."]
[null,null,null,null,null,null,null,null,null,null,null,null,{"$f":"IF(L695=\"\",\" \",LOOKUP(L695,FLOTA!A:A,FLOTA!B:B))","v":" "},"",{"$f":"IF(N695=\"\",\" \",LOOKUP(N695,FLOTA!A:A,FLOTA!H:H))","v":" "},null,null,null,null,"."]
[null,null,null,null,null,null,null,null,null,null,null,null,{"$f":"IF(L696=\"\",\" \",LOOKUP(L696,FLOTA!A:A,FLOTA!B:B))","v":" "},"",{"$f":"IF(N696=\"\",\" \",LOOKUP(N696,FLOTA!A:A,FLOTA!H:H))","v":" "},null,null,null,null,"."]
[null,null,null,null,null,null,null,null,null,null,null,null,{"$f":"IF(L697=\"\",\" \",LOOKUP(L697,FLOTA!A:A,FLOTA!B:B))","v":" "},"",{"$f":"IF(N697=\"\",\" \",LOOKUP(N697,FLOTA!A:A,FLOTA!H:H))","v":" "},null,null,null,null,"."]
[null,null,null,null,null,null,null,null,null,null,null,null,{"$f":"IF(L698=\"\",\" \",LOOKUP(L698,FLOTA!A:A,FLOTA!B:B))","v":" "},"",{"$f":"IF(N698=\"\",\" \",LOOKUP(N698,FLOTA!A:A,FLOTA!H:H))","v":" "},null,null,null,null,"."]
[null,null,null,null,null,null,null,null,null,null,null,null,{"$f":"IF(L699=\"\",\" \",LOOKUP(L699,FLOTA!A:A,FLOTA!B:B))","v":" "},"",{"$f":"IF(N699=\"\",\" \",LOOKUP(N699,FLOTA!A:A,FLOTA!H:H))","v":" "},null,null,null,null,"."]
[null,null,null,null,null,null,null,null,null,null,null,null,{"$f":"IF(L700=\"\",\" \",LOOKUP(L700,FLOTA!A:A,FLOTA!B:B))","v":" "},"",{"$f":"IF(N700=\"\",\" \",LOOKUP(N700,FLOTA!A:A,FLOTA!H:H))","v":" "},null,null,null,null,"."]
[null,null,null,null,null,null,null,null,null,null,null,null,{"$f":"IF(L701=\"\",\" \",LOOKUP(L701,FLOTA!A:A,FLOTA!B:B))","v":" "},"",{"$f":"IF(N701=\"\",\" \",LOOKUP(N701,FLOTA!A:A,FLOTA!H:H))","v":" "},null,null,null,null,"."]
[null,null,null,null,null,null,null,null,null,null,null,null,{"$f":"IF(L702=\"\",\" \",LOOKUP(L702,FLOTA!A:A,FLOTA!B:B))","v":" "},"",{"$f":"IF(N702=\"\",\" \",LOOKUP(N702,FLOTA!A:A,FLOTA!H:H))","v":" "},null,null,null,null,"."]
[null,null,null,null,null,null,null,null,null,null,null,null,{"$f":"IF(L703=\"\",\" \",LOOKUP(L703,FLOTA!A:A,FLOTA!B:B))","v":" "},"",{"$f":"IF(N703=\"\",\" \",LOOKUP(N703,FLOTA!A:A,FLOTA!H:H))","v":" "},null,null,null,null,"."]
[null,null,null,null,null,null,null,null,null,null,null,null,{"$f":"IF(L704=\"\",\" \",LOOKUP(L704,FLOTA!A:A,FLOTA!B:B))","v":" "},"",{"$f":"IF(N704=\"\",\" \",LOOKUP(N704,FLOTA!A:A,FLOTA!H:H))","v":" "},null,null,null,null,"."]
[null,null,null,null,null,null,null,null,null,null,null,null,{"$f":"IF(L705=\"\",\" \",LOOKUP(L705,FLOTA!A:A,FLOTA!B:B))","v":" "},{"$f":"IF(L705=\"\",\"\",L705)","v":""},{"$f":"IF(N705=\"\",\" \",LOOKUP(N705,FLOTA!A:A,FLOTA!H:H))","v":" "},null,null,null,null,"."]
[null,null,null,null,null,null,null,null,null,null,null,null,{"$f":"IF(L706=\"\",\" \",LOOKUP(L706,FLOTA!A:A,FLOTA!B:B))","v":" "},"",{"$f":"IF(N706=\"\",\" \",LOOKUP(N706,FLOTA!A:A,FLOTA!H:H))","v":" "},null,null,null,null,"."]
[null,null,null,null,null,null,null,null,null,null,null,null,{"$f":"IF(L707=\"\",\" \",LOOKUP(L707,FLOTA!A:A,FLOTA!B:B))","v":" "},"",{"$f":"IF(N707=\"\",\" \",LOOKUP(N707,FLOTA!A:A,FLOTA!H:H))","v":" "},null,null,null,null,"."]
[null,null,null,null,null,null,null,null,null,null,null,null,{"$f":"IF(L708=\"\",\" \",LOOKUP(L708,FLOTA!A:A,FLOTA!B:B))","v":" "},"",{"$f":"IF(N708=\"\",\" \",LOOKUP(N708,FLOTA!A:A,FLOTA!H:H))","v":" "},null,null,null,null,"."]
[null,null,null,null,null,null,null,null,null,null,null,null,{"$f":"IF(L709=\"\",\" \",LOOKUP(L709,FLOTA!A:A,FLOTA!B:B))","v":" "},"",{"$f":"IF(N709=\"\",\" \",LOOKUP(N709,FLOTA!A:A,FLOTA!H:H))","v":" "},null,null,null,null,"."]
[null,null,null,null,null,null,null,null,null,null,null,null,{"$f":"IF(L710=\"\",\" \",LOOKUP(L710,FLOTA!A:A,FLOTA!B:B))","v":" "},"",{"$f":"IF(N710=\"\",\" \",LOOKUP(N710,FLOTA!A:A,FLOTA!H:H))","v":" "},null,null,null,null,"."]
[null,null,null,null,null,null,null,null,null,null,null,null,{"$f":"IF(L711=\"\",\" \",LOOKUP(L711,FLOTA!A:A,FLOTA!B:B))","v":" "},"",{"$f":"IF(N711=\"\",\" \",LOOKUP(N711,FLOTA!A:A,FLOTA!H:H))","v":" "},null,null,null,null,"."]
[null,null,null,null,null,null,null,null,null,null,null,null,{"$f":"IF(L712=\"\",\" \",LOOKUP(L712,FLOTA!A:A,FLOTA!B:B))","v":" "},"",{"$f":"IF(N712=\"\",\" \",LOOKUP(N712,FLOTA!A:A,FLOTA!H:H))","v":" "},null,null,null,null,"."]
[null,null,null,null,null,null,null,null,null,null,null,null,{"$f":"IF(L713=\"\",\" \",LOOKUP(L713,FLOTA!A:A,FLOTA!B:B))","v":" "},"",{"$f":"IF(N713=\"\",\" \",LOOKUP(N713,FLOTA!A:A,FLOTA!H:H))","v":" "},null,null,null,null,"."]
[null,null,null,null,null,null,null,null,null,null,null,null,{"$f":"IF(L714=\"\",\" \",LOOKUP(L714,FLOTA!A:A,FLOTA!B:B))","v":" "},"",{"$f":"IF(N714=\"\",\" \",LOOKUP(N714,FLOTA!A:A,FLOTA!H:H))","v":" "},null,null,null,null,"."]
[null,null,null,null,null,null,null,null,null,null,null,null,{"$f":"IF(L715=\"\",\" \",LOOKUP(L715,FLOTA!A:A,FLOTA!B:B))","v":" "},"",{"$f":"IF(N715=\"\",\" \",LOOKUP(N715,FLOTA!A:A,FLOTA!H:H))","v":" "},null,null,null,null,"."]
[null,null,null,null,null,null,null,null,null,null,null,null,{"$f":"IF(L716=\"\",\" \",LOOKUP(L716,FLOTA!A:A,FLOTA!B:B))","v":" "},"",{"$f":"IF(N716=\"\",\" \",LOOKUP(N716,FLOTA!A:A,FLOTA!H:H))","v":" "},null,null,null,null,"."]
[null,null,null,null,null,null,null,null,null,null,null,null,{"$f":"IF(L717=\"\",\" \",LOOKUP(L717,FLOTA!A:A,FLOTA!B:B))","v":" "},"",{"$f":"IF(N717=\"\",\" \",LOOKUP(N717,FLOTA!A:A,FLOTA!H:H))","v":" "},null,null,null,null,"."]
[null,null,null,null,null,null,null,null,null,null,null,null,{"$f":"IF(L718=\"\",\" \",LOOKUP(L718,FLOTA!A:A,FLOTA!B:B))","v":" "},"",{"$f":"IF(N718=\"\",\" \",LOOKUP(N718,FLOTA!A:A,FLOTA!H:H))","v":" "},null,null,null,null,"."]
[null,null,null,null,null,null,null,null,null,null,null,null,{"$f":"IF(L719=\"\",\" \",LOOKUP(L719,FLOTA!A:A,FLOTA!B:B))","v":" "},"",{"$f":"IF(N719=\"\",\" \",LOOKUP(N719,FLOTA!A:A,FLOTA!H:H))","v":" "},null,null,null,null,"."]
[null,null,null,null,null,null,null,null,null,null,null,null,{"$f":"IF(L720=\"\",\" \",LOOKUP(L720,FLOTA!A:A,FLOTA!B:B))","v":" "},"",{"$f":"IF(N720=\"\",\" \",LOOKUP(N720,FLOTA!A:A,FLOTA!H:H))","v":" "},null,null,null,null,"."]
[null,null,null,null,null,null,null,null,null,null,null,null,{"$f":"IF(L721=\"\",\" \",LOOKUP(L721,FLOTA!A:A,FLOTA!B:B))","v":" "},"",{"$f":"IF(N721=\"\",\" \",LOOKUP(N721,FLOTA!A:A,FLOTA!H:H))","v":" "},null,null,null,null,"."]
[null,null,null,null,null,null,null,null,null,null,null,null,{"$f":"IF(L722=\"\",\" \",LOOKUP(L722,FLOTA!A:A,FLOTA!B:B))","v":" "},"",{"$f":"IF(N722=\"\",\" \",LOOKUP(N722,FLOTA!A:A,FLOTA!H:H))","v":" "},null,null,null,null,"."]
[null,null,null,null,null,null,null,null,null,null,null,null,{"$f":"IF(L723=\"\",\" \",LOOKUP(L723,FLOTA!A:A,FLOTA!B:B))","v":" "},"",{"$f":"IF(N723=\"\",\" \",LOOKUP(N723,FLOTA!A:A,FLOTA!H:H))","v":" "},null,null,null,null,"."]
[null,null,null,null,null,null,null,null,null,null,null,null,{"$f":"IF(L724=\"\",\" \",LOOKUP(L724,FLOTA!A:A,FLOTA!B:B))","v":" "},"",{"$f":"IF(N724=\"\",\" \",LOOKUP(N724,FLOTA!A:A,FLOTA!H:H))","v":" "},null,null,null,null,"."]
[null,null,null,null,null,null,null,null,null,null,null,null,{"$f":"IF(L725=\"\",\" \",LOOKUP(L725,FLOTA!A:A,FLOTA!B:B))","v":" "},"",{"$f":"IF(N725=\"\",\" \",LOOKUP(N725,FLOTA!A:A,FLOTA!H:H))","v":" "},null,null,null,null,"."]
[null,null,null,null,null,null,null,null,null,null,null,null,{"$f":"IF(L726=\"\",\" \",LOOKUP(L726,FLOTA!A:A,FLOTA!B:B))","v":" "},"",{"$f":"IF(N726=\"\",\" \",LOOKUP(N726,FLOTA!A:A,FLOTA!H:H))","v":" "},null,null,null,null,"."]
[null,null,null,null,null,null,null,null,null,null,null,null,{"$f":"IF(L727=\"\",\" \",LOOKUP(L727,FLOTA!A:A,FLOTA!B:B))","v":" "},"",{"$f":"IF(N727=\"\",\" \",LOOKUP(N727,FLOTA!A:A,FLOTA!H:H))","v":" "},null,null,null,null,"."]
[null,null,null,null,null,null,null,null,null,null,null,null,{"$f":"IF(L728=\"\",\" \",LOOKUP(L728,FLOTA!A:A,FLOTA!B:B))","v":" "},"",{"$f":"IF(N728=\"\",\" \",LOOKUP(N728,FLOTA!A:A,FLOTA!H:H))","v":" "},null,null,null,null,"."]
[null,null,null,null,null,null,null,null,null,null,null,null,{"$f":"IF(L729=\"\",\" \",LOOKUP(L729,FLOTA!A:A,FLOTA!B:B))","v":" "},"",{"$f":"IF(N729=\"\",\" \",LOOKUP(N729,FLOTA!A:A,FLOTA!H:H))","v":" "},null,null,null,null,"."]
[null,null,null,null,null,null,null,null,null,null,null,null,{"$f":"IF(L730=\"\",\" \",LOOKUP(L730,FLOTA!A:A,FLOTA!B:B))","v":" "},"",{"$f":"IF(N730=\"\",\" \",LOOKUP(N730,FLOTA!A:A,FLOTA!H:H))","v":" "},null,null,null,null,"."]
[null,null,null,null,null,null,null,null,null,null,null,null,{"$f":"IF(L731=\"\",\" \",LOOKUP(L731,FLOTA!A:A,FLOTA!B:B))","v":" "},"",{"$f":"IF(N731=\"\",\" \",LOOKUP(N731,FLOTA!A:A,FLOTA!H:H))","v":" "},null,null,null,null,"."]
[null,null,null,null,null,null,null,null,null,null,null,null,{"$f":"IF(L732=\"\",\" \",LOOKUP(L732,FLOTA!A:A,FLOTA!B:B))","v":" "},"",{"$f":"IF(N732=\"\",\" \",LOOKUP(N732,FLOTA!A:A,FLOTA!H:H))","v":" "},null,null,null,null,"."]
[null,null,null,null,null,null,null,null,null,null,null,null,{"$f":"IF(L733=\"\",\" \",LOOKUP(L733,FLOTA!A:A,FLOTA!B:B))","v":" "},"",{"$f":"IF(N733=\"\",\" \",LOOKUP(N733,FLOTA!A:A,FLOTA!H:H))","v":" "},null,null,null,null,"."]
[null,null,null,null,null,null,null,null,null,null,null,null,{"$f":"IF(L734=\"\",\" \",LOOKUP(L734,FLOTA!A:A,FLOTA!B:B))","v":" "},"",{"$f":"IF(N734=\"\",\" \",LOOKUP(N734,FLOTA!A:A,FLOTA!H:H))","v":" "},null,null,null,null,"."]
[null,null,null,null,null,null,null,null,null,null,null,null,{"$f":"IF(L735=\"\",\" \",LOOKUP(L735,FLOTA!A:A,FLOTA!B:B))","v":" "},"",{"$f":"IF(N735=\"\",\" \",LOOKUP(N735,FLOTA!A:A,FLOTA!H:H))","v":" "},null,null,null,null,"."]
[null,null,null,null,null,null,null,null,null,null,null,null,{"$f":"IF(L736=\"\",\" \",LOOKUP(L736,FLOTA!A:A,FLOTA!B:B))","v":" "},"",{"$f":"IF(N736=\"\",\" \",LOOKUP(N736,FLOTA!A:A,FLOTA!H:H))","v":" "},null,null,null,null,"."]
[null,null,null,null,null,null,null,null,null,null,null,null,{"$f":"IF(L737=\"\",\" \",LOOKUP(L737,FLOTA!A:A,FLOTA!B:B))","v":" "},"",{"$f":"IF(N737=\"\",\" \",LOOKUP(N737,FLOTA!A:A,FLOTA!H:H))","v":" "},null,null,null,null,"."]
[null,null,null,null,null,null,null,null,null,null,null,null,{"$f":"IF(L738=\"\",\" \",LOOKUP(L738,FLOTA!A:A,FLOTA!B:B))","v":" "},"",{"$f":"IF(N738=\"\",\" \",LOOKUP(N738,FLOTA!A:A,FLOTA!H:H))","v":" "},null,null,null,null,"."]
[null,null,null,null,null,null,null,null,null,null,null,null,{"$f":"IF(L739=\"\",\" \",LOOKUP(L739,FLOTA!A:A,FLOTA!B:B))","v":" "},"",{"$f":"IF(N739=\"\",\" \",LOOKUP(N739,FLOTA!A:A,FLOTA!H:H))","v":" "},null,null,null,null,"."]
[null,null,null,null,null,null,null,null,null,null,null,null,{"$f":"IF(L740=\"\",\" \",LOOKUP(L740,FLOTA!A:A,FLOTA!B:B))","v":" "},"",{"$f":"IF(N740=\"\",\" \",LOOKUP(N740,FLOTA!A:A,FLOTA!H:H))","v":" "},null,null,null,null,"."]
[null,null,null,null,null,null,null,null,null,null,null,null,{"$f":"IF(L741=\"\",\" \",LOOKUP(L741,FLOTA!A:A,FLOTA!B:B))","v":" "},"",{"$f":"IF(N741=\"\",\" \",LOOKUP(N741,FLOTA!A:A,FLOTA!H:H))","v":" "},null,null,null,null,"."]
[null,null,null,null,null,null,null,null,null,null,null,null,{"$f":"IF(L742=\"\",\" \",LOOKUP(L742,FLOTA!A:A,FLOTA!B:B))","v":" "},"",{"$f":"IF(N742=\"\",\" \",LOOKUP(N742,FLOTA!A:A,FLOTA!H:H))","v":" "},null,null,null,null,"."]
[null,null,null,null,null,null,null,null,null,null,null,null,{"$f":"IF(L743=\"\",\" \",LOOKUP(L743,FLOTA!A:A,FLOTA!B:B))","v":" "},"",{"$f":"IF(N743=\"\",\" \",LOOKUP(N743,FLOTA!A:A,FLOTA!H:H))","v":" "},null,null,null,null,"."]
[null,null,null,null,null,null,null,null,null,null,null,null,{"$f":"IF(L744=\"\",\" \",LOOKUP(L744,FLOTA!A:A,FLOTA!B:B))","v":" "},"",{"$f":"IF(N744=\"\",\" \",LOOKUP(N744,FLOTA!A:A,FLOTA!H:H))","v":" "},null,null,null,null,"."]
[null,null,null,null,null,null,null,null,null,null,null,null,{"$f":"IF(L745=\"\",\" \",LOOKUP(L745,FLOTA!A:A,FLOTA!B:B))","v":" "},"",{"$f":"IF(N745=\"\",\" \",LOOKUP(N745,FLOTA!A:A,FLOTA!H:H))","v":" "},null,null,null,null,"."]
[null,null,null,null,null,null,null,null,null,null,null,null,{"$f":"IF(L746=\"\",\" \",LOOKUP(L746,FLOTA!A:A,FLOTA!B:B))","v":" "},"",{"$f":"IF(N746=\"\",\" \",LOOKUP(N746,FLOTA!A:A,FLOTA!H:H))","v":" "},null,null,null,null,"."]
[null,null,null,null,null,null,null,null,null,null,null,null,{"$f":"IF(L747=\"\",\" \",LOOKUP(L747,FLOTA!A:A,FLOTA!B:B))","v":" "},"",{"$f":"IF(N747=\"\",\" \",LOOKUP(N747,FLOTA!A:A,FLOTA!H:H))","v":" "},null,null,null,null,"."]
[null,null,null,null,null,null,null,null,null,null,null,null,{"$f":"IF(L748=\"\",\" \",LOOKUP(L748,FLOTA!A:A,FLOTA!B:B))","v":" "},"",{"$f":"IF(N748=\"\",\" \",LOOKUP(N748,FLOTA!A:A,FLOTA!H:H))","v":" "},null,null,null,null,"."]
[null,null,null,null,null,null,null,null,null,null,null,null,{"$f":"IF(L749=\"\",\" \",LOOKUP(L749,FLOTA!A:A,FLOTA!B:B))","v":" "},"",{"$f":"IF(N749=\"\",\" \",LOOKUP(N749,FLOTA!A:A,FLOTA!H:H))","v":" "},null,null,null,null,"."]
[null,null,null,null,null,null,null,null,null,null,null,null,{"$f":"IF(L750=\"\",\" \",LOOKUP(L750,FLOTA!A:A,FLOTA!B:B))","v":" "},"",{"$f":"IF(N750=\"\",\" \",LOOKUP(N750,FLOTA!A:A,FLOTA!H:H))","v":" "},null,null,null,null,"."]
[null,null,null,null,null,null,null,null,null,null,null,null,{"$f":"IF(L751=\"\",\" \",LOOKUP(L751,FLOTA!A:A,FLOTA!B:B))","v":" "},"",{"$f":"IF(N751=\"\",\" \",LOOKUP(N751,FLOTA!A:A,FLOTA!H:H))","v":" "},null,null,null,null,"."]
[null,null,null,null,null,null,null,null,null,null,null,null,{"$f":"IF(L752=\"\",\" \",LOOKUP(L752,FLOTA!A:A,FLOTA!B:B))","v":" "},"",{"$f":"IF(N752=\"\",\" \",LOOKUP(N752,FLOTA!A:A,FLOTA!H:H))","v":" "},null,null,null,null,"."]
[null,null,null,null,null,null,null,null,null,null,null,null,{"$f":"IF(L753=\"\",\" \",LOOKUP(L753,FLOTA!A:A,FLOTA!B:B))","v":" "},"",{"$f":"IF(N753=\"\",\" \",LOOKUP(N753,FLOTA!A:A,FLOTA!H:H))","v":" "},null,null,null,null,"."]
[null,null,null,null,null,null,null,null,null,null,null,null,{"$f":"IF(L754=\"\",\" \",LOOKUP(L754,FLOTA!A:A,FLOTA!B:B))","v":" "},"",{"$f":"IF(N754=\"\",\" \",LOOKUP(N754,FLOTA!A:A,FLOTA!H:H))","v":" "},null,null,null,null,"."]
[null,null,null,null,null,null,null,null,null,null,null,null,{"$f":"IF(L755=\"\",\" \",LOOKUP(L755,FLOTA!A:A,FLOTA!B:B))","v":" "},"",{"$f":"IF(N755=\"\",\" \",LOOKUP(N755,FLOTA!A:A,FLOTA!H:H))","v":" "},null,null,null,null,"."]
[null,null,null,null,null,null,null,null,null,null,null,null,{"$f":"IF(L756=\"\",\" \",LOOKUP(L756,FLOTA!A:A,FLOTA!B:B))","v":" "},"",{"$f":"IF(N756=\"\",\" \",LOOKUP(N756,FLOTA!A:A,FLOTA!H:H))","v":" "},null,null,null,null,"."]
[null,null,null,null,null,null,null,null,null,null,null,null,{"$f":"IF(L757=\"\",\" \",LOOKUP(L757,FLOTA!A:A,FLOTA!B:B))","v":" "},"",{"$f":"IF(N757=\"\",\" \",LOOKUP(N757,FLOTA!A:A,FLOTA!H:H))","v":" "},null,null,null,null,"."]
[null,null,null,null,null,null,null,null,null,null,null,null,{"$f":"IF(L758=\"\",\" \",LOOKUP(L758,FLOTA!A:A,FLOTA!B:B))","v":" "},"",{"$f":"IF(N758=\"\",\" \",LOOKUP(N758,FLOTA!A:A,FLOTA!H:H))","v":" "},null,null,null,null,"."]
[null,null,null,null,null,null,null,null,null,null,null,null,{"$f":"IF(L759=\"\",\" \",LOOKUP(L759,FLOTA!A:A,FLOTA!B:B))","v":" "},"",{"$f":"IF(N759=\"\",\" \",LOOKUP(N759,FLOTA!A:A,FLOTA!H:H))","v":" "},null,null,null,null,"."]
[null,null,null,null,null,null,null,null,null,null,null,null,{"$f":"IF(L760=\"\",\" \",LOOKUP(L760,FLOTA!A:A,FLOTA!B:B))","v":" "},"",{"$f":"IF(N760=\"\",\" \",LOOKUP(N760,FLOTA!A:A,FLOTA!H:H))","v":" "},null,null,null,null,"."]
[null,null,null,null,null,null,null,null,null,null,null,null,{"$f":"IF(L761=\"\",\" \",LOOKUP(L761,FLOTA!A:A,FLOTA!B:B))","v":" "},"",{"$f":"IF(N761=\"\",\" \",LOOKUP(N761,FLOTA!A:A,FLOTA!H:H))","v":" "},null,null,null,null,"."]
[null,null,null,null,null,null,null,null,null,null,null,null,{"$f":"IF(L762=\"\",\" \",LOOKUP(L762,FLOTA!A:A,FLOTA!B:B))","v":" "},"",{"$f":"IF(N762=\"\",\" \",LOOKUP(N762,FLOTA!A:A,FLOTA!H:H))","v":" "},null,null,null,null,"."]
[null,null,null,null,null,null,null,null,null,null,null,null,{"$f":"IF(L763=\"\",\" \",LOOKUP(L763,FLOTA!A:A,FLOTA!B:B))","v":" "},"",{"$f":"IF(N763=\"\",\" \",LOOKUP(N763,FLOTA!A:A,FLOTA!H:H))","v":" "},null,null,null,null,"."]
[null,null,null,null,null,null,null,null,null,null,null,null,{"$f":"IF(L764=\"\",\" \",LOOKUP(L764,FLOTA!A:A,FLOTA!B:B))","v":" "},"",{"$f":"IF(N764=\"\",\" \",LOOKUP(N764,FLOTA!A:A,FLOTA!H:H))","v":" "},null,null,null,null,"."]
[null,null,null,null,null,null,null,null,null,null,null,null,{"$f":"IF(L765=\"\",\" \",LOOKUP(L765,FLOTA!A:A,FLOTA!B:B))","v":" "},"",{"$f":"IF(N765=\"\",\" \",LOOKUP(N765,FLOTA!A:A,FLOTA!H:H))","v":" "},null,null,null,null,"."]
[null,null,null,null,null,null,null,null,null,null,null,null,{"$f":"IF(L766=\"\",\" \",LOOKUP(L766,FLOTA!A:A,FLOTA!B:B))","v":" "},"",{"$f":"IF(N766=\"\",\" \",LOOKUP(N766,FLOTA!A:A,FLOTA!H:H))","v":" "},null,null,null,null,"."]
[null,null,null,null,null,null,null,null,null,null,null,null,{"$f":"IF(L767=\"\",\" \",LOOKUP(L767,FLOTA!A:A,FLOTA!B:B))","v":" "},"",{"$f":"IF(N767=\"\",\" \",LOOKUP(N767,FLOTA!A:A,FLOTA!H:H))","v":" "},null,null,null,null,"."]
[null,null,null,null,null,null,null,null,null,null,null,null,{"$f":"IF(L768=\"\",\" \",LOOKUP(L768,FLOTA!A:A,FLOTA!B:B))","v":" "},"",{"$f":"IF(N768=\"\",\" \",LOOKUP(N768,FLOTA!A:A,FLOTA!H:H))","v":" "},null,null,null,null,"."]
[null,null,null,null,null,null,null,null,null,null,null,null,{"$f":"IF(L769=\"\",\" \",LOOKUP(L769,FLOTA!A:A,FLOTA!B:B))","v":" "},{"$f":"IF(L769=\"\",\"\",L769)","v":""},{"$f":"IF(N769=\"\",\" \",LOOKUP(N769,FLOTA!A:A,FLOTA!H:H))","v":" "},null,null,null,null,"."]
[null,null,null,null,null,null,null,null,null,null,null,null,{"$f":"IF(L770=\"\",\" \",LOOKUP(L770,FLOTA!A:A,FLOTA!B:B))","v":" "},"",{"$f":"IF(N770=\"\",\" \",LOOKUP(N770,FLOTA!A:A,FLOTA!H:H))","v":" "},null,null,null,null,"."]
[null,null,null,null,null,null,null,null,null,null,null,null,{"$f":"IF(L771=\"\",\" \",LOOKUP(L771,FLOTA!A:A,FLOTA!B:B))","v":" "},"",{"$f":"IF(N771=\"\",\" \",LOOKUP(N771,FLOTA!A:A,FLOTA!H:H))","v":" "},null,null,null,null,"."]
[null,null,null,null,null,null,null,null,null,null,null,null,{"$f":"IF(L772=\"\",\" \",LOOKUP(L772,FLOTA!A:A,FLOTA!B:B))","v":" "},"",{"$f":"IF(N772=\"\",\" \",LOOKUP(N772,FLOTA!A:A,FLOTA!H:H))","v":" "},null,null,null,null,"."]
[null,null,null,null,null,null,null,null,null,null,null,null,{"$f":"IF(L773=\"\",\" \",LOOKUP(L773,FLOTA!A:A,FLOTA!B:B))","v":" "},"",{"$f":"IF(N773=\"\",\" \",LOOKUP(N773,FLOTA!A:A,FLOTA!H:H))","v":" "},null,null,null,null,"."]
[null,null,null,null,null,null,null,null,null,null,null,null,{"$f":"IF(L774=\"\",\" \",LOOKUP(L774,FLOTA!A:A,FLOTA!B:B))","v":" "},"",{"$f":"IF(N774=\"\",\" \",LOOKUP(N774,FLOTA!A:A,FLOTA!H:H))","v":" "},null,null,null,null,"."]
[null,null,null,null,null,null,null,null,null,null,null,null,{"$f":"IF(L775=\"\",\" \",LOOKUP(L775,FLOTA!A:A,FLOTA!B:B))","v":" "},"",{"$f":"IF(N775=\"\",\" \",LOOKUP(N775,FLOTA!A:A,FLOTA!H:H))","v":" "},null,null,null,null,"."]
[null,null,null,null,null,null,null,null,null,null,null,null,{"$f":"IF(L776=\"\",\" \",LOOKUP(L776,FLOTA!A:A,FLOTA!B:B))","v":" "},"",{"$f":"IF(N776=\"\",\" \",LOOKUP(N776,FLOTA!A:A,FLOTA!H:H))","v":" "},null,null,null,null,"."]
[null,null,null,null,null,null,null,null,null,null,null,null,{"$f":"IF(L777=\"\",\" \",LOOKUP(L777,FLOTA!A:A,FLOTA!B:B))","v":" "},"",{"$f":"IF(N777=\"\",\" \",LOOKUP(N777,FLOTA!A:A,FLOTA!H:H))","v":" "},null,null,null,null,"."]
[null,null,null,null,null,null,null,null,null,null,null,null,{"$f":"IF(L778=\"\",\" \",LOOKUP(L778,FLOTA!A:A,FLOTA!B:B))","v":" "},"",{"$f":"IF(N778=\"\",\" \",LOOKUP(N778,FLOTA!A:A,FLOTA!H:H))","v":" "},null,null,null,null,"."]
[null,null,null,null,null,null,null,null,null,null,null,null,{"$f":"IF(L779=\"\",\" \",LOOKUP(L779,FLOTA!A:A,FLOTA!B:B))","v":" "},"",{"$f":"IF(N779=\"\",\" \",LOOKUP(N779,FLOTA!A:A,FLOTA!H:H))","v":" "},null,null,null,null,"."]
[null,null,null,null,null,null,null,null,null,null,null,null,{"$f":"IF(L780=\"\",\" \",LOOKUP(L780,FLOTA!A:A,FLOTA!B:B))","v":" "},"",{"$f":"IF(N780=\"\",\" \",LOOKUP(N780,FLOTA!A:A,FLOTA!H:H))","v":" "},null,null,null,null,"."]
[null,null,null,null,null,null,null,null,null,null,null,null,{"$f":"IF(L781=\"\",\" \",LOOKUP(L781,FLOTA!A:A,FLOTA!B:B))","v":" "},"",{"$f":"IF(N781=\"\",\" \",LOOKUP(N781,FLOTA!A:A,FLOTA!H:H))","v":" "},null,null,null,null,"."]
[null,null,null,null,null,null,null,null,null,null,null,null,{"$f":"IF(L782=\"\",\" \",LOOKUP(L782,FLOTA!A:A,FLOTA!B:B))","v":" "},"",{"$f":"IF(N782=\"\",\" \",LOOKUP(N782,FLOTA!A:A,FLOTA!H:H))","v":" "},null,null,null,null,"."]
[null,null,null,null,null,null,null,null,null,null,null,null,{"$f":"IF(L783=\"\",\" \",LOOKUP(L783,FLOTA!A:A,FLOTA!B:B))","v":" "},"",{"$f":"IF(N783=\"\",\" \",LOOKUP(N783,FLOTA!A:A,FLOTA!H:H))","v":" "},null,null,null,null,"."]
[null,null,null,null,null,null,null,null,null,null,null,null,{"$f":"IF(L784=\"\",\" \",LOOKUP(L784,FLOTA!A:A,FLOTA!B:B))","v":" "},"",{"$f":"IF(N784=\"\",\" \",LOOKUP(N784,FLOTA!A:A,FLOTA!H:H))","v":" "},null,null,null,null,"."]
[null,null,null,null,null,null,null,null,null,null,null,null,{"$f":"IF(L785=\"\",\" \",LOOKUP(L785,FLOTA!A:A,FLOTA!B:B))","v":" "},"",{"$f":"IF(N785=\"\",\" \",LOOKUP(N785,FLOTA!A:A,FLOTA!H:H))","v":" "},null,null,null,null,"."]
[null,null,null,null,null,null,null,null,null,null,null,null,{"$f":"IF(L786=\"\",\" \",LOOKUP(L786,FLOTA!A:A,FLOTA!B:B))","v":" "},"",{"$f":"IF(N786=\"\",\" \",LOOKUP(N786,FLOTA!A:A,FLOTA!H:H))","v":" "},null,null,null,null,"."]
[null,null,null,null,null,null,null,null,null,null,null,null,{"$f":"IF(L787=\"\",\" \",LOOKUP(L787,FLOTA!A:A,FLOTA!B:B))","v":" "},"",{"$f":"IF(N787=\"\",\" \",LOOKUP(N787,FLOTA!A:A,FLOTA!H:H))","v":" "},null,null,null,null,"."]
[null,null,null,null,null,null,null,null,null,null,null,null,{"$f":"IF(L788=\"\",\" \",LOOKUP(L788,FLOTA!A:A,FLOTA!B:B))","v":" "},"",{"$f":"IF(N788=\"\",\" \",LOOKUP(N788,FLOTA!A:A,FLOTA!H:H))","v":" "},null,null,null,null,"."]
[null,null,null,null,null,null,null,null,null,null,null,null,{"$f":"IF(L789=\"\",\" \",LOOKUP(L789,FLOTA!A:A,FLOTA!B:B))","v":" "},"",{"$f":"IF(N789=\"\",\" \",LOOKUP(N789,FLOTA!A:A,FLOTA!H:H))","v":" "},null,null,null,null,"."]
[null,null,null,null,null,null,null,null,null,null,null,null,{"$f":"IF(L790=\"\",\" \",LOOKUP(L790,FLOTA!A:A,FLOTA!B:B))","v":" "},"",{"$f":"IF(N790=\"\",\" \",LOOKUP(N790,FLOTA!A:A,FLOTA!H:H))","v":" "},null,null,null,null,"."]
[null,null,null,null,null,null,null,null,null,null,null,null,{"$f":"IF(L791=\"\",\" \",LOOKUP(L791,FLOTA!A:A,FLOTA!B:B))","v":" "},"",{"$f":"IF(N791=\"\",\" \",LOOKUP(N791,FLOTA!A:A,FLOTA!H:H))","v":" "},null,null,null,null,"."]
[null,null,null,null,null,null,null,null,null,null,null,null,{"$f":"IF(L792=\"\",\" \",LOOKUP(L792,FLOTA!A:A,FLOTA!B:B))","v":" "},"",{"$f":"IF(N792=\"\",\" \",LOOKUP(N792,FLOTA!A:A,FLOTA!H:H))","v":" "},null,null,null,null,"."]
[null,null,null,null,null,null,null,null,null,null,null,null,{"$f":"IF(L793=\"\",\" \",LOOKUP(L793,FLOTA!A:A,FLOTA!B:B))","v":" "},"",{"$f":"IF(N793=\"\",\" \",LOOKUP(N793,FLOTA!A:A,FLOTA!H:H))","v":" "},null,null,null,null,"."]
[null,null,null,null,null,null,null,null,null,null,null,null,{"$f":"IF(L794=\"\",\" \",LOOKUP(L794,FLOTA!A:A,FLOTA!B:B))","v":" "},"",{"$f":"IF(N794=\"\",\" \",LOOKUP(N794,FLOTA!A:A,FLOTA!H:H))","v":" "},null,null,null,null,"."]
[null,null,null,null,null,null,null,null,null,null,null,null,{"$f":"IF(L795=\"\",\" \",LOOKUP(L795,FLOTA!A:A,FLOTA!B:B))","v":" "},"",{"$f":"IF(N795=\"\",\" \",LOOKUP(N795,FLOTA!A:A,FLOTA!H:H))","v":" "},null,null,null,null,"."]
[null,null,null,null,null,null,null,null,null,null,null,null,{"$f":"IF(L796=\"\",\" \",LOOKUP(L796,FLOTA!A:A,FLOTA!B:B))","v":" "},"",{"$f":"IF(N796=\"\",\" \",LOOKUP(N796,FLOTA!A:A,FLOTA!H:H))","v":" "},null,null,null,null,"."]
[null,null,null,null,null,null,null,null,null,null,null,null,{"$f":"IF(L797=\"\",\" \",LOOKUP(L797,FLOTA!A:A,FLOTA!B:B))","v":" "},"",{"$f":"IF(N797=\"\",\" \",LOOKUP(N797,FLOTA!A:A,FLOTA!H:H))","v":" "},null,null,null,null,"."]
[null,null,null,null,null,null,null,null,null,null,null,null,{"$f":"IF(L798=\"\",\" \",LOOKUP(L798,FLOTA!A:A,FLOTA!B:B))","v":" "},"",{"$f":"IF(N798=\"\",\" \",LOOKUP(N798,FLOTA!A:A,FLOTA!H:H))","v":" "},null,null,null,null,"."]
[null,null,null,null,null,null,null,null,null,null,null,null,{"$f":"IF(L799=\"\",\" \",LOOKUP(L799,FLOTA!A:A,FLOTA!B:B))","v":" "},"",{"$f":"IF(N799=\"\",\" \",LOOKUP(N799,FLOTA!A:A,FLOTA!H:H))","v":" "},null,null,null,null,"."]
[null,null,null,null,null,null,null,null,null,null,null,null,{"$f":"IF(L800=\"\",\" \",LOOKUP(L800,FLOTA!A:A,FLOTA!B:B))","v":" "},"",{"$f":"IF(N800=\"\",\" \",LOOKUP(N800,FLOTA!A:A,FLOTA!H:H))","v":" "},null,null,null,null,"."]
[null,null,null,null,null,null,null,null,null,null,null,null,{"$f":"IF(L801=\"\",\" \",LOOKUP(L801,FLOTA!A:A,FLOTA!B:B))","v":" "},"",{"$f":"IF(N801=\"\",\" \",LOOKUP(N801,FLOTA!A:A,FLOTA!H:H))","v":" "},null,null,null,null,"."]
[null,null,null,null,null,null,null,null,null,null,null,null,{"$f":"IF(L802=\"\",\" \",LOOKUP(L802,FLOTA!A:A,FLOTA!B:B))","v":" "},"",{"$f":"IF(N802=\"\",\" \",LOOKUP(N802,FLOTA!A:A,FLOTA!H:H))","v":" "},null,null,null,null,"."]
[null,null,null,null,null,null,null,null,null,null,null,null,{"$f":"IF(L803=\"\",\" \",LOOKUP(L803,FLOTA!A:A,FLOTA!B:B))","v":" "},"",{"$f":"IF(N803=\"\",\" \",LOOKUP(N803,FLOTA!A:A,FLOTA!H:H))","v":" "},null,null,null,null,"."]
[null,null,null,null,null,null,null,null,null,null,null,null,{"$f":"IF(L804=\"\",\" \",LOOKUP(L804,FLOTA!A:A,FLOTA!B:B))","v":" "},"",{"$f":"IF(N804=\"\",\" \",LOOKUP(N804,FLOTA!A:A,FLOTA!H:H))","v":" "},null,null,null,null,"."]
[null,null,null,null,null,null,null,null,null,null,null,null,{"$f":"IF(L805=\"\",\" \",LOOKUP(L805,FLOTA!A:A,FLOTA!B:B))","v":" "},"",{"$f":"IF(N805=\"\",\" \",LOOKUP(N805,FLOTA!A:A,FLOTA!H:H))","v":" "},null,null,null,null,"."]
[null,null,null,null,null,null,null,null,null,null,null,null,{"$f":"IF(L806=\"\",\" \",LOOKUP(L806,FLOTA!A:A,FLOTA!B:B))","v":" "},"",{"$f":"IF(N806=\"\",\" \",LOOKUP(N806,FLOTA!A:A,FLOTA!H:H))","v":" "},null,null,null,null,"."]
[null,null,null,null,null,null,null,null,null,null,null,null,{"$f":"IF(L807=\"\",\" \",LOOKUP(L807,FLOTA!A:A,FLOTA!B:B))","v":" "},"",{"$f":"IF(N807=\"\",\" \",LOOKUP(N807,FLOTA!A:A,FLOTA!H:H))","v":" "},null,null,null,null,"."]
[null,null,null,null,null,null,null,null,null,null,null,null,{"$f":"IF(L808=\"\",\" \",LOOKUP(L808,FLOTA!A:A,FLOTA!B:B))","v":" "},"",{"$f":"IF(N808=\"\",\" \",LOOKUP(N808,FLOTA!A:A,FLOTA!H:H))","v":" "},null,null,null,null,"."]
[null,null,null,null,null,null,null,null,null,null,null,null,{"$f":"IF(L809=\"\",\" \",LOOKUP(L809,FLOTA!A:A,FLOTA!B:B))","v":" "},"",{"$f":"IF(N809=\"\",\" \",LOOKUP(N809,FLOTA!A:A,FLOTA!H:H))","v":" "},null,null,null,null,"."]
[null,null,null,null,null,null,null,null,null,null,null,null,{"$f":"IF(L810=\"\",\" \",LOOKUP(L810,FLOTA!A:A,FLOTA!B:B))","v":" "},"",{"$f":"IF(N810=\"\",\" \",LOOKUP(N810,FLOTA!A:A,FLOTA!H:H))","v":" "},null,null,null,null,"."]
[null,null,null,null,null,null,null,null,null,null,null,null,{"$f":"IF(L811=\"\",\" \",LOOKUP(L811,FLOTA!A:A,FLOTA!B:B))","v":" "},"",{"$f":"IF(N811=\"\",\" \",LOOKUP(N811,FLOTA!A:A,FLOTA!H:H))","v":" "},null,null,null,null,"."]
[null,null,null,null,null,null,null,null,null,null,null,null,{"$f":"IF(L812=\"\",\" \",LOOKUP(L812,FLOTA!A:A,FLOTA!B:B))","v":" "},"",{"$f":"IF(N812=\"\",\" \",LOOKUP(N812,FLOTA!A:A,FLOTA!H:H))","v":" "},null,null,null,null,"."]
[null,null,null,null,null,null,null,null,null,null,null,null,{"$f":"IF(L813=\"\",\" \",LOOKUP(L813,FLOTA!A:A,FLOTA!B:B))","v":" "},"",{"$f":"IF(N813=\"\",\" \",LOOKUP(N813,FLOTA!A:A,FLOTA!H:H))","v":" "},null,null,null,null,"."]
[null,null,null,null,null,null,null,null,null,null,null,null,{"$f":"IF(L814=\"\",\" \",LOOKUP(L814,FLOTA!A:A,FLOTA!B:B))","v":" "},"",{"$f":"IF(N814=\"\",\" \",LOOKUP(N814,FLOTA!A:A,FLOTA!H:H))","v":" "},null,null,null,null,"."]
[null,null,null,null,null,null,null,null,null,null,null,null,{"$f":"IF(L815=\"\",\" \",LOOKUP(L815,FLOTA!A:A,FLOTA!B:B))","v":" "},"",{"$f":"IF(N815=\"\",\" \",LOOKUP(N815,FLOTA!A:A,FLOTA!H:H))","v":" "},null,null,null,null,"."]
[null,null,null,null,null,null,null,null,null,null,null,null,{"$f":"IF(L816=\"\",\" \",LOOKUP(L816,FLOTA!A:A,FLOTA!B:B))","v":" "},"",{"$f":"IF(N816=\"\",\" \",LOOKUP(N816,FLOTA!A:A,FLOTA!H:H))","v":" "},null,null,null,null,"."]
[null,null,null,null,null,null,null,null,null,null,null,null,{"$f":"IF(L817=\"\",\" \",LOOKUP(L817,FLOTA!A:A,FLOTA!B:B))","v":" "},"",{"$f":"IF(N817=\"\",\" \",LOOKUP(N817,FLOTA!A:A,FLOTA!H:H))","v":" "},null,null,null,null,"."]
[null,null,null,null,null,null,null,null,null,null,null,null,{"$f":"IF(L818=\"\",\" \",LOOKUP(L818,FLOTA!A:A,FLOTA!B:B))","v":" "},"",{"$f":"IF(N818=\"\",\" \",LOOKUP(N818,FLOTA!A:A,FLOTA!H:H))","v":" "},null,null,null,null,"."]
[null,null,null,null,null,null,null,null,null,null,null,null,{"$f":"IF(L819=\"\",\" \",LOOKUP(L819,FLOTA!A:A,FLOTA!B:B))","v":" "},"",{"$f":"IF(N819=\"\",\" \",LOOKUP(N819,FLOTA!A:A,FLOTA!H:H))","v":" "},null,null,null,null,"."]
[null,null,null,null,null,null,null,null,null,null,null,null,{"$f":"IF(L820=\"\",\" \",LOOKUP(L820,FLOTA!A:A,FLOTA!B:B))","v":" "},"",{"$f":"IF(N820=\"\",\" \",LOOKUP(N820,FLOTA!A:A,FLOTA!H:H))","v":" "},null,null,null,null,"."]
[null,null,null,null,null,null,null,null,null,null,null,null,{"$f":"IF(L821=\"\",\" \",LOOKUP(L821,FLOTA!A:A,FLOTA!B:B))","v":" "},"",{"$f":"IF(N821=\"\",\" \",LOOKUP(N821,FLOTA!A:A,FLOTA!H:H))","v":" "},null,null,null,null,"."]
[null,null,null,null,null,null,null,null,null,null,null,null,{"$f":"IF(L822=\"\",\" \",LOOKUP(L822,FLOTA!A:A,FLOTA!B:B))","v":" "},"",{"$f":"IF(N822=\"\",\" \",LOOKUP(N822,FLOTA!A:A,FLOTA!H:H))","v":" "},null,null,null,null,"."]
[null,null,null,null,null,null,null,null,null,null,null,null,{"$f":"IF(L823=\"\",\" \",LOOKUP(L823,FLOTA!A:A,FLOTA!B:B))","v":" "},"",{"$f":"IF(N823=\"\",\" \",LOOKUP(N823,FLOTA!A:A,FLOTA!H:H))","v":" "},null,null,null,null,"."]
[null,null,null,null,null,null,null,null,null,null,null,null,{"$f":"IF(L824=\"\",\" \",LOOKUP(L824,FLOTA!A:A,FLOTA!B:B))","v":" "},"",{"$f":"IF(N824=\"\",\" \",LOOKUP(N824,FLOTA!A:A,FLOTA!H:H))","v":" "},null,null,null,null,"."]
[null,null,null,null,null,null,null,null,null,null,null,null,{"$f":"IF(L825=\"\",\" \",LOOKUP(L825,FLOTA!A:A,FLOTA!B:B))","v":" "},"",{"$f":"IF(N825=\"\",\" \",LOOKUP(N825,FLOTA!A:A,FLOTA!H:H))","v":" "},null,null,null,null,"."]
[null,null,null,null,null,null,null,null,null,null,null,null,{"$f":"IF(L826=\"\",\" \",LOOKUP(L826,FLOTA!A:A,FLOTA!B:B))","v":" "},"",{"$f":"IF(N826=\"\",\" \",LOOKUP(N826,FLOTA!A:A,FLOTA!H:H))","v":" "},null,null,null,null,"."]
[null,null,null,null,null,null,null,null,null,null,null,null,{"$f":"IF(L827=\"\",\" \",LOOKUP(L827,FLOTA!A:A,FLOTA!B:B))","v":" "},"",{"$f":"IF(N827=\"\",\" \",LOOKUP(N827,FLOTA!A:A,FLOTA!H:H))","v":" "},null,null,null,null,"."]
[null,null,null,null,null,null,null,null,null,null,null,null,{"$f":"IF(L828=\"\",\" \",LOOKUP(L828,FLOTA!A:A,FLOTA!B:B))","v":" "},"",{"$f":"IF(N828=\"\",\" \",LOOKUP(N828,FLOTA!A:A,FLOTA!H:H))","v":" "},null,null,null,null,"."]
[null,null,null,null,null,null,null,null,null,null,null,null,{"$f":"IF(L829=\"\",\" \",LOOKUP(L829,FLOTA!A:A,FLOTA!B:B))","v":" "},"",{"$f":"IF(N829=\"\",\" \",LOOKUP(N829,FLOTA!A:A,FLOTA!H:H))","v":" "},null,null,null,null,"."]
[null,null,null,null,null,null,null,null,null,null,null,null,{"$f":"IF(L830=\"\",\" \",LOOKUP(L830,FLOTA!A:A,FLOTA!B:B))","v":" "},"",{"$f":"IF(N830=\"\",\" \",LOOKUP(N830,FLOTA!A:A,FLOTA!H:H))","v":" "},null,null,null,null,"."]
[null,null,null,null,null,null,null,null,null,null,null,null,{"$f":"IF(L831=\"\",\" \",LOOKUP(L831,FLOTA!A:A,FLOTA!B:B))","v":" "},"",{"$f":"IF(N831=\"\",\" \",LOOKUP(N831,FLOTA!A:A,FLOTA!H:H))","v":" "},null,null,null,null,"."]
[null,null,null,null,null,null,null,null,null,null,null,null,{"$f":"IF(L832=\"\",\" \",LOOKUP(L832,FLOTA!A:A,FLOTA!B:B))","v":" "},"",{"$f":"IF(N832=\"\",\" \",LOOKUP(N832,FLOTA!A:A,FLOTA!H:H))","v":" "},null,null,null,null,"."]
[null,null,null,null,null,null,null,null,null,null,null,null,{"$f":"IF(L833=\"\",\" \",LOOKUP(L833,FLOTA!A:A,FLOTA!B:B))","v":" "},{"$f":"IF(L833=\"\",\"\",L833)","v":""},{"$f":"IF(N833=\"\",\" \",LOOKUP(N833,FLOTA!A:A,FLOTA!H:H))","v":" "},null,null,null,null,"."]
[null,null,null,null,null,null,null,null,null,null,null,null,{"$f":"IF(L834=\"\",\" \",LOOKUP(L834,FLOTA!A:A,FLOTA!B:B))","v":" "},"",{"$f":"IF(N834=\"\",\" \",LOOKUP(N834,FLOTA!A:A,FLOTA!H:H))","v":" "},null,null,null,null,"."]
[null,null,null,null,null,null,null,null,null,null,null,null,{"$f":"IF(L835=\"\",\" \",LOOKUP(L835,FLOTA!A:A,FLOTA!B:B))","v":" "},"",{"$f":"IF(N835=\"\",\" \",LOOKUP(N835,FLOTA!A:A,FLOTA!H:H))","v":" "},null,null,null,null,"."]
[null,null,null,null,null,null,null,null,null,null,null,null,{"$f":"IF(L836=\"\",\" \",LOOKUP(L836,FLOTA!A:A,FLOTA!B:B))","v":" "},"",{"$f":"IF(N836=\"\",\" \",LOOKUP(N836,FLOTA!A:A,FLOTA!H:H))","v":" "},null,null,null,null,"."]
[null,null,null,null,null,null,null,null,null,null,null,null,{"$f":"IF(L837=\"\",\" \",LOOKUP(L837,FLOTA!A:A,FLOTA!B:B))","v":" "},"",{"$f":"IF(N837=\"\",\" \",LOOKUP(N837,FLOTA!A:A,FLOTA!H:H))","v":" "},null,null,null,null,"."]
[null,null,null,null,null,null,null,null,null,null,null,null,{"$f":"IF(L838=\"\",\" \",LOOKUP(L838,FLOTA!A:A,FLOTA!B:B))","v":" "},"",{"$f":"IF(N838=\"\",\" \",LOOKUP(N838,FLOTA!A:A,FLOTA!H:H))","v":" "},null,null,null,null,"."]
[null,null,null,null,null,null,null,null,null,null,null,null,{"$f":"IF(L839=\"\",\" \",LOOKUP(L839,FLOTA!A:A,FLOTA!B:B))","v":" "},"",{"$f":"IF(N839=\"\",\" \",LOOKUP(N839,FLOTA!A:A,FLOTA!H:H))","v":" "},null,null,null,null,"."]
[null,null,null,null,null,null,null,null,null,null,null,null,{"$f":"IF(L840=\"\",\" \",LOOKUP(L840,FLOTA!A:A,FLOTA!B:B))","v":" "},"",{"$f":"IF(N840=\"\",\" \",LOOKUP(N840,FLOTA!A:A,FLOTA!H:H))","v":" "},null,null,null,null,"."]
[null,null,null,null,null,null,null,null,null,null,null,null,{"$f":"IF(L841=\"\",\" \",LOOKUP(L841,FLOTA!A:A,FLOTA!B:B))","v":" "},"",{"$f":"IF(N841=\"\",\" \",LOOKUP(N841,FLOTA!A:A,FLOTA!H:H))","v":" "},null,null,null,null,"."]
[null,null,null,null,null,null,null,null,null,null,null,null,{"$f":"IF(L842=\"\",\" \",LOOKUP(L842,FLOTA!A:A,FLOTA!B:B))","v":" "},"",{"$f":"IF(N842=\"\",\" \",LOOKUP(N842,FLOTA!A:A,FLOTA!H:H))","v":" "},null,null,null,null,"."]
[null,null,null,null,null,null,null,null,null,null,null,null,{"$f":"IF(L843=\"\",\" \",LOOKUP(L843,FLOTA!A:A,FLOTA!B:B))","v":" "},"",{"$f":"IF(N843=\"\",\" \",LOOKUP(N843,FLOTA!A:A,FLOTA!H:H))","v":" "},null,null,null,null,"."]
[null,null,null,null,null,null,null,null,null,null,null,null,{"$f":"IF(L844=\"\",\" \",LOOKUP(L844,FLOTA!A:A,FLOTA!B:B))","v":" "},"",{"$f":"IF(N844=\"\",\" \",LOOKUP(N844,FLOTA!A:A,FLOTA!H:H))","v":" "},null,null,null,null,"."]
[null,null,null,null,null,null,null,null,null,null,null,null,{"$f":"IF(L845=\"\",\" \",LOOKUP(L845,FLOTA!A:A,FLOTA!B:B))","v":" "},"",{"$f":"IF(N845=\"\",\" \",LOOKUP(N845,FLOTA!A:A,FLOTA!H:H))","v":" "},null,null,null,null,"."]
[null,null,null,null,null,null,null,null,null,null,null,null,{"$f":"IF(L846=\"\",\" \",LOOKUP(L846,FLOTA!A:A,FLOTA!B:B))","v":" "},"",{"$f":"IF(N846=\"\",\" \",LOOKUP(N846,FLOTA!A:A,FLOTA!H:H))","v":" "},null,null,null,null,"."]
[null,null,null,null,null,null,null,null,null,null,null,null,{"$f":"IF(L847=\"\",\" \",LOOKUP(L847,FLOTA!A:A,FLOTA!B:B))","v":" "},"",{"$f":"IF(N847=\"\",\" \",LOOKUP(N847,FLOTA!A:A,FLOTA!H:H))","v":" "},null,null,null,null,"."]
[null,null,null,null,null,null,null,null,null,null,null,null,{"$f":"IF(L848=\"\",\" \",LOOKUP(L848,FLOTA!A:A,FLOTA!B:B))","v":" "},"",{"$f":"IF(N848=\"\",\" \",LOOKUP(N848,FLOTA!A:A,FLOTA!H:H))","v":" "},null,null,null,null,"."]
[null,null,null,null,null,null,null,null,null,null,null,null,{"$f":"IF(L849=\"\",\" \",LOOKUP(L849,FLOTA!A:A,FLOTA!B:B))","v":" "},"",{"$f":"IF(N849=\"\",\" \",LOOKUP(N849,FLOTA!A:A,FLOTA!H:H))","v":" "},null,null,null,null,"."]
[null,null,null,null,null,null,null,null,null,null,null,null,{"$f":"IF(L850=\"\",\" \",LOOKUP(L850,FLOTA!A:A,FLOTA!B:B))","v":" "},"",{"$f":"IF(N850=\"\",\" \",LOOKUP(N850,FLOTA!A:A,FLOTA!H:H))","v":" "},null,null,null,null,"."]
[null,null,null,null,null,null,null,null,null,null,null,null,{"$f":"IF(L851=\"\",\" \",LOOKUP(L851,FLOTA!A:A,FLOTA!B:B))","v":" "},"",{"$f":"IF(N851=\"\",\" \",LOOKUP(N851,FLOTA!A:A,FLOTA!H:H))","v":" "},null,null,null,null,"."]
[null,null,null,null,null,null,null,null,null,null,null,null,{"$f":"IF(L852=\"\",\" \",LOOKUP(L852,FLOTA!A:A,FLOTA!B:B))","v":" "},"",{"$f":"IF(N852=\"\",\" \",LOOKUP(N852,FLOTA!A:A,FLOTA!H:H))","v":" "},null,null,null,null,"."]
[null,null,null,null,null,null,null,null,null,null,null,null,{"$f":"IF(L853=\"\",\" \",LOOKUP(L853,FLOTA!A:A,FLOTA!B:B))","v":" "},"",{"$f":"IF(N853=\"\",\" \",LOOKUP(N853,FLOTA!A:A,FLOTA!H:H))","v":" "},null,null,null,null,"."]
[null,null,null,null,null,null,null,null,null,null,null,null,{"$f":"IF(L854=\"\",\" \",LOOKUP(L854,FLOTA!A:A,FLOTA!B:B))","v":" "},"",{"$f":"IF(N854=\"\",\" \",LOOKUP(N854,FLOTA!A:A,FLOTA!H:H))","v":" "},null,null,null,null,"."]
[null,null,null,null,null,null,null,null,null,null,null,null,{"$f":"IF(L855=\"\",\" \",LOOKUP(L855,FLOTA!A:A,FLOTA!B:B))","v":" "},"",{"$f":"IF(N855=\"\",\" \",LOOKUP(N855,FLOTA!A:A,FLOTA!H:H))","v":" "},null,null,null,null,"."]
[null,null,null,null,null,null,null,null,null,null,null,null,{"$f":"IF(L856=\"\",\" \",LOOKUP(L856,FLOTA!A:A,FLOTA!B:B))","v":" "},"",{"$f":"IF(N856=\"\",\" \",LOOKUP(N856,FLOTA!A:A,FLOTA!H:H))","v":" "},null,null,null,null,"."]
[null,null,null,null,null,null,null,null,null,null,null,null,{"$f":"IF(L857=\"\",\" \",LOOKUP(L857,FLOTA!A:A,FLOTA!B:B))","v":" "},"",{"$f":"IF(N857=\"\",\" \",LOOKUP(N857,FLOTA!A:A,FLOTA!H:H))","v":" "},null,null,null,null,"."]
[null,null,null,null,null,null,null,null,null,null,null,null,{"$f":"IF(L858=\"\",\" \",LOOKUP(L858,FLOTA!A:A,FLOTA!B:B))","v":" "},"",{"$f":"IF(N858=\"\",\" \",LOOKUP(N858,FLOTA!A:A,FLOTA!H:H))","v":" "},null,null,null,null,"."]
[null,null,null,null,null,null,null,null,null,null,null,null,{"$f":"IF(L859=\"\",\" \",LOOKUP(L859,FLOTA!A:A,FLOTA!B:B))","v":" "},"",{"$f":"IF(N859=\"\",\" \",LOOKUP(N859,FLOTA!A:A,FLOTA!H:H))","v":" "},null,null,null,null,"."]
[null,null,null,null,null,null,null,null,null,null,null,null,{"$f":"IF(L860=\"\",\" \",LOOKUP(L860,FLOTA!A:A,FLOTA!B:B))","v":" "},"",{"$f":"IF(N860=\"\",\" \",LOOKUP(N860,FLOTA!A:A,FLOTA!H:H))","v":" "},null,null,null,null,"."]
[null,null,null,null,null,null,null,null,null,null,null,null,{"$f":"IF(L861=\"\",\" \",LOOKUP(L861,FLOTA!A:A,FLOTA!B:B))","v":" "},"",{"$f":"IF(N861=\"\",\" \",LOOKUP(N861,FLOTA!A:A,FLOTA!H:H))","v":" "},null,null,null,null,"."]
[null,null,null,null,null,null,null,null,null,null,null,null,{"$f":"IF(L862=\"\",\" \",LOOKUP(L862,FLOTA!A:A,FLOTA!B:B))","v":" "},"",{"$f":"IF(N862=\"\",\" \",LOOKUP(N862,FLOTA!A:A,FLOTA!H:H))","v":" "},null,null,null,null,"."]
[null,null,null,null,null,null,null,null,null,null,null,null,{"$f":"IF(L863=\"\",\" \",LOOKUP(L863,FLOTA!A:A,FLOTA!B:B))","v":" "},"",{"$f":"IF(N863=\"\",\" \",LOOKUP(N863,FLOTA!A:A,FLOTA!H:H))","v":" "},null,null,null,null,"."]
[null,null,null,null,null,null,null,null,null,null,null,null,{"$f":"IF(L864=\"\",\" \",LOOKUP(L864,FLOTA!A:A,FLOTA!B:B))","v":" "},"",{"$f":"IF(N864=\"\",\" \",LOOKUP(N864,FLOTA!A:A,FLOTA!H:H))","v":" "},null,null,null,null,"."]
[null,null,null,null,null,null,null,null,null,null,null,null,{"$f":"IF(L865=\"\",\" \",LOOKUP(L865,FLOTA!A:A,FLOTA!B:B))","v":" "},"",{"$f":"IF(N865=\"\",\" \",LOOKUP(N865,FLOTA!A:A,FLOTA!H:H))","v":" "},null,null,null,null,"."]
[null,null,null,null,null,null,null,null,null,null,null,null,{"$f":"IF(L866=\"\",\" \",LOOKUP(L866,FLOTA!A:A,FLOTA!B:B))","v":" "},"",{"$f":"IF(N866=\"\",\" \",LOOKUP(N866,FLOTA!A:A,FLOTA!H:H))","v":" "},null,null,null,null,"."]
[null,null,null,null,null,null,null,null,null,null,null,null,{"$f":"IF(L867=\"\",\" \",LOOKUP(L867,FLOTA!A:A,FLOTA!B:B))","v":" "},"",{"$f":"IF(N867=\"\",\" \",LOOKUP(N867,FLOTA!A:A,FLOTA!H:H))","v":" "},null,null,null,null,"."]
[null,null,null,null,null,null,null,null,null,null,null,null,{"$f":"IF(L868=\"\",\" \",LOOKUP(L868,FLOTA!A:A,FLOTA!B:B))","v":" "},"",{"$f":"IF(N868=\"\",\" \",LOOKUP(N868,FLOTA!A:A,FLOTA!H:H))","v":" "},null,null,null,null,"."]
[null,null,null,null,null,null,null,null,null,null,null,null,{"$f":"IF(L869=\"\",\" \",LOOKUP(L869,FLOTA!A:A,FLOTA!B:B))","v":" "},"",{"$f":"IF(N869=\"\",\" \",LOOKUP(N869,FLOTA!A:A,FLOTA!H:H))","v":" "},null,null,null,null,"."]
[null,null,null,null,null,null,null,null,null,null,null,null,{"$f":"IF(L870=\"\",\" \",LOOKUP(L870,FLOTA!A:A,FLOTA!B:B))","v":" "},"",{"$f":"IF(N870=\"\",\" \",LOOKUP(N870,FLOTA!A:A,FLOTA!H:H))","v":" "},null,null,null,null,"."]
[null,null,null,null,null,null,null,null,null,null,null,null,{"$f":"IF(L871=\"\",\" \",LOOKUP(L871,FLOTA!A:A,FLOTA!B:B))","v":" "},"",{"$f":"IF(N871=\"\",\" \",LOOKUP(N871,FLOTA!A:A,FLOTA!H:H))","v":" "},null,null,null,null,"."]
[null,null,null,null,null,null,null,null,null,null,null,null,{"$f":"IF(L872=\"\",\" \",LOOKUP(L872,FLOTA!A:A,FLOTA!B:B))","v":" "},"",{"$f":"IF(N872=\"\",\" \",LOOKUP(N872,FLOTA!A:A,FLOTA!H:H))","v":" "},null,null,null,null,"."]
[null,null,null,null,null,null,null,null,null,null,null,null,{"$f":"IF(L873=\"\",\" \",LOOKUP(L873,FLOTA!A:A,FLOTA!B:B))","v":" "},"",{"$f":"IF(N873=\"\",\" \",LOOKUP(N873,FLOTA!A:A,FLOTA!H:H))","v":" "},null,null,null,null,"."]
[null,null,null,null,null,null,null,null,null,null,null,null,{"$f":"IF(L874=\"\",\" \",LOOKUP(L874,FLOTA!A:A,FLOTA!B:B))","v":" "},"",{"$f":"IF(N874=\"\",\" \",LOOKUP(N874,FLOTA!A:A,FLOTA!H:H))","v":" "},null,null,null,null,"."]
[null,null,null,null,null,null,null,null,null,null,null,null,{"$f":"IF(L875=\"\",\" \",LOOKUP(L875,FLOTA!A:A,FLOTA!B:B))","v":" "},"",{"$f":"IF(N875=\"\",\" \",LOOKUP(N875,FLOTA!A:A,FLOTA!H:H))","v":" "},null,null,null,null,"."]
[null,null,null,null,null,null,null,null,null,null,null,null,{"$f":"IF(L876=\"\",\" \",LOOKUP(L876,FLOTA!A:A,FLOTA!B:B))","v":" "},"",{"$f":"IF(N876=\"\",\" \",LOOKUP(N876,FLOTA!A:A,FLOTA!H:H))","v":" "},null,null,null,null,"."]
[null,null,null,null,null,null,null,null,null,null,null,null,{"$f":"IF(L877=\"\",\" \",LOOKUP(L877,FLOTA!A:A,FLOTA!B:B))","v":" "},"",{"$f":"IF(N877=\"\",\" \",LOOKUP(N877,FLOTA!A:A,FLOTA!H:H))","v":" "},null,null,null,null,"."]
[null,null,null,null,null,null,null,null,null,null,null,null,{"$f":"IF(L878=\"\",\" \",LOOKUP(L878,FLOTA!A:A,FLOTA!B:B))","v":" "},"",{"$f":"IF(N878=\"\",\" \",LOOKUP(N878,FLOTA!A:A,FLOTA!H:H))","v":" "},null,null,null,null,"."]
[null,null,null,null,null,null,null,null,null,null,null,null,{"$f":"IF(L879=\"\",\" \",LOOKUP(L879,FLOTA!A:A,FLOTA!B:B))","v":" "},"",{"$f":"IF(N879=\"\",\" \",LOOKUP(N879,FLOTA!A:A,FLOTA!H:H))","v":" "},null,null,null,null,"."]
[null,null,null,null,null,null,null,null,null,null,null,null,{"$f":"IF(L880=\"\",\" \",LOOKUP(L880,FLOTA!A:A,FLOTA!B:B))","v":" "},"",{"$f":"IF(N880=\"\",\" \",LOOKUP(N880,FLOTA!A:A,FLOTA!H:H))","v":" "},null,null,null,null,"."]
[null,null,null,null,null,null,null,null,null,null,null,null,{"$f":"IF(L881=\"\",\" \",LOOKUP(L881,FLOTA!A:A,FLOTA!B:B))","v":" "},"",{"$f":"IF(N881=\"\",\" \",LOOKUP(N881,FLOTA!A:A,FLOTA!H:H))","v":" "},null,null,null,null,"."]
[null,null,null,null,null,null,null,null,null,null,null,null,{"$f":"IF(L882=\"\",\" \",LOOKUP(L882,FLOTA!A:A,FLOTA!B:B))","v":" "},"",{"$f":"IF(N882=\"\",\" \",LOOKUP(N882,FLOTA!A:A,FLOTA!H:H))","v":" "},null,null,null,null,"."]
[null,null,null,null,null,null,null,null,null,null,null,null,{"$f":"IF(L883=\"\",\" \",LOOKUP(L883,FLOTA!A:A,FLOTA!B:B))","v":" "},"",{"$f":"IF(N883=\"\",\" \",LOOKUP(N883,FLOTA!A:A,FLOTA!H:H))","v":" "},null,null,null,null,"."]
[null,null,null,null,null,null,null,null,null,null,null,null,{"$f":"IF(L884=\"\",\" \",LOOKUP(L884,FLOTA!A:A,FLOTA!B:B))","v":" "},"",{"$f":"IF(N884=\"\",\" \",LOOKUP(N884,FLOTA!A:A,FLOTA!H:H))","v":" "},null,null,null,null,"."]
[null,null,null,null,null,null,null,null,null,null,null,null,{"$f":"IF(L885=\"\",\" \",LOOKUP(L885,FLOTA!A:A,FLOTA!B:B))","v":" "},"",{"$f":"IF(N885=\"\",\" \",LOOKUP(N885,FLOTA!A:A,FLOTA!H:H))","v":" "},null,null,null,null,"."]
[null,null,null,null,null,null,null,null,null,null,null,null,{"$f":"IF(L886=\"\",\" \",LOOKUP(L886,FLOTA!A:A,FLOTA!B:B))","v":" "},"",{"$f":"IF(N886=\"\",\" \",LOOKUP(N886,FLOTA!A:A,FLOTA!H:H))","v":" "},null,null,null,null,"."]
[null,null,null,null,null,null,null,null,null,null,null,null,{"$f":"IF(L887=\"\",\" \",LOOKUP(L887,FLOTA!A:A,FLOTA!B:B))","v":" "},"",{"$f":"IF(N887=\"\",\" \",LOOKUP(N887,FLOTA!A:A,FLOTA!H:H))","v":" "},null,null,null,null,"."]
[null,null,null,null,null,null,null,null,null,null,null,null,{"$f":"IF(L888=\"\",\" \",LOOKUP(L888,FLOTA!A:A,FLOTA!B:B))","v":" "},"",{"$f":"IF(N888=\"\",\" \",LOOKUP(N888,FLOTA!A:A,FLOTA!H:H))","v":" "},null,null,null,null,"."]
[null,null,null,null,null,null,null,null,null,null,null,null,{"$f":"IF(L889=\"\",\" \",LOOKUP(L889,FLOTA!A:A,FLOTA!B:B))","v":" "},"",{"$f":"IF(N889=\"\",\" \",LOOKUP(N889,FLOTA!A:A,FLOTA!H:H))","v":" "},null,null,null,null,"."]
[null,null,null,null,null,null,null,null,null,null,null,null,{"$f":"IF(L890=\"\",\" \",LOOKUP(L890,FLOTA!A:A,FLOTA!B:B))","v":" "},"",{"$f":"IF(N890=\"\",\" \",LOOKUP(N890,FLOTA!A:A,FLOTA!H:H))","v":" "},null,null,null,null,"."]
[null,null,null,null,null,null,null,null,null,null,null,null,{"$f":"IF(L891=\"\",\" \",LOOKUP(L891,FLOTA!A:A,FLOTA!B:B))","v":" "},"",{"$f":"IF(N891=\"\",\" \",LOOKUP(N891,FLOTA!A:A,FLOTA!H:H))","v":" "},null,null,null,null,"."]
[null,null,null,null,null,null,null,null,null,null,null,null,{"$f":"IF(L892=\"\",\" \",LOOKUP(L892,FLOTA!A:A,FLOTA!B:B))","v":" "},"",{"$f":"IF(N892=\"\",\" \",LOOKUP(N892,FLOTA!A:A,FLOTA!H:H))","v":" "},null,null,null,null,"."]
[null,null,null,null,null,null,null,null,null,null,null,null,{"$f":"IF(L893=\"\",\" \",LOOKUP(L893,FLOTA!A:A,FLOTA!B:B))","v":" "},"",{"$f":"IF(N893=\"\",\" \",LOOKUP(N893,FLOTA!A:A,FLOTA!H:H))","v":" "},null,null,null,null,"."]
[null,null,null,null,null,null,null,null,null,null,null,null,{"$f":"IF(L894=\"\",\" \",LOOKUP(L894,FLOTA!A:A,FLOTA!B:B))","v":" "},"",{"$f":"IF(N894=\"\",\" \",LOOKUP(N894,FLOTA!A:A,FLOTA!H:H))","v":" "},null,null,null,null,"."]
[null,null,null,null,null,null,null,null,null,null,null,null,{"$f":"IF(L895=\"\",\" \",LOOKUP(L895,FLOTA!A:A,FLOTA!B:B))","v":" "},"",{"$f":"IF(N895=\"\",\" \",LOOKUP(N895,FLOTA!A:A,FLOTA!H:H))","v":" "},null,null,null,null,"."]
[null,null,null,null,null,null,null,null,null,null,null,null,{"$f":"IF(L896=\"\",\" \",LOOKUP(L896,FLOTA!A:A,FLOTA!B:B))","v":" "},"",{"$f":"IF(N896=\"\",\" \",LOOKUP(N896,FLOTA!A:A,FLOTA!H:H))","v":" "},null,null,null,null,"."]
[null,null,null,null,null,null,null,null,null,null,null,null,{"$f":"IF(L897=\"\",\" \",LOOKUP(L897,FLOTA!A:A,FLOTA!B:B))","v":" "},{"$f":"IF(L897=\"\",\"\",L897)","v":""},{"$f":"IF(N897=\"\",\" \",LOOKUP(N897,FLOTA!A:A,FLOTA!H:H))","v":" "},null,null,null,null,"."]
[null,null,null,null,null,null,null,null,null,null,null,null,{"$f":"IF(L898=\"\",\" \",LOOKUP(L898,FLOTA!A:A,FLOTA!B:B))","v":" "},"",{"$f":"IF(N898=\"\",\" \",LOOKUP(N898,FLOTA!A:A,FLOTA!H:H))","v":" "},null,null,null,null,"."]
[null,null,null,null,null,null,null,null,null,null,null,null,{"$f":"IF(L899=\"\",\" \",LOOKUP(L899,FLOTA!A:A,FLOTA!B:B))","v":" "},"",{"$f":"IF(N899=\"\",\" \",LOOKUP(N899,FLOTA!A:A,FLOTA!H:H))","v":" "},null,null,null,null,"."]
[null,null,null,null,null,null,null,null,null,null,null,null,{"$f":"IF(L900=\"\",\" \",LOOKUP(L900,FLOTA!A:A,FLOTA!B:B))","v":" "},"",{"$f":"IF(N900=\"\",\" \",LOOKUP(N900,FLOTA!A:A,FLOTA!H:H))","v":" "},null,null,null,null,"."]
[null,null,null,null,null,null,null,null,null,null,null,null,{"$f":"IF(L901=\"\",\" \",LOOKUP(L901,FLOTA!A:A,FLOTA!B:B))","v":" "},"",{"$f":"IF(N901=\"\",\" \",LOOKUP(N901,FLOTA!A:A,FLOTA!H:H))","v":" "},null,null,null,null,"."]
[null,null,null,null,null,null,null,null,null,null,null,null,{"$f":"IF(L902=\"\",\" \",LOOKUP(L902,FLOTA!A:A,FLOTA!B:B))","v":" "},"",{"$f":"IF(N902=\"\",\" \",LOOKUP(N902,FLOTA!A:A,FLOTA!H:H))","v":" "},null,null,null,null,"."]
[null,null,null,null,null,null,null,null,null,null,null,null,{"$f":"IF(L903=\"\",\" \",LOOKUP(L903,FLOTA!A:A,FLOTA!B:B))","v":" "},"",{"$f":"IF(N903=\"\",\" \",LOOKUP(N903,FLOTA!A:A,FLOTA!H:H))","v":" "},null,null,null,null,"."]
[null,null,null,null,null,null,null,null,null,null,null,null,{"$f":"IF(L904=\"\",\" \",LOOKUP(L904,FLOTA!A:A,FLOTA!B:B))","v":" "},"",{"$f":"IF(N904=\"\",\" \",LOOKUP(N904,FLOTA!A:A,FLOTA!H:H))","v":" "},null,null,null,null,"."]
[null,null,null,null,null,null,null,null,null,null,null,null,{"$f":"IF(L905=\"\",\" \",LOOKUP(L905,FLOTA!A:A,FLOTA!B:B))","v":" "},"",{"$f":"IF(N905=\"\",\" \",LOOKUP(N905,FLOTA!A:A,FLOTA!H:H))","v":" "},null,null,null,null,"."]
[null,null,null,null,null,null,null,null,null,null,null,null,{"$f":"IF(L906=\"\",\" \",LOOKUP(L906,FLOTA!A:A,FLOTA!B:B))","v":" "},"",{"$f":"IF(N906=\"\",\" \",LOOKUP(N906,FLOTA!A:A,FLOTA!H:H))","v":" "},null,null,null,null,"."]
[null,null,null,null,null,null,null,null,null,null,null,null,{"$f":"IF(L907=\"\",\" \",LOOKUP(L907,FLOTA!A:A,FLOTA!B:B))","v":" "},"",{"$f":"IF(N907=\"\",\" \",LOOKUP(N907,FLOTA!A:A,FLOTA!H:H))","v":" "},null,null,null,null,"."]
[null,null,null,null,null,null,null,null,null,null,null,null,{"$f":"IF(L908=\"\",\" \",LOOKUP(L908,FLOTA!A:A,FLOTA!B:B))","v":" "},"",{"$f":"IF(N908=\"\",\" \",LOOKUP(N908,FLOTA!A:A,FLOTA!H:H))","v":" "},null,null,null,null,"."]
[null,null,null,null,null,null,null,null,null,null,null,null,{"$f":"IF(L909=\"\",\" \",LOOKUP(L909,FLOTA!A:A,FLOTA!B:B))","v":" "},"",{"$f":"IF(N909=\"\",\" \",LOOKUP(N909,FLOTA!A:A,FLOTA!H:H))","v":" "},null,null,null,null,"."]
[null,null,null,null,null,null,null,null,null,null,null,null,{"$f":"IF(L910=\"\",\" \",LOOKUP(L910,FLOTA!A:A,FLOTA!B:B))","v":" "},"",{"$f":"IF(N910=\"\",\" \",LOOKUP(N910,FLOTA!A:A,FLOTA!H:H))","v":" "},null,null,null,null,"."]
[null,null,null,null,null,null,null,null,null,null,null,null,{"$f":"IF(L911=\"\",\" \",LOOKUP(L911,FLOTA!A:A,FLOTA!B:B))","v":" "},"",{"$f":"IF(N911=\"\",\" \",LOOKUP(N911,FLOTA!A:A,FLOTA!H:H))","v":" "},null,null,null,null,"."]
[null,null,null,null,null,null,null,null,null,null,null,null,{"$f":"IF(L912=\"\",\" \",LOOKUP(L912,FLOTA!A:A,FLOTA!B:B))","v":" "},"",{"$f":"IF(N912=\"\",\" \",LOOKUP(N912,FLOTA!A:A,FLOTA!H:H))","v":" "},null,null,null,null,"."]
[null,null,null,null,null,null,null,null,null,null,null,null,{"$f":"IF(L913=\"\",\" \",LOOKUP(L913,FLOTA!A:A,FLOTA!B:B))","v":" "},"",{"$f":"IF(N913=\"\",\" \",LOOKUP(N913,FLOTA!A:A,FLOTA!H:H))","v":" "},null,null,null,null,"."]
[null,null,null,null,null,null,null,null,null,null,null,null,{"$f":"IF(L914=\"\",\" \",LOOKUP(L914,FLOTA!A:A,FLOTA!B:B))","v":" "},"",{"$f":"IF(N914=\"\",\" \",LOOKUP(N914,FLOTA!A:A,FLOTA!H:H))","v":" "},null,null,null,null,"."]
[null,null,null,null,null,null,null,null,null,null,null,null,{"$f":"IF(L915=\"\",\" \",LOOKUP(L915,FLOTA!A:A,FLOTA!B:B))","v":" "},"",{"$f":"IF(N915=\"\",\" \",LOOKUP(N915,FLOTA!A:A,FLOTA!H:H))","v":" "},null,null,null,null,"."]
[null,null,null,null,null,null,null,null,null,null,null,null,{"$f":"IF(L916=\"\",\" \",LOOKUP(L916,FLOTA!A:A,FLOTA!B:B))","v":" "},"",{"$f":"IF(N916=\"\",\" \",LOOKUP(N916,FLOTA!A:A,FLOTA!H:H))","v":" "},null,null,null,null,"."]
[null,null,null,null,null,null,null,null,null,null,null,null,{"$f":"IF(L917=\"\",\" \",LOOKUP(L917,FLOTA!A:A,FLOTA!B:B))","v":" "},"",{"$f":"IF(N917=\"\",\" \",LOOKUP(N917,FLOTA!A:A,FLOTA!H:H))","v":" "},null,null,null,null,"."]
[null,null,null,null,null,null,null,null,null,null,null,null,{"$f":"IF(L918=\"\",\" \",LOOKUP(L918,FLOTA!A:A,FLOTA!B:B))","v":" "},"",{"$f":"IF(N918=\"\",\" \",LOOKUP(N918,FLOTA!A:A,FLOTA!H:H))","v":" "},null,null,null,null,"."]
[null,null,null,null,null,null,null,null,null,null,null,null,{"$f":"IF(L919=\"\",\" \",LOOKUP(L919,FLOTA!A:A,FLOTA!B:B))","v":" "},"",{"$f":"IF(N919=\"\",\" \",LOOKUP(N919,FLOTA!A:A,FLOTA!H:H))","v":" "},null,null,null,null,"."]
[null,null,null,null,null,null,null,null,null,null,null,null,{"$f":"IF(L920=\"\",\" \",LOOKUP(L920,FLOTA!A:A,FLOTA!B:B))","v":" "},"",{"$f":"IF(N920=\"\",\" \",LOOKUP(N920,FLOTA!A:A,FLOTA!H:H))","v":" "},null,null,null,null,"."]
[null,null,null,null,null,null,null,null,null,null,null,null,{"$f":"IF(L921=\"\",\" \",LOOKUP(L921,FLOTA!A:A,FLOTA!B:B))","v":" "},"",{"$f":"IF(N921=\"\",\" \",LOOKUP(N921,FLOTA!A:A,FLOTA!H:H))","v":" "},null,null,null,null,"."]
[null,null,null,null,null,null,null,null,null,null,null,null,{"$f":"IF(L922=\"\",\" \",LOOKUP(L922,FLOTA!A:A,FLOTA!B:B))","v":" "},"",{"$f":"IF(N922=\"\",\" \",LOOKUP(N922,FLOTA!A:A,FLOTA!H:H))","v":" "}]
[null,null,null,null,null,null,null,null,null,null,null,null,{"$f":"IF(L923=\"\",\" \",LOOKUP(L923,FLOTA!A:A,FLOTA!B:B))","v":" "},"",{"$f":"IF(N923=\"\",\" \",LOOKUP(N923,FLOTA!A:A,FLOTA!H:H))","v":" "}]
[null,null,null,null,null,null,null,null,null,null,null,null,{"$f":"IF(L924=\"\",\" \",LOOKUP(L924,FLOTA!A:A,FLOTA!B:B))","v":" "},"",{"$f":"IF(N924=\"\",\" \",LOOKUP(N924,FLOTA!A:A,FLOTA!H:H))","v":" "}]
[null,null,null,null,null,null,null,null,null,null,null,null,{"$f":"IF(L925=\"\",\" \",LOOKUP(L925,FLOTA!A:A,FLOTA!B:B))","v":" "},"",{"$f":"IF(N925=\"\",\" \",LOOKUP(N925,FLOTA!A:A,FLOTA!H:H))","v":" "}]
[null,null,null,null,null,null,null,null,null,null,null,null,{"$f":"IF(L926=\"\",\" \",LOOKUP(L926,FLOTA!A:A,FLOTA!B:B))","v":" "},"",{"$f":"IF(N926=\"\",\" \",LOOKUP(N926,FLOTA!A:A,FLOTA!H:H))","v":" "}]
[null,null,null,null,null,null,null,null,null,null,null,null,{"$f":"IF(L927=\"\",\" \",LOOKUP(L927,FLOTA!A:A,FLOTA!B:B))","v":" "},"",{"$f":"IF(N927=\"\",\" \",LOOKUP(N927,FLOTA!A:A,FLOTA!H:H))","v":" "}]
[null,null,null,null,null,null,null,null,null,null,null,null,{"$f":"IF(L928=\"\",\" \",LOOKUP(L928,FLOTA!A:A,FLOTA!B:B))","v":" "},"",{"$f":"IF(N928=\"\",\" \",LOOKUP(N928,FLOTA!A:A,FLOTA!H:H))","v":" "}]
[null,null,null,null,null,null,null,null,null,null,null,null,{"$f":"IF(L929=\"\",\" \",LOOKUP(L929,FLOTA!A:A,FLOTA!B:B))","v":" "},"",{"$f":"IF(N929=\"\",\" \",LOOKUP(N929,FLOTA!A:A,FLOTA!H:H))","v":" "}]
[null,null,null,null,null,null,null,null,null,null,null,null,{"$f":"IF(L930=\"\",\" \",LOOKUP(L930,FLOTA!A:A,FLOTA!B:B))","v":" "},"",{"$f":"IF(N930=\"\",\" \",LOOKUP(N930,FLOTA!A:A,FLOTA!H:H))","v":" "}]
[null,null,null,null,null,null,null,null,null,null,null,null,{"$f":"IF(L931=\"\",\" \",LOOKUP(L931,FLOTA!A:A,FLOTA!B:B))","v":" "},"",{"$f":"IF(N931=\"\",\" \",LOOKUP(N931,FLOTA!A:A,FLOTA!H:H))","v":" "}]
[null,null,null,null,null,null,null,null,null,null,null,null,{"$f":"IF(L932=\"\",\" \",LOOKUP(L932,FLOTA!A:A,FLOTA!B:B))","v":" "},"",{"$f":"IF(N932=\"\",\" \",LOOKUP(N932,FLOTA!A:A,FLOTA!H:H))","v":" "}]
[null,null,null,null,null,null,null,null,null,null,null,null,{"$f":"IF(L933=\"\",\" \",LOOKUP(L933,FLOTA!A:A,FLOTA!B:B))","v":" "},"",{"$f":"IF(N933=\"\",\" \",LOOKUP(N933,FLOTA!A:A,FLOTA!H:H))","v":" "}]
[null,null,null,null,null,null,null,null,null,null,null,null,{"$f":"IF(L934=\"\",\" \",LOOKUP(L934,FLOTA!A:A,FLOTA!B:B))","v":" "},"",{"$f":"IF(N934=\"\",\" \",LOOKUP(N934,FLOTA!A:A,FLOTA!H:H))","v":" "}]
[null,null,null,null,null,null,null,null,null,null,null,null,{"$f":"IF(L935=\"\",\" \",LOOKUP(L935,FLOTA!A:A,FLOTA!B:B))","v":" "},"",{"$f":"IF(N935=\"\",\" \",LOOKUP(N935,FLOTA!A:A,FLOTA!H:H))","v":" "}]
[null,null,null,null,null,null,null,null,null,null,null,null,{"$f":"IF(L936=\"\",\" \",LOOKUP(L936,FLOTA!A:A,FLOTA!B:B))","v":" "},"",{"$f":"IF(N936=\"\",\" \",LOOKUP(N936,FLOTA!A:A,FLOTA!H:H))","v":" "}]
[null,null,null,null,null,null,null,null,null,null,null,null,{"$f":"IF(L937=\"\",\" \",LOOKUP(L937,FLOTA!A:A,FLOTA!B:B))","v":" "},"",{"$f":"IF(N937=\"\",\" \",LOOKUP(N937,FLOTA!A:A,FLOTA!H:H))","v":" "}]
[null,null,null,null,null,null,null,null,null,null,null,null,{"$f":"IF(L938=\"\",\" \",LOOKUP(L938,FLOTA!A:A,FLOTA!B:B))","v":" "},"",{"$f":"IF(N938=\"\",\" \",LOOKUP(N938,FLOTA!A:A,FLOTA!H:H))","v":" "}]
[null,null,null,null,null,null,null,null,null,null,null,null,{"$f":"IF(L939=\"\",\" \",LOOKUP(L939,FLOTA!A:A,FLOTA!B:B))","v":" "},"",{"$f":"IF(N939=\"\",\" \",LOOKUP(N939,FLOTA!A:A,FLOTA!H:H))","v":" "}]
[null,null,null,null,null,null,null,null,null,null,null,null,{"$f":"IF(L940=\"\",\" \",LOOKUP(L940,FLOTA!A:A,FLOTA!B:B))","v":" "},"",{"$f":"IF(N940=\"\",\" \",LOOKUP(N940,FLOTA!A:A,FLOTA!H:H))","v":" "}]
[null,null,null,null,null,null,null,null,null,null,null,null,{"$f":"IF(L941=\"\",\" \",LOOKUP(L941,FLOTA!A:A,FLOTA!B:B))","v":" "},"",{"$f":"IF(N941=\"\",\" \",LOOKUP(N941,FLOTA!A:A,FLOTA!H:H))","v":" "}]
[null,null,null,null,null,null,null,null,null,null,null,null,{"$f":"IF(L942=\"\",\" \",LOOKUP(L942,FLOTA!A:A,FLOTA!B:B))","v":" "},"",{"$f":"IF(N942=\"\",\" \",LOOKUP(N942,FLOTA!A:A,FLOTA!H:H))","v":" "}]
[null,null,null,null,null,null,null,null,null,null,null,null,{"$f":"IF(L943=\"\",\" \",LOOKUP(L943,FLOTA!A:A,FLOTA!B:B))","v":" "},"",{"$f":"IF(N943=\"\",\" \",LOOKUP(N943,FLOTA!A:A,FLOTA!H:H))","v":" "}]
[null,null,null,null,null,null,null,null,null,null,null,null,{"$f":"IF(L944=\"\",\" \",LOOKUP(L944,FLOTA!A:A,FLOTA!B:B))","v":" "},"",{"$f":"IF(N944=\"\",\" \",LOOKUP(N944,FLOTA!A:A,FLOTA!H:H))","v":" "}]
[null,null,null,null,null,null,null,null,null,null,null,null,{"$f":"IF(L945=\"\",\" \",LOOKUP(L945,FLOTA!A:A,FLOTA!B:B))","v":" "},"",{"$f":"IF(N945=\"\",\" \",LOOKUP(N945,FLOTA!A:A,FLOTA!H:H))","v":" "}]
[null,null,null,null,null,null,null,null,null,null,null,null,{"$f":"IF(L946=\"\",\" \",LOOKUP(L946,FLOTA!A:A,FLOTA!B:B))","v":" "},"",{"$f":"IF(N946=\"\",\" \",LOOKUP(N946,FLOTA!A:A,FLOTA!H:H))","v":" "}]
[null,null,null,null,null,null,null,null,null,null,null,null,{"$f":"IF(L947=\"\",\" \",LOOKUP(L947,FLOTA!A:A,FLOTA!B:B))","v":" "},"",{"$f":"IF(N947=\"\",\" \",LOOKUP(N947,FLOTA!A:A,FLOTA!H:H))","v":" "}]
[null,null,null,null,null,null,null,null,null,null,null,null,{"$f":"IF(L948=\"\",\" \",LOOKUP(L948,FLOTA!A:A,FLOTA!B:B))","v":" "},"",{"$f":"IF(N948=\"\",\" \",LOOKUP(N948,FLOTA!A:A,FLOTA!H:H))","v":" "}]
[null,null,null,null,null,null,null,null,null,null,null,null,{"$f":"IF(L949=\"\",\" \",LOOKUP(L949,FLOTA!A:A,FLOTA!B:B))","v":" "},"",{"$f":"IF(N949=\"\",\" \",LOOKUP(N949,FLOTA!A:A,FLOTA!H:H))","v":" "}]
[null,null,null,null,null,null,null,null,null,null,null,null,{"$f":"IF(L950=\"\",\" \",LOOKUP(L950,FLOTA!A:A,FLOTA!B:B))","v":" "},"",{"$f":"IF(N950=\"\",\" \",LOOKUP(N950,FLOTA!A:A,FLOTA!H:H))","v":" "}]
[null,null,null,null,null,null,null,null,null,null,null,null,{"$f":"IF(L951=\"\",\" \",LOOKUP(L951,FLOTA!A:A,FLOTA!B:B))","v":" "},"",{"$f":"IF(N951=\"\",\" \",LOOKUP(N951,FLOTA!A:A,FLOTA!H:H))","v":" "}]
[null,null,null,null,null,null,null,null,null,null,null,null,{"$f":"IF(L952=\"\",\" \",LOOKUP(L952,FLOTA!A:A,FLOTA!B:B))","v":" "},"",{"$f":"IF(N952=\"\",\" \",LOOKUP(N952,FLOTA!A:A,FLOTA!H:H))","v":" "}]
[null,null,null,null,null,null,null,null,null,null,null,null,{"$f":"IF(L953=\"\",\" \",LOOKUP(L953,FLOTA!A:A,FLOTA!B:B))","v":" "},"",{"$f":"IF(N953=\"\",\" \",LOOKUP(N953,FLOTA!A:A,FLOTA!H:H))","v":" "}]
[null,null,null,null,null,null,null,null,null,null,null,null,{"$f":"IF(L954=\"\",\" \",LOOKUP(L954,FLOTA!A:A,FLOTA!B:B))","v":" "},"",{"$f":"IF(N954=\"\",\" \",LOOKUP(N954,FLOTA!A:A,FLOTA!H:H))","v":" "}]
[null,null,null,null,null,null,null,null,null,null,null,null,{"$f":"IF(L955=\"\",\" \",LOOKUP(L955,FLOTA!A:A,FLOTA!B:B))","v":" "},"",{"$f":"IF(N955=\"\",\" \",LOOKUP(N955,FLOTA!A:A,FLOTA!H:H))","v":" "}]
[null,null,null,null,null,null,null,null,null,null,null,null,{"$f":"IF(L956=\"\",\" \",LOOKUP(L956,FLOTA!A:A,FLOTA!B:B))","v":" "},"",{"$f":"IF(N956=\"\",\" \",LOOKUP(N956,FLOTA!A:A,FLOTA!H:H))","v":" "}]
[null,null,null,null,null,null,null,null,null,null,null,null,{"$f":"IF(L957=\"\",\" \",LOOKUP(L957,FLOTA!A:A,FLOTA!B:B))","v":" "},"",{"$f":"IF(N957=\"\",\" \",LOOKUP(N957,FLOTA!A:A,FLOTA!H:H))","v":" "}]
[null,null,null,null,null,null,null,null,null,null,null,null,{"$f":"IF(L958=\"\",\" \",LOOKUP(L958,FLOTA!A:A,FLOTA!B:B))","v":" "},"",{"$f":"IF(N958=\"\",\" \",LOOKUP(N958,FLOTA!A:A,FLOTA!H:H))","v":" "}]
[null,null,null,null,null,null,null,null,null,null,null,null,{"$f":"IF(L959=\"\",\" \",LOOKUP(L959,FLOTA!A:A,FLOTA!B:B))","v":" "},"",{"$f":"IF(N959=\"\",\" \",LOOKUP(N959,FLOTA!A:A,FLOTA!H:H))","v":" "}]
[null,null,null,null,null,null,null,null,null,null,null,null,{"$f":"IF(L960=\"\",\" \",LOOKUP(L960,FLOTA!A:A,FLOTA!B:B))","v":" "},"",{"$f":"IF(N960=\"\",\" \",LOOKUP(N960,FLOTA!A:A,FLOTA!H:H))","v":" "}]
[null,null,null,null,null,null,null,null,null,null,null,null,{"$f":"IF(L961=\"\",\" \",LOOKUP(L961,FLOTA!A:A,FLOTA!B:B))","v":" "},{"$f":"IF(L961=\"\",\"\",L961)","v":""},{"$f":"IF(N961=\"\",\" \",LOOKUP(N961,FLOTA!A:A,FLOTA!H:H))","v":" "}]
[null,null,null,null,null,null,null,null,null,null,null,null,{"$f":"IF(L962=\"\",\" \",LOOKUP(L962,FLOTA!A:A,FLOTA!B:B))","v":" "},"",{"$f":"IF(N962=\"\",\" \",LOOKUP(N962,FLOTA!A:A,FLOTA!H:H))","v":" "}]
[null,null,null,null,null,null,null,null,null,null,null,null,{"$f":"IF(L963=\"\",\" \",LOOKUP(L963,FLOTA!A:A,FLOTA!B:B))","v":" "},"",{"$f":"IF(N963=\"\",\" \",LOOKUP(N963,FLOTA!A:A,FLOTA!H:H))","v":" "}]
[null,null,null,null,null,null,null,null,null,null,null,null,{"$f":"IF(L964=\"\",\" \",LOOKUP(L964,FLOTA!A:A,FLOTA!B:B))","v":" "},"",{"$f":"IF(N964=\"\",\" \",LOOKUP(N964,FLOTA!A:A,FLOTA!H:H))","v":" "}]
[null,null,null,null,null,null,null,null,null,null,null,null,{"$f":"IF(L965=\"\",\" \",LOOKUP(L965,FLOTA!A:A,FLOTA!B:B))","v":" "},"",{"$f":"IF(N965=\"\",\" \",LOOKUP(N965,FLOTA!A:A,FLOTA!H:H))","v":" "}]
[null,null,null,null,null,null,null,null,null,null,null,null,{"$f":"IF(L966=\"\",\" \",LOOKUP(L966,FLOTA!A:A,FLOTA!B:B))","v":" "},"",{"$f":"IF(N966=\"\",\" \",LOOKUP(N966,FLOTA!A:A,FLOTA!H:H))","v":" "}]
[null,null,null,null,null,null,null,null,null,null,null,null,{"$f":"IF(L967=\"\",\" \",LOOKUP(L967,FLOTA!A:A,FLOTA!B:B))","v":" "},"",{"$f":"IF(N967=\"\",\" \",LOOKUP(N967,FLOTA!A:A,FLOTA!H:H))","v":" "}]
[null,null,null,null,null,null,null,null,null,null,null,null,{"$f":"IF(L968=\"\",\" \",LOOKUP(L968,FLOTA!A:A,FLOTA!B:B))","v":" "},"",{"$f":"IF(N968=\"\",\" \",LOOKUP(N968,FLOTA!A:A,FLOTA!H:H))","v":" "}]
[null,null,null,null,null,null,null,null,null,null,null,null,{"$f":"IF(L969=\"\",\" \",LOOKUP(L969,FLOTA!A:A,FLOTA!B:B))","v":" "},"",{"$f":"IF(N969=\"\",\" \",LOOKUP(N969,FLOTA!A:A,FLOTA!H:H))","v":" "}]
[null,null,null,null,null,null,null,null,null,null,null,null,{"$f":"IF(L970=\"\",\" \",LOOKUP(L970,FLOTA!A:A,FLOTA!B:B))","v":" "},"",{"$f":"IF(N970=\"\",\" \",LOOKUP(N970,FLOTA!A:A,FLOTA!H:H))","v":" "}]
[null,null,null,null,null,null,null,null,null,null,null,null,{"$f":"IF(L971=\"\",\" \",LOOKUP(L971,FLOTA!A:A,FLOTA!B:B))","v":" "},"",{"$f":"IF(N971=\"\",\" \",LOOKUP(N971,FLOTA!A:A,FLOTA!H:H))","v":" "}]
[null,null,null,null,null,null,null,null,null,null,null,null,{"$f":"IF(L972=\"\",\" \",LOOKUP(L972,FLOTA!A:A,FLOTA!B:B))","v":" "},"",{"$f":"IF(N972=\"\",\" \",LOOKUP(N972,FLOTA!A:A,FLOTA!H:H))","v":" "}]
[null,null,null,null,null,null,null,null,null,null,null,null,{"$f":"IF(L973=\"\",\" \",LOOKUP(L973,FLOTA!A:A,FLOTA!B:B))","v":" "},"",{"$f":"IF(N973=\"\",\" \",LOOKUP(N973,FLOTA!A:A,FLOTA!H:H))","v":" "}]
[null,null,null,null,null,null,null,null,null,null,null,null,{"$f":"IF(L974=\"\",\" \",LOOKUP(L974,FLOTA!A:A,FLOTA!B:B))","v":" "},"",{"$f":"IF(N974=\"\",\" \",LOOKUP(N974,FLOTA!A:A,FLOTA!H:H))","v":" "}]
[null,null,null,null,null,null,null,null,null,null,null,null,{"$f":"IF(L975=\"\",\" \",LOOKUP(L975,FLOTA!A:A,FLOTA!B:B))","v":" "},"",{"$f":"IF(N975=\"\",\" \",LOOKUP(N975,FLOTA!A:A,FLOTA!H:H))","v":" "}]
[null,null,null,null,null,null,null,null,null,null,null,null,{"$f":"IF(L976=\"\",\" \",LOOKUP(L976,FLOTA!A:A,FLOTA!B:B))","v":" "},"",{"$f":"IF(N976=\"\",\" \",LOOKUP(N976,FLOTA!A:A,FLOTA!H:H))","v":" "}]
[null,null,null,null,null,null,null,null,null,null,null,null,{"$f":"IF(L977=\"\",\" \",LOOKUP(L977,FLOTA!A:A,FLOTA!B:B))","v":" "},"",{"$f":"IF(N977=\"\",\" \",LOOKUP(N977,FLOTA!A:A,FLOTA!H:H))","v":" "}]
[null,null,null,null,null,null,null,null,null,null,null,null,{"$f":"IF(L978=\"\",\" \",LOOKUP(L978,FLOTA!A:A,FLOTA!B:B))","v":" "},"",{"$f":"IF(N978=\"\",\" \",LOOKUP(N978,FLOTA!A:A,FLOTA!H:H))","v":" "}]
[null,null,null,null,null,null,null,null,null,null,null,null,{"$f":"IF(L979=\"\",\" \",LOOKUP(L979,FLOTA!A:A,FLOTA!B:B))","v":" "},"",{"$f":"IF(N979=\"\",\" \",LOOKUP(N979,FLOTA!A:A,FLOTA!H:H))","v":" "}]
[null,null,null,null,null,null,null,null,null,null,null,null,{"$f":"IF(L980=\"\",\" \",LOOKUP(L980,FLOTA!A:A,FLOTA!B:B))","v":" "},"",{"$f":"IF(N980=\"\",\" \",LOOKUP(N980,FLOTA!A:A,FLOTA!H:H))","v":" "}]
[null,null,null,null,null,null,null,null,null,null,null,null,{"$f":"IF(L981=\"\",\" \",LOOKUP(L981,FLOTA!A:A,FLOTA!B:B))","v":" "},"",{"$f":"IF(N981=\"\",\" \",LOOKUP(N981,FLOTA!A:A,FLOTA!H:H))","v":" "}]
[null,null,null,null,null,null,null,null,null,null,null,null,{"$f":"IF(L982=\"\",\" \",LOOKUP(L982,FLOTA!A:A,FLOTA!B:B))","v":" "},"",{"$f":"IF(N982=\"\",\" \",LOOKUP(N982,FLOTA!A:A,FLOTA!H:H))","v":" "}]
[null,null,null,null,null,null,null,null,null,null,null,null,{"$f":"IF(L983=\"\",\" \",LOOKUP(L983,FLOTA!A:A,FLOTA!B:B))","v":" "},"",{"$f":"IF(N983=\"\",\" \",LOOKUP(N983,FLOTA!A:A,FLOTA!H:H))","v":" "}]
[null,null,null,null,null,null,null,null,null,null,null,null,{"$f":"IF(L984=\"\",\" \",LOOKUP(L984,FLOTA!A:A,FLOTA!B:B))","v":" "},"",{"$f":"IF(N984=\"\",\" \",LOOKUP(N984,FLOTA!A:A,FLOTA!H:H))","v":" "}]
[null,null,null,null,null,null,null,null,null,null,null,null,{"$f":"IF(L985=\"\",\" \",LOOKUP(L985,FLOTA!A:A,FLOTA!B:B))","v":" "},"",{"$f":"IF(N985=\"\",\" \",LOOKUP(N985,FLOTA!A:A,FLOTA!H:H))","v":" "}]
[null,null,null,null,null,null,null,null,null,null,null,null,{"$f":"IF(L986=\"\",\" \",LOOKUP(L986,FLOTA!A:A,FLOTA!B:B))","v":" "},"",{"$f":"IF(N986=\"\",\" \",LOOKUP(N986,FLOTA!A:A,FLOTA!H:H))","v":" "}]
[null,null,null,null,null,null,null,null,null,null,null,null,{"$f":"IF(L987=\"\",\" \",LOOKUP(L987,FLOTA!A:A,FLOTA!B:B))","v":" "},"",{"$f":"IF(N987=\"\",\" \",LOOKUP(N987,FLOTA!A:A,FLOTA!H:H))","v":" "}]
[null,null,null,null,null,null,null,null,null,null,null,null,{"$f":"IF(L988=\"\",\" \",LOOKUP(L988,FLOTA!A:A,FLOTA!B:B))","v":" "},"",{"$f":"IF(N988=\"\",\" \",LOOKUP(N988,FLOTA!A:A,FLOTA!H:H))","v":" "}]
[null,null,null,null,null,null,null,null,null,null,null,null,{"$f":"IF(L989=\"\",\" \",LOOKUP(L989,FLOTA!A:A,FLOTA!B:B))","v":" "},"",{"$f":"IF(N989=\"\",\" \",LOOKUP(N989,FLOTA!A:A,FLOTA!H:H))","v":" "}]
[null,null,null,null,null,null,null,null,null,null,null,null,{"$f":"IF(L990=\"\",\" \",LOOKUP(L990,FLOTA!A:A,FLOTA!B:B))","v":" "},"",{"$f":"IF(N990=\"\",\" \",LOOKUP(N990,FLOTA!A:A,FLOTA!H:H))","v":" "}]
[null,null,null,null,null,null,null,null,null,null,null,null,{"$f":"IF(L991=\"\",\" \",LOOKUP(L991,FLOTA!A:A,FLOTA!B:B))","v":" "},"",{"$f":"IF(N991=\"\",\" \",LOOKUP(N991,FLOTA!A:A,FLOTA!H:H))","v":" "}]
[null,null,null,null,null,null,null,null,null,null,null,null,{"$f":"IF(L992=\"\",\" \",LOOKUP(L992,FLOTA!A:A,FLOTA!B:B))","v":" "},"",{"$f":"IF(N992=\"\",\" \",LOOKUP(N992,FLOTA!A:A,FLOTA!H:H))","v":" "}]
[null,null,null,null,null,null,null,null,null,null,null,null,{"$f":"IF(L993=\"\",\" \",LOOKUP(L993,FLOTA!A:A,FLOTA!B:B))","v":" "},"",{"$f":"IF(N993=\"\",\" \",LOOKUP(N993,FLOTA!A:A,FLOTA!H:H))","v":" "}]
[null,null,null,null,null,null,null,null,null,null,null,null,{"$f":"IF(L994=\"\",\" \",LOOKUP(L994,FLOTA!A:A,FLOTA!B:B))","v":" "},"",{"$f":"IF(N994=\"\",\" \",LOOKUP(N994,FLOTA!A:A,FLOTA!H:H))","v":" "}]
[null,null,null,null,null,null,null,null,null,null,null,null,{"$f":"IF(L995=\"\",\" \",LOOKUP(L995,FLOTA!A:A,FLOTA!B:B))","v":" "},"",{"$f":"IF(N995=\"\",\" \",LOOKUP(N995,FLOTA!A:A,FLOTA!H:H))","v":" "}]
[null,null,null,null,null,null,null,null,null,null,null,null,{"$f":"IF(L996=\"\",\" \",LOOKUP(L996,FLOTA!A:A,FLOTA!B:B))","v":" "},"",{"$f":"IF(N996=\"\",\" \",LOOKUP(N996,FLOTA!A:A,FLOTA!H:H))","v":" "}]
[null,null,null,null,null,null,null,null,null,null,null,null,{"$f":"IF(L997=\"\",\" \",LOOKUP(L997,FLOTA!A:A,FLOTA!B:B))","v":" "},"",{"$f":"IF(N997=\"\",\" \",LOOKUP(N997,FLOTA!A:A,FLOTA!H:H))","v":" "}]
[null,null,null,null,null,null,null,null,null,null,null,null,{"$f":"IF(L998=\"\",\" \",LOOKUP(L998,FLOTA!A:A,FLOTA!B:B))","v":" "},"",{"$f":"IF(N998=\"\",\" \",LOOKUP(N998,FLOTA!A:A,FLOTA!H:H))","v":" "}]
[null,null,null,null,null,null,null,null,null,null,null,null,{"$f":"IF(L999=\"\",\" \",LOOKUP(L999,FLOTA!A:A,FLOTA!B:B))","v":" "},"",{"$f":"IF(N999=\"\",\" \",LOOKUP(N999,FLOTA!A:A,FLOTA!H:H))","v":" "}]
[null,null,null,null,null,null,null,null,null,null,null,null,{"$f":"IF(L1000=\"\",\" \",LOOKUP(L1000,FLOTA!A:A,FLOTA!B:B))","v":" "},"",{"$f":"IF(N1000=\"\",\" \",LOOKUP(N1000,FLOTA!A:A,FLOTA!H:H))","v":" "}]
[null,null,null,null,null,null,null,null,null,null,null,null,{"$f":"IF(L1001=\"\",\" \",LOOKUP(L1001,FLOTA!A:A,FLOTA!B:B))","v":" "},"",{"$f":"IF(N1001=\"\",\" \",LOOKUP(N1001,FLOTA!A:A,FLOTA!H:H))","v":" "}]
[null,null,null,null,null,null,null,null,null,null,null,null,{"$f":"IF(L1002=\"\",\" \",LOOKUP(L1002,FLOTA!A:A,FLOTA!B:B))","v":" "},"",{"$f":"IF(N1002=\"\",\" \",LOOKUP(N1002,FLOTA!A:A,FLOTA!H:H))","v":" "}]
[null,null,null,null,null,null,null,null,null,null,null,null,{"$f":"IF(L1003=\"\",\" \",LOOKUP(L1003,FLOTA!A:A,FLOTA!B:B))","v":" "},"",{"$f":"IF(N1003=\"\",\" \",LOOKUP(N1003,FLOTA!A:A,FLOTA!H:H))","v":" "}]

{"sheet":"FLOTA","index":1,"n_rows":20,"n_cols":166,"rows_kept":20,"cut":false,"hidden":false,"merged":[]}
["CODIGO","INSTRUCTOR","CATEGORIA",null,"MARCA","MODELO","CLASE","PLACA","Km INICIALREAL","Km INICIAL","Km al 1/2/2013","RECORRIDO","EXESO","2013-02-14","2013-02-27","2013-04-11","2015-01-15","2015-12-28","2014-12-29","2014-12-30","2014-12-31","2015-01-01","2015-01-02","2015-01-03","2015-01-04","2015-01-05","2015-01-06","2015-01-07","2015-01-08","2015-01-09","2015-01-10","2015-01-11","2015-01-12","2015-01-13","2015-01-14","2015-01-15","2015-01-16","2015-01-17","2015-01-18","2015-01-19","2015-01-20","2015-01-21","2015-01-22","2015-01-23","2015-01-24","2015-01-25","2015-01-26","2015-01-27","2015-01-28","2015-01-29","2015-01-30","2015-01-31","2015-02-01","2015-02-02","2015-02-03","2015-02-04","2015-02-05","2015-02-06","2015-02-07","2015-02-08","2015-02-09","2015-02-10","2015-02-11","2015-02-12","2015-02-13","2015-02-14","2015-02-15","2015-02-16","2015-02-17","2015-02-18","2015-02-19","2015-02-20","2015-02-21","2015-02-22","2015-02-23","2015-02-24","2015-02-25","2015-02-26","2015-02-27","2015-02-28","2015-03-01","2015-03-02","2015-03-03","2015-03-04","2015-03-05","2015-03-06","2015-03-07","2015-03-08","2015-03-09","2015-03-10","2015-03-11","2015-03-12","2015-03-13","2015-03-14","2015-03-15","2015-03-16","2015-03-17","2015-03-18","2015-03-19","2015-03-20","2015-03-21","2015-03-22","2015-03-23","2015-03-24","2015-03-25","2015-03-26","2015-03-27","2015-03-28","2015-03-29","2015-03-30","2015-03-31","2015-04-01","2015-04-02","2015-04-03","2015-04-04","2015-04-05","2015-04-06","2015-04-07","2015-04-08","2015-04-09","2015-04-10","2015-04-11","2015-04-12","2015-04-13","2015-04-14","2015-04-15","2015-04-16","2015-04-17","2015-04-18","2015-04-19","2015-04-20","2015-04-21","2015-04-22","2015-04-23","2015-04-24","2015-04-25","2015-04-26","2015-04-27","2015-04-28","2015-04-29","2015-04-30","2015-05-01","2015-05-02","2015-05-03","2015-05-04","2015-05-05","2015-05-06","2015-05-07","2015-05-08","2015-05-09","2015-05-10","2015-05-11","2015-05-12","2015-05-13","2015-05-14","2015-05-15","2015-05-16","2015-05-17","2015-05-18","2015-05-19","2015-05-20","2015-05-21","2015-05-22","2015-05-23","2015-05-24","2015-05-25"]
[1,"TOMAS CESAR AUGUSTO ZEGARRA DONGO","AII-a","REV","HYUNDAY","I10","M1","V3E-510",145327,145127,145488,{"$f":"+K2-J2","v":361},{"$f":"+K2-I2","v":161},145727,146118,146118,23860,null,null,null,null,null,null,null,23865,23870,null,null,null,null,null,null,null,null,null,23988,null,null,null,24002,null,null,null,null,null,null,null,null,null,null,null,null,null,null,null,24075]
[2,"TOMAS CESAR AUGUSTO ZEGARRA DONGO","AII-a","PROFE","HYUNDAY","I10","M1","V20-692",4960,4460,null,null,null,null,null,5251,25000]
[3,"TOMAS CESAR AUGUSTO ZEGARRA DONGO","AII-a","PROFE","VOLKWAGEN","AUTOMOVIL","M1","A4O-540",null,null,null,null,null,null,null,null,122000]
[4,"TOMAS CESAR AUGUSTO ZEGARRA DONGO","AII-a","PROFE","CHEVROLET","AUTOMOVIL","M1","C9X-061",null,null,null,null,null,null,null,null,23500]
[5,"TOMAS CESAR AUGUSTO ZEGARRA DONGO","AII-a","PROFE","CHEVROLET","SPARK","M1","V2H-235"]
[6,"REMO SOSA MORALES","AII-a","PROFE","CHEVROLET","SPARK","M1","V2K-037",null,null,null,null,null,null,null,null,23478]
[7,"REMO SOSA MORALES","AII-a","PROFE","LIFAN","AUTOMOVIL","M1","V4B-182",null,null,null,null,null,null,null,null,19693]
[8,"EZEQUIEL HERMILIO AVALOS BRAVO","AII-b","REV","HYUNDAY","H1 MINIVAN","M2","X1A-960",5207,4707,null,null,null,null,5163,7575,146000,null,null,null,null,null,null,null,null,null,null,null,null,null,null,null,null,null,null,null,null,null,null,null,null,null,146778,146798,146816,146860,146875,146931,147532,148260,148556,null,null,null,null,148595,148620]
[9,"JAVIER JAIME RAMOS FERNANDEZ","AII-b","PROFE","HYUNDAY","H1 MINIVAN","M2","C2C-474",null,null,null,null,null,null,null,null,5000]
[10,"JAVIER JAIME RAMOS FERNANDEZ","AII-b","PROFE","HYUNDAY","H1 MINIVAN","M2","V2Q-957",null,null,null,null,null,null,null,null,7500]
[11,"JAVIER JAIME RAMOS FERNANDEZ","AII-b","PROFE","YUEJIN","NJ1028DB","N2","V3U-885",null,null,null,null,null,null,null,null,68192,null,null,null,null,null,null,null,null,null,68197,68202,68207,"X","X",68217,68212,"X",68222,"X",68227,"X","X","X","X","X",68232,"X","X","X","X",68242,68237,null,68311,68340,68370,68395,68430,68460,68490]
[12,"JAVIER JAIME RAMOS FERNANDEZ","AII-b","PROFE","FOTON","CAMIONCITO","N2","C7F-786",null,null,null,null,null,null,null,null,2500]
[13,"JAVIER JAIME RAMOS FERNANDEZ","AII-b","PROFE","JMC","CAMIONCITO","N2","V4X-832",null,null,null,null,null,null,null,null,75250]
[14,"CARLOS JAVIER RODOLFO MORRIBERON ROSAS","AIII-a - AIII-c","PROFE","MITSUBISHI","FUSO MF-100","M3","UH-5176",null,null,null,null,null,null,null,null,183850,null,null,null,null,null,null,null,null,null,null,null,null,null,null,null,null,null,null,null,null,null,null,null,null,null,null,null,null,null,null,null,null,null,183855,null,null,null,183870,183975,null,null,null,184004]
[15,"CARLOS JAVIER RODOLFO MORRIBERON ROSAS","AIII-a  - AIII-c","PROFE","HYUNDAY","OMNIBUS","M3","V2T-951",null,null,null,null,null,null,null,null,250500]
[16,"CARLOS JAVIER RODOLFO MORRIBERON ROSAS","AIII-b - AIII-c","REV","HYUNDAY","MIGHTY","N3","B8V-870",null,null,null,null,null,null,null,null,260015]
[17,"JOAQUIN TICONA ","AIII-b - AIII-c","PROFE","VOLVO","CAMION","N3","V4C-942",null,null,null,null,null,null,null,null,185000,null,null,185005,"X","X","X","X","X","X","X",185065,"X","X","X",185070,"X",185075,"X","X","X","X",185090,"X","X","X","X","X","X",186010,"x","x","x",186025]
[18,"JOAQUIN TICONA ","AIII-b - AIII-c","PROFE","FIAT","CAMION","N3","WQ-7152",null,null,null,null,null,null,null,null,668050]
[19,null,"L5",null,"ZONGSHEN","ZS175ZK trimoto","L5","V1-6404"]

{"sheet":"Hoja1","index":2,"n_rows":7,"n_cols":3,"rows_kept":7,"cut":false,"hidden":false,"merged":[]}
["CURSO","LICENCIA","RESULTADO"]
["RECATEGORIZACION","AI","ARCHIVO"]
["PROFESIONALIZACION","AIIa"]
["REVALIDACION","AIIb"]
["SENSIBILIZACION","AIIIa"]
["TOLERANCIA CERO","AIIIb"]
[null,"AIIIc"]

{"sheet":"Hoja3","index":3,"n_rows":9,"n_cols":6,"rows_kept":9,"cut":false,"hidden":false,"merged":[]}
["CODIGO","MARCA","MODELO","CLASE","PLACA"]
[1,"HYUNDAY","I10","M1","V3E-510","REV"]
[2,"CHEVROLET","SPARK","M1","V2K-037","PR"]
[3,"LIFAN","AUTOMOVIL","M1","V4B-182","PRAI"]
[4,"HYUNDAY","H1 MINIVAN","M2","X1A-960","REV"]
[5,"YUEJIN","NJ1028DB","N2","V3U-885","PR"]
[6,"MITSUBISHI","FUSO MF-100","M3","UH-5176","PR"]
[7,"HYUNDAY","MIGHTY","N3","B8V-870","REV"]
[9,"FIAT","CAMION","N3","WQ-7152","P"]

{"sheet":"Hoja2","index":4,"n_rows":0,"n_cols":0,"rows_kept":0,"cut":false,"hidden":false,"merged":[]}